Body Name,Body,Date,Department,Beneficiary,Summary of Purpose (SerCOP),Amount,Merchant Code,Transaction Number,Supplier ID
Sandwell Metropolitan Borough Council,http://www.sandwell.gov.uk/info/200202/performance_and_spending/1079/payments_over_500,05-Aug-21,Adult Social Care,CARE WISH LTD,Adult Social Care,3245,Other Agencies,2122P05_CR00001,126313
Sandwell Metropolitan Borough Council,http://www.sandwell.gov.uk/info/200202/performance_and_spending/1079/payments_over_500,17-Aug-21,Adult Social Care,CHARNAT CARE (ASC),Adult Social Care,825,Other Agencies,2122P05_CR00002,65003972
Sandwell Metropolitan Borough Council,http://www.sandwell.gov.uk/info/200202/performance_and_spending/1079/payments_over_500,05-Aug-21,Adult Social Care,WARLEY LEISURE PROJECT,Adult Social Care,5170,Other Agencies,2122P05_CR00003,8386833
Sandwell Metropolitan Borough Council,http://www.sandwell.gov.uk/info/200202/performance_and_spending/1079/payments_over_500,17-Aug-21,Adult Social Care,LIFEWAYS COMMUNITY CARE LTD,Adult Social Care,5445,Other Agencies,2122P05_CR00004,38822
Sandwell Metropolitan Borough Council,http://www.sandwell.gov.uk/info/200202/performance_and_spending/1079/payments_over_500,05-Aug-21,Adult Social Care,ALPHONSUS SERVICES LIMITED (ASC),Adult Social Care,550,Other Agencies,2122P05_CR00005,128961
Sandwell Metropolitan Borough Council,http://www.sandwell.gov.uk/info/200202/performance_and_spending/1079/payments_over_500,05-Aug-21,Adult Social Care,CHESHIRE CARE SERVICES LTD T/A HIGHBOURNE INDEPENDENT LIVING (ASC),Adult Social Care,715,Other Agencies,2122P05_CR00006,128950
Sandwell Metropolitan Borough Council,http://www.sandwell.gov.uk/info/200202/performance_and_spending/1079/payments_over_500,05-Aug-21,Adult Social Care,CAREVIEW CARING SUPPORT LTD (DOM & SUPP LIV.),Adult Social Care,825,Other Agencies,2122P05_CR00007,131692
Sandwell Metropolitan Borough Council,http://www.sandwell.gov.uk/info/200202/performance_and_spending/1079/payments_over_500,05-Aug-21,Adult Social Care,SANDWELL ASIAN FAMILY SUPPORT SERVICES (ASC),Adult Social Care,990,Other Agencies,2122P05_CR00008,129044
Sandwell Metropolitan Borough Council,http://www.sandwell.gov.uk/info/200202/performance_and_spending/1079/payments_over_500,05-Aug-21,Adult Social Care,SANDWELL ASIAN FAMILY SUPPORT SERVICES (ASC),Adult Social Care,1265,Other Agencies,2122P05_CR00009,129044
Sandwell Metropolitan Borough Council,http://www.sandwell.gov.uk/info/200202/performance_and_spending/1079/payments_over_500,05-Aug-21,Adult Social Care,ALPHONSUS SERVICES LIMITED (ASC),Adult Social Care,1375,Other Agencies,2122P05_CR00010,128961
Sandwell Metropolitan Borough Council,http://www.sandwell.gov.uk/info/200202/performance_and_spending/1079/payments_over_500,23-Aug-21,Adult Social Care,BLUEBIRD CARE SANDWELL,Adult Social Care,1540,Other Agencies,2122P05_CR00011,144173
Sandwell Metropolitan Borough Council,http://www.sandwell.gov.uk/info/200202/performance_and_spending/1079/payments_over_500,05-Aug-21,Adult Social Care,PRUDENT HEALTH CARE SERVICES (ASC),Adult Social Care,1650,Other Agencies,2122P05_CR00012,129258
Sandwell Metropolitan Borough Council,http://www.sandwell.gov.uk/info/200202/performance_and_spending/1079/payments_over_500,05-Aug-21,Adult Social Care,CARETECH COMMUNITY SERVICES LTD (ASC),Adult Social Care,1650,Other Agencies,2122P05_CR00013,128952
Sandwell Metropolitan Borough Council,http://www.sandwell.gov.uk/info/200202/performance_and_spending/1079/payments_over_500,23-Aug-21,Adult Social Care,CSK SUPPORT 24 LTD,Adult Social Care,2530,Other Agencies,2122P05_CR00014,145757
Sandwell Metropolitan Borough Council,http://www.sandwell.gov.uk/info/200202/performance_and_spending/1079/payments_over_500,05-Aug-21,Adult Social Care,WEST BROMWICH AFRICAN CARRIBEAN RESOURCE CENTRE,Adult Social Care,3795,Other Agencies,2122P05_CR00015,140706
Sandwell Metropolitan Borough Council,http://www.sandwell.gov.uk/info/200202/performance_and_spending/1079/payments_over_500,05-Aug-21,Adult Social Care,IHI CARE SERVICES LTD,Adult Social Care,4125,Other Agencies,2122P05_CR00016,148125
Sandwell Metropolitan Borough Council,http://www.sandwell.gov.uk/info/200202/performance_and_spending/1079/payments_over_500,05-Aug-21,Adult Social Care,BRIDGEWOOD HEALTH CARE (ASC),Adult Social Care,6050,Other Agencies,2122P05_CR00017,53389
Sandwell Metropolitan Borough Council,http://www.sandwell.gov.uk/info/200202/performance_and_spending/1079/payments_over_500,05-Aug-21,Adult Social Care,PARKSIDE HEALTH CARE LTD (ASC),Adult Social Care,6600,Other Agencies,2122P05_CR00018,89464
Sandwell Metropolitan Borough Council,http://www.sandwell.gov.uk/info/200202/performance_and_spending/1079/payments_over_500,23-Aug-21,Adult Social Care,SELECT LIFESTYLES LIMITED (ASC),Adult Social Care,7095,Other Agencies,2122P05_CR00019,128943
Sandwell Metropolitan Borough Council,http://www.sandwell.gov.uk/info/200202/performance_and_spending/1079/payments_over_500,11-Aug-21,Adult Social Care,TIPTON HOMECARE LIMITED.,Adult Social Care,7590,Other Agencies,2122P05_CR00020,140628
Sandwell Metropolitan Borough Council,http://www.sandwell.gov.uk/info/200202/performance_and_spending/1079/payments_over_500,05-Aug-21,Adult Social Care,CROSSROADS CARE ATTENDANT SCHEME (ASC),Adult Social Care,12980,Other Agencies,2122P05_CR00021,129040
Sandwell Metropolitan Borough Council,http://www.sandwell.gov.uk/info/200202/performance_and_spending/1079/payments_over_500,05-Aug-21,Adult Social Care,SAGECARE LTD,Adult Social Care,14300,Other Agencies,2122P05_CR00022,140325
Sandwell Metropolitan Borough Council,http://www.sandwell.gov.uk/info/200202/performance_and_spending/1079/payments_over_500,11-Aug-21,Adult Social Care,STEPHEN SUPPORT SERVICES LTD,Adult Social Care,3190,Other Agencies,2122P05_CR00023,143589
Sandwell Metropolitan Borough Council,http://www.sandwell.gov.uk/info/200202/performance_and_spending/1079/payments_over_500,05-Aug-21,Adult Social Care,WMCA OPERATIONS LTD,Adult Social Care,13629,Residential - Short Term,2122P05_CR00024,135917
Sandwell Metropolitan Borough Council,http://www.sandwell.gov.uk/info/200202/performance_and_spending/1079/payments_over_500,01-Aug-21,Adults Social Care Capital,PR PROPERTY MAINTENANCE,Adults Social Care Capital,1870,Deferred Charges/Grant Payments,2122P05_CR00025,33836
Sandwell Metropolitan Borough Council,http://www.sandwell.gov.uk/info/200202/performance_and_spending/1079/payments_over_500,01-Aug-21,Adults Social Care Capital,DLM BUILDING & MAINTENANCE LTD,Adults Social Care Capital,5100.63,CIP - Infrastructure,2122P05_CR00026,137596
Sandwell Metropolitan Borough Council,http://www.sandwell.gov.uk/info/200202/performance_and_spending/1079/payments_over_500,01-Aug-21,Adults Social Care Capital,PR PROPERTY MAINTENANCE,Adults Social Care Capital,8758.58,Deferred Charges/Grant Payments,2122P05_CR00027,33836
Sandwell Metropolitan Borough Council,http://www.sandwell.gov.uk/info/200202/performance_and_spending/1079/payments_over_500,10-Aug-21,Adults Social Care Capital,WILLMOTT DIXON CONSTRUCTION LIMITED,Adults Social Care Capital,584510.82,"CIP - New Construction,Conversion, Enhancement & Reno",2122P05_CR00028,34081
Sandwell Metropolitan Borough Council,http://www.sandwell.gov.uk/info/200202/performance_and_spending/1079/payments_over_500,01-Aug-21,Adults Social Care Capital,RIDGE & PARTNERS LLP,Adults Social Care Capital,3000,"CIP - New Construction,Conversion, Enhancement & Reno",2122P05_CR00029,134994
Sandwell Metropolitan Borough Council,http://www.sandwell.gov.uk/info/200202/performance_and_spending/1079/payments_over_500,01-Aug-21,Adults Social Care Capital,STANNAH LIFT SERVICES LTD,Adults Social Care Capital,3098,Building Maintenance & Improvements,2122P05_CR00030,13887
Sandwell Metropolitan Borough Council,http://www.sandwell.gov.uk/info/200202/performance_and_spending/1079/payments_over_500,01-Aug-21,Adults Social Care Capital,TDF DESIGN LIMITED,Adults Social Care Capital,17500,Deferred Charges/Grant Payments,2122P05_CR00031,10320
Sandwell Metropolitan Borough Council,http://www.sandwell.gov.uk/info/200202/performance_and_spending/1079/payments_over_500,01-Aug-21,Adults Social Care Capital,AA PROJECTS LIMITED,Adults Social Care Capital,1850,Deferred Charges/Grant Payments,2122P05_CR00032,116074
Sandwell Metropolitan Borough Council,http://www.sandwell.gov.uk/info/200202/performance_and_spending/1079/payments_over_500,12-Aug-21,Childrens Services,CHUBB FIRE & SECURITY LIMITED t/a CHUBB ELECTRONIC SECURITY,Childrens Services,804,Security,2122P05_CR00033,81343
Sandwell Metropolitan Borough Council,http://www.sandwell.gov.uk/info/200202/performance_and_spending/1079/payments_over_500,12-Aug-21,Childrens Services,CHUBB FIRE & SECURITY LIMITED t/a CHUBB ELECTRONIC SECURITY,Childrens Services,924,Security,2122P05_CR00034,81343
Sandwell Metropolitan Borough Council,http://www.sandwell.gov.uk/info/200202/performance_and_spending/1079/payments_over_500,01-Aug-21,Childrens Services,AUTISM WEST MIDLANDS                                                           01,Childrens Services,9215.5,Grant Payments,2122P05_CR00035,65002404
Sandwell Metropolitan Borough Council,http://www.sandwell.gov.uk/info/200202/performance_and_spending/1079/payments_over_500,09-Aug-21,Childrens Services,SANDWELL CHILDREN'S TRUST,Childrens Services,5232939.38,Other Establishments,2122P05_CR00036,133302
Sandwell Metropolitan Borough Council,http://www.sandwell.gov.uk/info/200202/performance_and_spending/1079/payments_over_500,01-Aug-21,Childrens Services,TEAMSPORT INDOOR KARTING,Childrens Services,620.81,Equipment & Furniture ,2122P05_CR00037,123836
Sandwell Metropolitan Borough Council,http://www.sandwell.gov.uk/info/200202/performance_and_spending/1079/payments_over_500,11-Aug-21,Childrens Services,REDACTED PERSONAL DATA,Childrens Services,637.2,External Contract Hire,2122P05_CR00038,REDACTED PERSONAL DATA
Sandwell Metropolitan Borough Council,http://www.sandwell.gov.uk/info/200202/performance_and_spending/1079/payments_over_500,06-Aug-21,Childrens Services,REDACTED PERSONAL DATA,Childrens Services,863.28,External Contract Hire,2122P05_CR00039,REDACTED PERSONAL DATA
Sandwell Metropolitan Borough Council,http://www.sandwell.gov.uk/info/200202/performance_and_spending/1079/payments_over_500,01-Aug-21,Childrens Services,D J TRAVEL,Childrens Services,2869.38,Public Transport,2122P05_CR00040,96415
Sandwell Metropolitan Borough Council,http://www.sandwell.gov.uk/info/200202/performance_and_spending/1079/payments_over_500,11-Aug-21,Childrens Services,CARLYLE LTD,Childrens Services,560,Grants,2122P05_CR00041,1507965
Sandwell Metropolitan Borough Council,http://www.sandwell.gov.uk/info/200202/performance_and_spending/1079/payments_over_500,11-Aug-21,Childrens Services,CARLYLE LTD,Childrens Services,560,Grants,2122P05_CR00042,1507965
Sandwell Metropolitan Borough Council,http://www.sandwell.gov.uk/info/200202/performance_and_spending/1079/payments_over_500,11-Aug-21,Childrens Services,CARLYLE LTD,Childrens Services,716.39,Grants,2122P05_CR00043,1507965
Sandwell Metropolitan Borough Council,http://www.sandwell.gov.uk/info/200202/performance_and_spending/1079/payments_over_500,01-Aug-21,Childrens Services,NEWBURY TRAVEL LTD,Childrens Services,870,Public Transport,2122P05_CR00044,6003081
Sandwell Metropolitan Borough Council,http://www.sandwell.gov.uk/info/200202/performance_and_spending/1079/payments_over_500,01-Aug-21,Childrens Services,TOH TAXIS,Childrens Services,1036.01,Public Transport,2122P05_CR00045,12250
Sandwell Metropolitan Borough Council,http://www.sandwell.gov.uk/info/200202/performance_and_spending/1079/payments_over_500,01-Aug-21,Childrens Services,GREEN DESTINATIONS LTD,Childrens Services,1291.44,Public Transport,2122P05_CR00046,109275
Sandwell Metropolitan Borough Council,http://www.sandwell.gov.uk/info/200202/performance_and_spending/1079/payments_over_500,01-Aug-21,Childrens Services,TOH TAXIS,Childrens Services,1523.1,Public Transport,2122P05_CR00047,12250
Sandwell Metropolitan Borough Council,http://www.sandwell.gov.uk/info/200202/performance_and_spending/1079/payments_over_500,01-Aug-21,Childrens Services,TOH TAXIS,Childrens Services,1554.2,Public Transport,2122P05_CR00048,12250
Sandwell Metropolitan Borough Council,http://www.sandwell.gov.uk/info/200202/performance_and_spending/1079/payments_over_500,17-Aug-21,Childrens Services,LR'S TAXIS LIMITED,Childrens Services,11602.41,Public Transport,2122P05_CR00049,59047
Sandwell Metropolitan Borough Council,http://www.sandwell.gov.uk/info/200202/performance_and_spending/1079/payments_over_500,17-Aug-21,Childrens Services,DROACH TRAVEL LTD,Childrens Services,18809.86,Public Transport,2122P05_CR00050,6002707
Sandwell Metropolitan Borough Council,http://www.sandwell.gov.uk/info/200202/performance_and_spending/1079/payments_over_500,17-Aug-21,Childrens Services,REDACTED PERSONAL DATA,Childrens Services,31607.72,Public Transport,2122P05_CR00051,REDACTED PERSONAL DATA
Sandwell Metropolitan Borough Council,http://www.sandwell.gov.uk/info/200202/performance_and_spending/1079/payments_over_500,01-Aug-21,Childrens Services,COUNTY CARS (2003) LIMITED,Childrens Services,34702.27,Public Transport,2122P05_CR00052,6002387
Sandwell Metropolitan Borough Council,http://www.sandwell.gov.uk/info/200202/performance_and_spending/1079/payments_over_500,02-Aug-21,Childrens Services,ONE 4 YOU SERVICES LTD,Childrens Services,53683.57,Public Transport,2122P05_CR00053,81204
Sandwell Metropolitan Borough Council,http://www.sandwell.gov.uk/info/200202/performance_and_spending/1079/payments_over_500,01-Aug-21,Childrens Services,COUNTY CARS (2003) LIMITED,Childrens Services,81262.3,Public Transport,2122P05_CR00054,6002387
Sandwell Metropolitan Borough Council,http://www.sandwell.gov.uk/info/200202/performance_and_spending/1079/payments_over_500,01-Aug-21,Childrens Services,GREEN DESTINATIONS LTD,Childrens Services,94043.41,Public Transport,2122P05_CR00055,109275
Sandwell Metropolitan Borough Council,http://www.sandwell.gov.uk/info/200202/performance_and_spending/1079/payments_over_500,07-Aug-21,Childrens Services,TOTAL GAS AND POWER LIMITED,Childrens Services,501.86,Electricity,2122P05_CR00056,107605
Sandwell Metropolitan Borough Council,http://www.sandwell.gov.uk/info/200202/performance_and_spending/1079/payments_over_500,10-Aug-21,Childrens Services,TOTAL GAS AND POWER LIMITED,Childrens Services,506.96,Electricity,2122P05_CR00057,107605
Sandwell Metropolitan Borough Council,http://www.sandwell.gov.uk/info/200202/performance_and_spending/1079/payments_over_500,01-Aug-21,Childrens Services,NCFE,Childrens Services,516,Externally Purchased Professional Services ,2122P05_CR00058,6230
Sandwell Metropolitan Borough Council,http://www.sandwell.gov.uk/info/200202/performance_and_spending/1079/payments_over_500,01-Aug-21,Childrens Services,TOTAL GAS AND POWER LIMITED,Childrens Services,526.42,Electricity,2122P05_CR00059,107605
Sandwell Metropolitan Borough Council,http://www.sandwell.gov.uk/info/200202/performance_and_spending/1079/payments_over_500,04-Aug-21,Childrens Services,BSN ASSOCIATES LIMITED,Childrens Services,560,Grants,2122P05_CR00060,152374
Sandwell Metropolitan Borough Council,http://www.sandwell.gov.uk/info/200202/performance_and_spending/1079/payments_over_500,01-Aug-21,Childrens Services,REDACTED PERSONAL DATA,Childrens Services,640,Grant Payments,2122P05_CR00061,REDACTED PERSONAL DATA
Sandwell Metropolitan Borough Council,http://www.sandwell.gov.uk/info/200202/performance_and_spending/1079/payments_over_500,01-Aug-21,Childrens Services,SHRED-IT LIMITED,Childrens Services,652.68,Waste Disposal Charges,2122P05_CR00062,1754926
Sandwell Metropolitan Borough Council,http://www.sandwell.gov.uk/info/200202/performance_and_spending/1079/payments_over_500,09-Aug-21,Childrens Services,BANGLADESHI WOMEN'S ASSOCIATION LIMITED,Childrens Services,716.39,Grants,2122P05_CR00063,69648
Sandwell Metropolitan Borough Council,http://www.sandwell.gov.uk/info/200202/performance_and_spending/1079/payments_over_500,03-Aug-21,Childrens Services,BRAND FUSION INTERNATIONAL LTD,Childrens Services,716.39,Grants,2122P05_CR00064,152110
Sandwell Metropolitan Borough Council,http://www.sandwell.gov.uk/info/200202/performance_and_spending/1079/payments_over_500,01-Aug-21,Childrens Services,CYBER MEDIA SOLUTIONS LTD,Childrens Services,725,Externally Purchased Professional Services ,2122P05_CR00065,114293
Sandwell Metropolitan Borough Council,http://www.sandwell.gov.uk/info/200202/performance_and_spending/1079/payments_over_500,04-Aug-21,Childrens Services,WRAPART LTD,Childrens Services,750,Externally Purchased Professional Services ,2122P05_CR00066,153786
Sandwell Metropolitan Borough Council,http://www.sandwell.gov.uk/info/200202/performance_and_spending/1079/payments_over_500,01-Aug-21,Childrens Services,ASSOCIATION OF ADULT EDUCATION AND TRAINING ORGANISATIONS,Childrens Services,820,Subscriptions,2122P05_CR00067,3837
Sandwell Metropolitan Borough Council,http://www.sandwell.gov.uk/info/200202/performance_and_spending/1079/payments_over_500,01-Aug-21,Childrens Services,GEL DATA SOLUTIONS LIMITED,Childrens Services,828,Subscriptions,2122P05_CR00068,88332
Sandwell Metropolitan Borough Council,http://www.sandwell.gov.uk/info/200202/performance_and_spending/1079/payments_over_500,01-Aug-21,Childrens Services,LEARNING INTO EMPLOYMENT ACADEMY LTD,Childrens Services,900,Grant Payments,2122P05_CR00069,147427
Sandwell Metropolitan Borough Council,http://www.sandwell.gov.uk/info/200202/performance_and_spending/1079/payments_over_500,17-Aug-21,Childrens Services,121 CARZ,Childrens Services,918,Public Transport,2122P05_CR00070,116848
Sandwell Metropolitan Borough Council,http://www.sandwell.gov.uk/info/200202/performance_and_spending/1079/payments_over_500,03-Aug-21,Childrens Services,BRAND FUSION INTERNATIONAL LTD,Childrens Services,941.16,Grants,2122P05_CR00071,152110
Sandwell Metropolitan Borough Council,http://www.sandwell.gov.uk/info/200202/performance_and_spending/1079/payments_over_500,06-Aug-21,Childrens Services,CONFEDERATION OF BANGLADESHI ORGANISATIONS (CBO) LIMITED,Childrens Services,941.16,Grants,2122P05_CR00072,10034
Sandwell Metropolitan Borough Council,http://www.sandwell.gov.uk/info/200202/performance_and_spending/1079/payments_over_500,01-Aug-21,Childrens Services,UNIVERSITY OF BRISTOL,Childrens Services,949,Subscriptions,2122P05_CR00073,1748
Sandwell Metropolitan Borough Council,http://www.sandwell.gov.uk/info/200202/performance_and_spending/1079/payments_over_500,01-Aug-21,Childrens Services,WEST MIDLANDS ACCESSIBLE TRANSPORT LTD,Childrens Services,949.44,Public Transport,2122P05_CR00074,1694764
Sandwell Metropolitan Borough Council,http://www.sandwell.gov.uk/info/200202/performance_and_spending/1079/payments_over_500,07-Aug-21,Childrens Services,TOTAL GAS AND POWER LIMITED,Childrens Services,966.24,Electricity,2122P05_CR00075,107605
Sandwell Metropolitan Borough Council,http://www.sandwell.gov.uk/info/200202/performance_and_spending/1079/payments_over_500,01-Aug-21,Childrens Services,WEST MIDLANDS ACCESSIBLE TRANSPORT LTD,Childrens Services,992.55,Public Transport,2122P05_CR00076,1694764
Sandwell Metropolitan Borough Council,http://www.sandwell.gov.uk/info/200202/performance_and_spending/1079/payments_over_500,01-Aug-21,Childrens Services,HISTON HOUSE LTD (SCHOLARPACK),Childrens Services,1021.45,Externally Purchased Professional Services ,2122P05_CR00077,134266
Sandwell Metropolitan Borough Council,http://www.sandwell.gov.uk/info/200202/performance_and_spending/1079/payments_over_500,01-Aug-21,Childrens Services,LEARNING INTO EMPLOYMENT ACADEMY LTD,Childrens Services,1217.58,Externally Purchased Professional Services ,2122P05_CR00078,147427
Sandwell Metropolitan Borough Council,http://www.sandwell.gov.uk/info/200202/performance_and_spending/1079/payments_over_500,01-Aug-21,Childrens Services,LEARNING INTO EMPLOYMENT ACADEMY LTD,Childrens Services,1217.58,Externally Purchased Professional Services ,2122P05_CR00079,147427
Sandwell Metropolitan Borough Council,http://www.sandwell.gov.uk/info/200202/performance_and_spending/1079/payments_over_500,01-Aug-21,Childrens Services,LEARNING INTO EMPLOYMENT ACADEMY LTD,Childrens Services,1217.58,Externally Purchased Professional Services ,2122P05_CR00080,147427
Sandwell Metropolitan Borough Council,http://www.sandwell.gov.uk/info/200202/performance_and_spending/1079/payments_over_500,01-Aug-21,Childrens Services,LEARNING INTO EMPLOYMENT ACADEMY LTD,Childrens Services,1217.58,Externally Purchased Professional Services ,2122P05_CR00081,147427
Sandwell Metropolitan Borough Council,http://www.sandwell.gov.uk/info/200202/performance_and_spending/1079/payments_over_500,01-Aug-21,Childrens Services,LEARNING INTO EMPLOYMENT ACADEMY LTD,Childrens Services,1217.58,Externally Purchased Professional Services ,2122P05_CR00082,147427
Sandwell Metropolitan Borough Council,http://www.sandwell.gov.uk/info/200202/performance_and_spending/1079/payments_over_500,17-Aug-21,Childrens Services,121 CARZ,Childrens Services,1243.63,Public Transport,2122P05_CR00083,116848
Sandwell Metropolitan Borough Council,http://www.sandwell.gov.uk/info/200202/performance_and_spending/1079/payments_over_500,01-Aug-21,Childrens Services,BLACK COUNTRY TRAINING GROUP,Childrens Services,1341,Externally Purchased Professional Services ,2122P05_CR00084,1606393
Sandwell Metropolitan Borough Council,http://www.sandwell.gov.uk/info/200202/performance_and_spending/1079/payments_over_500,01-Aug-21,Childrens Services,BLACK COUNTRY TRAINING GROUP,Childrens Services,1341,Externally Purchased Professional Services ,2122P05_CR00085,1606393
Sandwell Metropolitan Borough Council,http://www.sandwell.gov.uk/info/200202/performance_and_spending/1079/payments_over_500,01-Aug-21,Childrens Services,LEARNING INTO EMPLOYMENT ACADEMY LTD,Childrens Services,1575,Grant Payments,2122P05_CR00086,147427
Sandwell Metropolitan Borough Council,http://www.sandwell.gov.uk/info/200202/performance_and_spending/1079/payments_over_500,01-Aug-21,Childrens Services,CANAL & RIVER TRUST,Childrens Services,1728,Licences,2122P05_CR00087,1631306
Sandwell Metropolitan Borough Council,http://www.sandwell.gov.uk/info/200202/performance_and_spending/1079/payments_over_500,04-Aug-21,Childrens Services,THE PRIORY PRIMARY,Childrens Services,2171.27,Rents,2122P05_CR00088,1746051
Sandwell Metropolitan Borough Council,http://www.sandwell.gov.uk/info/200202/performance_and_spending/1079/payments_over_500,01-Aug-21,Childrens Services,BLACK COUNTRY TRAINING GROUP,Childrens Services,2235,Externally Purchased Professional Services ,2122P05_CR00089,1606393
Sandwell Metropolitan Borough Council,http://www.sandwell.gov.uk/info/200202/performance_and_spending/1079/payments_over_500,01-Aug-21,Childrens Services,SHROPSHIRE COUNCIL,Childrens Services,3370.68,External Contract Hire,2122P05_CR00090,1030303
Sandwell Metropolitan Borough Council,http://www.sandwell.gov.uk/info/200202/performance_and_spending/1079/payments_over_500,23-Aug-21,Childrens Services,PLACES FOR PEOPLE LEISURE LIMITED,Childrens Services,3670.4,Externally Purchased Professional Services ,2122P05_CR00091,119069
Sandwell Metropolitan Borough Council,http://www.sandwell.gov.uk/info/200202/performance_and_spending/1079/payments_over_500,01-Aug-21,Childrens Services,PROSPECTS SERVICES LIMITED,Childrens Services,4089.92,Grant Payments,2122P05_CR00092,1721288
Sandwell Metropolitan Borough Council,http://www.sandwell.gov.uk/info/200202/performance_and_spending/1079/payments_over_500,01-Aug-21,Childrens Services,WATER PLUS SELECT LIMITED,Childrens Services,4620.35,Water Services,2122P05_CR00093,129644
Sandwell Metropolitan Borough Council,http://www.sandwell.gov.uk/info/200202/performance_and_spending/1079/payments_over_500,01-Aug-21,Childrens Services,WATER PLUS SELECT LIMITED,Childrens Services,5759.78,Water Services,2122P05_CR00094,129644
Sandwell Metropolitan Borough Council,http://www.sandwell.gov.uk/info/200202/performance_and_spending/1079/payments_over_500,01-Aug-21,Childrens Services,HER MAJESTYS PRISON AND PROBATION SERVICE,Childrens Services,9450,Other Establishments,2122P05_CR00095,134815
Sandwell Metropolitan Borough Council,http://www.sandwell.gov.uk/info/200202/performance_and_spending/1079/payments_over_500,01-Aug-21,Childrens Services,HER MAJESTYS PRISON AND PROBATION SERVICE,Childrens Services,9450,Other Establishments,2122P05_CR00096,134815
Sandwell Metropolitan Borough Council,http://www.sandwell.gov.uk/info/200202/performance_and_spending/1079/payments_over_500,01-Aug-21,Childrens Services,POBBLE EDUCATION LTD,Childrens Services,9500,Subscriptions,2122P05_CR00097,150346
Sandwell Metropolitan Borough Council,http://www.sandwell.gov.uk/info/200202/performance_and_spending/1079/payments_over_500,01-Aug-21,Childrens Services,HER MAJESTYS PRISON AND PROBATION SERVICE,Childrens Services,9765,Other Establishments,2122P05_CR00098,134815
Sandwell Metropolitan Borough Council,http://www.sandwell.gov.uk/info/200202/performance_and_spending/1079/payments_over_500,01-Aug-21,Childrens Services,HER MAJESTYS PRISON AND PROBATION SERVICE,Childrens Services,9765,Other Establishments,2122P05_CR00099,134815
Sandwell Metropolitan Borough Council,http://www.sandwell.gov.uk/info/200202/performance_and_spending/1079/payments_over_500,01-Aug-21,Childrens Services,WEST MIDLANDS TRAVEL LIMITED,Childrens Services,9920,Externally Purchased Professional Services ,2122P05_CR00100,1736688
Sandwell Metropolitan Borough Council,http://www.sandwell.gov.uk/info/200202/performance_and_spending/1079/payments_over_500,02-Aug-21,Childrens Services,COGNISOFT LTD,Childrens Services,16041.37,Externally Purchased Professional Services ,2122P05_CR00101,134201
Sandwell Metropolitan Borough Council,http://www.sandwell.gov.uk/info/200202/performance_and_spending/1079/payments_over_500,01-Aug-21,Childrens Services,HER MAJESTYS PRISON AND PROBATION SERVICE,Childrens Services,17220,Other Establishments,2122P05_CR00102,134815
Sandwell Metropolitan Borough Council,http://www.sandwell.gov.uk/info/200202/performance_and_spending/1079/payments_over_500,01-Aug-21,Childrens Services,HER MAJESTYS PRISON AND PROBATION SERVICE,Childrens Services,17794,Other Establishments,2122P05_CR00103,134815
Sandwell Metropolitan Borough Council,http://www.sandwell.gov.uk/info/200202/performance_and_spending/1079/payments_over_500,01-Aug-21,Childrens Services,YELLOW CARS,Childrens Services,18619.82,Public Transport,2122P05_CR00104,116819
Sandwell Metropolitan Borough Council,http://www.sandwell.gov.uk/info/200202/performance_and_spending/1079/payments_over_500,04-Aug-21,Childrens Services,ACTION FOR CHILDREN SERVICES LIMITED,Childrens Services,31238.1,Externally Purchased Professional Services ,2122P05_CR00105,111189
Sandwell Metropolitan Borough Council,http://www.sandwell.gov.uk/info/200202/performance_and_spending/1079/payments_over_500,01-Aug-21,Childrens Services,JPC TRAVEL SOLUTION,Childrens Services,45643,Public Transport,2122P05_CR00106,138533
Sandwell Metropolitan Borough Council,http://www.sandwell.gov.uk/info/200202/performance_and_spending/1079/payments_over_500,01-Aug-21,Childrens Services,FIVE STAR TAXIS (DUDLEY) LTD,Childrens Services,73713.77,Public Transport,2122P05_CR00107,133542
Sandwell Metropolitan Borough Council,http://www.sandwell.gov.uk/info/200202/performance_and_spending/1079/payments_over_500,01-Aug-21,Childrens Services,MURRAY HALL COMMUNITY TRUST,Childrens Services,90372.87,Contract Payments,2122P05_CR00108,1627284
Sandwell Metropolitan Borough Council,http://www.sandwell.gov.uk/info/200202/performance_and_spending/1079/payments_over_500,09-Aug-21,Childrens Services,DRYWALL STEEL SECTIONS LTD,Childrens Services,716.39,Grants,2122P05_CR00109,132994
Sandwell Metropolitan Borough Council,http://www.sandwell.gov.uk/info/200202/performance_and_spending/1079/payments_over_500,05-Aug-21,Childrens Services,REDACTED PERSONAL DATA,Childrens Services,860,Ingestre Hall Arts Centre.Residential Centres,2122P05_CR00110,REDACTED PERSONAL DATA
Sandwell Metropolitan Borough Council,http://www.sandwell.gov.uk/info/200202/performance_and_spending/1079/payments_over_500,05-Aug-21,Childrens Services,HINDU CULTURAL RESOURCE CENTRE                                              01,Childrens Services,2630,Grant Payments,2122P05_CR00111,1750493
Sandwell Metropolitan Borough Council,http://www.sandwell.gov.uk/info/200202/performance_and_spending/1079/payments_over_500,01-Aug-21,Childrens Services,SANDWELL PARENTS FOR DISABLED CHILDREN,Childrens Services,11500,Grant Payments,2122P05_CR00112,70991
Sandwell Metropolitan Borough Council,http://www.sandwell.gov.uk/info/200202/performance_and_spending/1079/payments_over_500,01-Aug-21,Childrens Services Capital,"ACIVICO (DESIGN,CONSTRUCTION AND FACILITIES MANAGEMENT) LTD",Childrens Services Capital,1960.67,"CIP - New Construction,Conversion, Enhancement & Reno",2122P05_CR00113,148500
Sandwell Metropolitan Borough Council,http://www.sandwell.gov.uk/info/200202/performance_and_spending/1079/payments_over_500,13-Aug-21,Childrens Services Capital,A E CHAPMAN & CO (OLD HILL) LTD,Childrens Services Capital,2623.6,"CIP - New Construction,Conversion, Enhancement & Reno",2122P05_CR00114,77001665
Sandwell Metropolitan Borough Council,http://www.sandwell.gov.uk/info/200202/performance_and_spending/1079/payments_over_500,01-Aug-21,Childrens Services Capital,"ACIVICO (DESIGN,CONSTRUCTION AND FACILITIES MANAGEMENT) LTD",Childrens Services Capital,2969.25,"CIP - New Construction,Conversion, Enhancement & Reno",2122P05_CR00115,148500
Sandwell Metropolitan Borough Council,http://www.sandwell.gov.uk/info/200202/performance_and_spending/1079/payments_over_500,01-Aug-21,Childrens Services Capital,"ACIVICO (DESIGN,CONSTRUCTION AND FACILITIES MANAGEMENT) LTD",Childrens Services Capital,5700.96,"CIP - New Construction,Conversion, Enhancement & Reno",2122P05_CR00116,148500
Sandwell Metropolitan Borough Council,http://www.sandwell.gov.uk/info/200202/performance_and_spending/1079/payments_over_500,06-Aug-21,Childrens Services Capital,CONTINENTAL SPORTS LTD,Childrens Services Capital,8894.04,"CIP - New Construction,Conversion, Enhancement & Reno",2122P05_CR00117,1001464
Sandwell Metropolitan Borough Council,http://www.sandwell.gov.uk/info/200202/performance_and_spending/1079/payments_over_500,04-Aug-21,Childrens Services Capital,WILLMOTT DIXON CONSTRUCTION LIMITED,Childrens Services Capital,103153.53,"CIP - New Construction,Conversion, Enhancement & Reno",2122P05_CR00118,34081
Sandwell Metropolitan Borough Council,http://www.sandwell.gov.uk/info/200202/performance_and_spending/1079/payments_over_500,01-Aug-21,Childrens Services Capital,WILLMOTT DIXON CONSTRUCTION LIMITED,Childrens Services Capital,157808.12,"CIP - New Construction,Conversion, Enhancement & Reno",2122P05_CR00119,34081
Sandwell Metropolitan Borough Council,http://www.sandwell.gov.uk/info/200202/performance_and_spending/1079/payments_over_500,18-Aug-21,Childrens Services Capital,WILLMOTT DIXON CONSTRUCTION LIMITED,Childrens Services Capital,212240.05,"CIP - New Construction,Conversion, Enhancement & Reno",2122P05_CR00120,34081
Sandwell Metropolitan Borough Council,http://www.sandwell.gov.uk/info/200202/performance_and_spending/1079/payments_over_500,01-Aug-21,Childrens Services Capital,REDACTED PERSONAL DATA,Childrens Services Capital,562.5,"CIP - New Construction,Conversion, Enhancement & Reno",2122P05_CR00121,REDACTED PERSONAL DATA
Sandwell Metropolitan Borough Council,http://www.sandwell.gov.uk/info/200202/performance_and_spending/1079/payments_over_500,01-Aug-21,Childrens Services Capital,REDACTED PERSONAL DATA,Childrens Services Capital,1012.5,"CIP - New Construction,Conversion, Enhancement & Reno",2122P05_CR00122,REDACTED PERSONAL DATA
Sandwell Metropolitan Borough Council,http://www.sandwell.gov.uk/info/200202/performance_and_spending/1079/payments_over_500,01-Aug-21,Childrens Services Capital,M & H SURVEY SERVICES LIMITED,Childrens Services Capital,3460,"CIP - New Construction,Conversion, Enhancement & Reno",2122P05_CR00123,114657
Sandwell Metropolitan Borough Council,http://www.sandwell.gov.uk/info/200202/performance_and_spending/1079/payments_over_500,01-Aug-21,Childrens Services Capital,M & H SURVEY SERVICES LIMITED,Childrens Services Capital,3900,"CIP - New Construction,Conversion, Enhancement & Reno",2122P05_CR00124,114657
Sandwell Metropolitan Borough Council,http://www.sandwell.gov.uk/info/200202/performance_and_spending/1079/payments_over_500,01-Aug-21,Childrens Services Capital,M & H SURVEY SERVICES LIMITED,Childrens Services Capital,4605,Consultancy,2122P05_CR00125,114657
Sandwell Metropolitan Borough Council,http://www.sandwell.gov.uk/info/200202/performance_and_spending/1079/payments_over_500,01-Aug-21,Childrens Services Capital,M & H SURVEY SERVICES LIMITED,Childrens Services Capital,4650,Consultancy,2122P05_CR00126,114657
Sandwell Metropolitan Borough Council,http://www.sandwell.gov.uk/info/200202/performance_and_spending/1079/payments_over_500,01-Aug-21,Childrens Services Capital,POWELL OFFICE EQUIPMENT LIMITED,Childrens Services Capital,4898.6,"CIP - New Construction,Conversion, Enhancement & Reno",2122P05_CR00127,2759
Sandwell Metropolitan Borough Council,http://www.sandwell.gov.uk/info/200202/performance_and_spending/1079/payments_over_500,09-Aug-21,Childrens Services Capital,VIETEC LTD,Childrens Services Capital,5879.46,"CIP - New Construction,Conversion, Enhancement & Reno",2122P05_CR00128,9699
Sandwell Metropolitan Borough Council,http://www.sandwell.gov.uk/info/200202/performance_and_spending/1079/payments_over_500,10-Aug-21,Childrens Services Capital,WSM ENGINEERING FACILITIES LTD,Childrens Services Capital,6744,"CIP - New Construction,Conversion, Enhancement & Reno",2122P05_CR00129,151265
Sandwell Metropolitan Borough Council,http://www.sandwell.gov.uk/info/200202/performance_and_spending/1079/payments_over_500,05-Aug-21,Childrens Services Capital,SHIRELAND COLLEGIATE ACADEMY,Childrens Services Capital,10685,"CIP - New Construction,Conversion, Enhancement & Reno",2122P05_CR00130,74286
Sandwell Metropolitan Borough Council,http://www.sandwell.gov.uk/info/200202/performance_and_spending/1079/payments_over_500,01-Aug-21,Childrens Services Capital,VIETEC LTD,Childrens Services Capital,18735.25,"CIP - New Construction,Conversion, Enhancement & Reno",2122P05_CR00131,9699
Sandwell Metropolitan Borough Council,http://www.sandwell.gov.uk/info/200202/performance_and_spending/1079/payments_over_500,01-Aug-21,Childrens Services Capital,GVAV LTD,Childrens Services Capital,48889.07,"CIP - New Construction,Conversion, Enhancement & Reno",2122P05_CR00132,152431
Sandwell Metropolitan Borough Council,http://www.sandwell.gov.uk/info/200202/performance_and_spending/1079/payments_over_500,01-Aug-21,Childrens Services Capital,POWELL OFFICE EQUIPMENT LIMITED,Childrens Services Capital,88484.31,"CIP - New Construction,Conversion, Enhancement & Reno",2122P05_CR00133,2759
Sandwell Metropolitan Borough Council,http://www.sandwell.gov.uk/info/200202/performance_and_spending/1079/payments_over_500,01-Aug-21,Childrens Services Capital,POWELL OFFICE EQUIPMENT LIMITED,Childrens Services Capital,160444.41,"CIP - New Construction,Conversion, Enhancement & Reno",2122P05_CR00134,2759
Sandwell Metropolitan Borough Council,http://www.sandwell.gov.uk/info/200202/performance_and_spending/1079/payments_over_500,01-Aug-21,Corporate Management,XMA LTD,Corporate Management,898.5,ICT ,2122P05_CR00135,1135462
Sandwell Metropolitan Borough Council,http://www.sandwell.gov.uk/info/200202/performance_and_spending/1079/payments_over_500,13-Aug-21,Housing & Communities,TAYLOR ENGINEERING & FABRICATIONS LTD,Neighbourhoods,702.41,Fire Service Workshops,2122P05_CR00136,87793
Sandwell Metropolitan Borough Council,http://www.sandwell.gov.uk/info/200202/performance_and_spending/1079/payments_over_500,09-Aug-21,Housing & Communities,TERBERG MATEC UK LTD,Neighbourhoods,535.57,Fire Service Workshops,2122P05_CR00137,21235
Sandwell Metropolitan Borough Council,http://www.sandwell.gov.uk/info/200202/performance_and_spending/1079/payments_over_500,13-Aug-21,Housing & Communities,TERBERG MATEC UK LTD,Neighbourhoods,683.21,Fire Service Workshops,2122P05_CR00138,21235
Sandwell Metropolitan Borough Council,http://www.sandwell.gov.uk/info/200202/performance_and_spending/1079/payments_over_500,01-Aug-21,Housing & Communities,TERBERG MATEC UK LTD,Neighbourhoods,924.89,Fire Service Workshops,2122P05_CR00139,21235
Sandwell Metropolitan Borough Council,http://www.sandwell.gov.uk/info/200202/performance_and_spending/1079/payments_over_500,04-Aug-21,Housing & Communities,TERBERG MATEC UK LTD,Neighbourhoods,1648.93,Fire Service Workshops,2122P05_CR00140,21235
Sandwell Metropolitan Borough Council,http://www.sandwell.gov.uk/info/200202/performance_and_spending/1079/payments_over_500,19-Aug-21,Housing & Communities,TERBERG MATEC UK LTD,Neighbourhoods,1648.93,Fire Service Workshops,2122P05_CR00141,21235
Sandwell Metropolitan Borough Council,http://www.sandwell.gov.uk/info/200202/performance_and_spending/1079/payments_over_500,01-Aug-21,Housing & Communities,TERBERG MATEC UK LTD,Neighbourhoods,1661.58,Fire Service Workshops,2122P05_CR00142,21235
Sandwell Metropolitan Borough Council,http://www.sandwell.gov.uk/info/200202/performance_and_spending/1079/payments_over_500,03-Aug-21,Housing & Communities,DENNIS EAGLE LTD,Neighbourhoods,500,Fire Service Workshops,2122P05_CR00143,1004865
Sandwell Metropolitan Borough Council,http://www.sandwell.gov.uk/info/200202/performance_and_spending/1079/payments_over_500,01-Aug-21,Housing & Communities,RVW PUGH LTD,Neighbourhoods,517.13,Fire Service Workshops,2122P05_CR00144,5902
Sandwell Metropolitan Borough Council,http://www.sandwell.gov.uk/info/200202/performance_and_spending/1079/payments_over_500,04-Aug-21,Housing & Communities,RYGOR COMMERCIALS LTD,Neighbourhoods,524.01,Fire Service Workshops,2122P05_CR00145,3345
Sandwell Metropolitan Borough Council,http://www.sandwell.gov.uk/info/200202/performance_and_spending/1079/payments_over_500,01-Aug-21,Housing & Communities,NORTHGATE VEHICLE HIRE (WEST MIDLANDS) LTD,Neighbourhoods,531.03,Vehicle Hiring Charges,2122P05_CR00146,1057676
Sandwell Metropolitan Borough Council,http://www.sandwell.gov.uk/info/200202/performance_and_spending/1079/payments_over_500,03-Aug-21,Housing & Communities,TH WHITE LIMITED,Neighbourhoods,572.2,Fire Service Workshops,2122P05_CR00147,1774713
Sandwell Metropolitan Borough Council,http://www.sandwell.gov.uk/info/200202/performance_and_spending/1079/payments_over_500,18-Aug-21,Housing & Communities,PARTSPLUS,Neighbourhoods,603.52,Fire Service Workshops,2122P05_CR00148,1087922
Sandwell Metropolitan Borough Council,http://www.sandwell.gov.uk/info/200202/performance_and_spending/1079/payments_over_500,01-Aug-21,Housing & Communities,TEL SERVICES,Neighbourhoods,624.8,Fire Service Workshops,2122P05_CR00149,84262
Sandwell Metropolitan Borough Council,http://www.sandwell.gov.uk/info/200202/performance_and_spending/1079/payments_over_500,01-Aug-21,Housing & Communities,GUNN JCB LTD,Neighbourhoods,645,Fire Service Workshops,2122P05_CR00150,1015439
Sandwell Metropolitan Borough Council,http://www.sandwell.gov.uk/info/200202/performance_and_spending/1079/payments_over_500,13-Aug-21,Housing & Communities,H L SMITH (TRANSMISSIONS) LTD,Neighbourhoods,660,Fire Service Workshops,2122P05_CR00151,1032886
Sandwell Metropolitan Borough Council,http://www.sandwell.gov.uk/info/200202/performance_and_spending/1079/payments_over_500,16-Aug-21,Housing & Communities,TH WHITE LIMITED,Neighbourhoods,706.24,Fire Service Workshops,2122P05_CR00152,1774713
Sandwell Metropolitan Borough Council,http://www.sandwell.gov.uk/info/200202/performance_and_spending/1079/payments_over_500,06-Aug-21,Housing & Communities,TH WHITE LIMITED,Neighbourhoods,718.31,Fire Service Workshops,2122P05_CR00153,1774713
Sandwell Metropolitan Borough Council,http://www.sandwell.gov.uk/info/200202/performance_and_spending/1079/payments_over_500,01-Aug-21,Housing & Communities,GREENHOUS COMMERCIALS LTD,Neighbourhoods,738.2,Fire Service Workshops,2122P05_CR00154,1141434
Sandwell Metropolitan Borough Council,http://www.sandwell.gov.uk/info/200202/performance_and_spending/1079/payments_over_500,02-Aug-21,Housing & Communities,ADT FIRE & SECURITY PLC,Neighbourhoods,744.43,Security,2122P05_CR00155,1115015
Sandwell Metropolitan Borough Council,http://www.sandwell.gov.uk/info/200202/performance_and_spending/1079/payments_over_500,02-Aug-21,Housing & Communities,DENNIS EAGLE LTD,Neighbourhoods,772.88,Fire Service Workshops,2122P05_CR00156,1004865
Sandwell Metropolitan Borough Council,http://www.sandwell.gov.uk/info/200202/performance_and_spending/1079/payments_over_500,01-Aug-21,Housing & Communities,TH WHITE LIMITED,Neighbourhoods,785.97,Repairs & Maintenance,2122P05_CR00157,1774713
Sandwell Metropolitan Borough Council,http://www.sandwell.gov.uk/info/200202/performance_and_spending/1079/payments_over_500,04-Aug-21,Housing & Communities,DENNIS EAGLE LTD,Neighbourhoods,834.5,Fire Service Workshops,2122P05_CR00158,1004865
Sandwell Metropolitan Borough Council,http://www.sandwell.gov.uk/info/200202/performance_and_spending/1079/payments_over_500,20-Aug-21,Housing & Communities,DENNIS EAGLE LTD,Neighbourhoods,849.68,Fire Service Workshops,2122P05_CR00159,1004865
Sandwell Metropolitan Borough Council,http://www.sandwell.gov.uk/info/200202/performance_and_spending/1079/payments_over_500,06-Aug-21,Housing & Communities,DENNIS EAGLE LTD,Neighbourhoods,851.64,Fire Service Workshops,2122P05_CR00160,1004865
Sandwell Metropolitan Borough Council,http://www.sandwell.gov.uk/info/200202/performance_and_spending/1079/payments_over_500,16-Aug-21,Housing & Communities,DENNIS EAGLE LTD,Neighbourhoods,1102.15,Fire Service Workshops,2122P05_CR00161,1004865
Sandwell Metropolitan Borough Council,http://www.sandwell.gov.uk/info/200202/performance_and_spending/1079/payments_over_500,03-Aug-21,Housing & Communities,OAKLEYS LTD,Neighbourhoods,1106.48,Repairs & Maintenance,2122P05_CR00162,1598115
Sandwell Metropolitan Borough Council,http://www.sandwell.gov.uk/info/200202/performance_and_spending/1079/payments_over_500,01-Aug-21,Housing & Communities,N.D. BROWN LIMITED,Neighbourhoods,1130,Vehicle Hiring Charges,2122P05_CR00163,1129124
Sandwell Metropolitan Borough Council,http://www.sandwell.gov.uk/info/200202/performance_and_spending/1079/payments_over_500,09-Aug-21,Housing & Communities,SEDDONS (PLANT AND ENGINEERS) LIMITED,Neighbourhoods,1140.32,Repairs & Maintenance,2122P05_CR00164,1359495
Sandwell Metropolitan Borough Council,http://www.sandwell.gov.uk/info/200202/performance_and_spending/1079/payments_over_500,24-Aug-21,Housing & Communities,DENNIS EAGLE LTD,Neighbourhoods,1279.43,Fire Service Workshops,2122P05_CR00165,1004865
Sandwell Metropolitan Borough Council,http://www.sandwell.gov.uk/info/200202/performance_and_spending/1079/payments_over_500,01-Aug-21,Housing & Communities,JAMES LISTER & SONS LTD,Neighbourhoods,1379.56,Fire Service Workshops,2122P05_CR00166,1021821
Sandwell Metropolitan Borough Council,http://www.sandwell.gov.uk/info/200202/performance_and_spending/1079/payments_over_500,01-Aug-21,Housing & Communities,DENNIS EAGLE LTD,Neighbourhoods,1411.45,Fire Service Workshops,2122P05_CR00167,1004865
Sandwell Metropolitan Borough Council,http://www.sandwell.gov.uk/info/200202/performance_and_spending/1079/payments_over_500,01-Aug-21,Housing & Communities,RVW PUGH LTD,Neighbourhoods,1452.17,Fire Service Workshops,2122P05_CR00168,5902
Sandwell Metropolitan Borough Council,http://www.sandwell.gov.uk/info/200202/performance_and_spending/1079/payments_over_500,02-Aug-21,Housing & Communities,TH WHITE LIMITED,Neighbourhoods,1964.94,Repairs & Maintenance,2122P05_CR00169,1774713
Sandwell Metropolitan Borough Council,http://www.sandwell.gov.uk/info/200202/performance_and_spending/1079/payments_over_500,23-Aug-21,Housing & Communities,DENNIS EAGLE LTD,Neighbourhoods,2539.54,Fire Service Workshops,2122P05_CR00170,1004865
Sandwell Metropolitan Borough Council,http://www.sandwell.gov.uk/info/200202/performance_and_spending/1079/payments_over_500,17-Aug-21,Housing & Communities,COOPER MOBILE SERVICES LTD,Neighbourhoods,4805.87,Fire Service Workshops,2122P05_CR00171,1304378
Sandwell Metropolitan Borough Council,http://www.sandwell.gov.uk/info/200202/performance_and_spending/1079/payments_over_500,03-Aug-21,Housing & Communities,DENNIS EAGLE LTD,Neighbourhoods,5106.08,Fire Service Workshops,2122P05_CR00172,1004865
Sandwell Metropolitan Borough Council,http://www.sandwell.gov.uk/info/200202/performance_and_spending/1079/payments_over_500,12-Aug-21,Housing & Communities,WATERFALL CAR WASH & VALETING CENTRE,Neighbourhoods,500,Repairs & Maintenance,2122P05_CR00173,108782
Sandwell Metropolitan Borough Council,http://www.sandwell.gov.uk/info/200202/performance_and_spending/1079/payments_over_500,01-Aug-21,Housing & Communities,DAYS RENTAL,Neighbourhoods,518.94,Vehicle Hiring Charges,2122P05_CR00174,128169
Sandwell Metropolitan Borough Council,http://www.sandwell.gov.uk/info/200202/performance_and_spending/1079/payments_over_500,01-Aug-21,Housing & Communities,DAYS RENTAL,Neighbourhoods,518.94,Vehicle Hiring Charges,2122P05_CR00175,128169
Sandwell Metropolitan Borough Council,http://www.sandwell.gov.uk/info/200202/performance_and_spending/1079/payments_over_500,01-Aug-21,Housing & Communities,MOTUS COMMERCIALS HALESOWEN,Neighbourhoods,524.78,Fire Service Workshops,2122P05_CR00176,142253
Sandwell Metropolitan Borough Council,http://www.sandwell.gov.uk/info/200202/performance_and_spending/1079/payments_over_500,01-Aug-21,Housing & Communities,DAWSONGROUP VANS,Neighbourhoods,528.55,Vehicle Hiring Charges,2122P05_CR00177,151498
Sandwell Metropolitan Borough Council,http://www.sandwell.gov.uk/info/200202/performance_and_spending/1079/payments_over_500,01-Aug-21,Housing & Communities,DAWSONGROUP VANS,Neighbourhoods,528.55,Vehicle Hiring Charges,2122P05_CR00178,151498
Sandwell Metropolitan Borough Council,http://www.sandwell.gov.uk/info/200202/performance_and_spending/1079/payments_over_500,10-Aug-21,Housing & Communities,ROBINS & DAY PARTS WEST MIDLANDS,Neighbourhoods,533.7,Fire Service Workshops,2122P05_CR00179,118812
Sandwell Metropolitan Borough Council,http://www.sandwell.gov.uk/info/200202/performance_and_spending/1079/payments_over_500,01-Aug-21,Housing & Communities,PUGH'S PLANT HIRE,Neighbourhoods,600,Vehicle Hiring Charges,2122P05_CR00180,147204
Sandwell Metropolitan Borough Council,http://www.sandwell.gov.uk/info/200202/performance_and_spending/1079/payments_over_500,12-Aug-21,Housing & Communities,PUGH'S PLANT HIRE,Neighbourhoods,600,Vehicle Hiring Charges,2122P05_CR00181,147204
Sandwell Metropolitan Borough Council,http://www.sandwell.gov.uk/info/200202/performance_and_spending/1079/payments_over_500,01-Aug-21,Housing & Communities,DIRECT TYRE MANAGEMENT LTD,Neighbourhoods,676.76,Tyres,2122P05_CR00182,134146
Sandwell Metropolitan Borough Council,http://www.sandwell.gov.uk/info/200202/performance_and_spending/1079/payments_over_500,01-Aug-21,Housing & Communities,UNI-POWER,Neighbourhoods,710,Repairs & Maintenance,2122P05_CR00183,137493
Sandwell Metropolitan Borough Council,http://www.sandwell.gov.uk/info/200202/performance_and_spending/1079/payments_over_500,02-Aug-21,Housing & Communities,DIRECT TYRE MANAGEMENT LTD,Neighbourhoods,714.02,Tyres,2122P05_CR00184,134146
Sandwell Metropolitan Borough Council,http://www.sandwell.gov.uk/info/200202/performance_and_spending/1079/payments_over_500,13-Aug-21,Housing & Communities,UNI-POWER,Neighbourhoods,727,Repairs & Maintenance,2122P05_CR00185,137493
Sandwell Metropolitan Borough Council,http://www.sandwell.gov.uk/info/200202/performance_and_spending/1079/payments_over_500,18-Aug-21,Housing & Communities,DIGRAPH TRANSPORT SUPPLIES LIMITED,Neighbourhoods,750,Fire Service Workshops,2122P05_CR00186,119139
Sandwell Metropolitan Borough Council,http://www.sandwell.gov.uk/info/200202/performance_and_spending/1079/payments_over_500,11-Aug-21,Housing & Communities,ACORN MITSUBISHI,Neighbourhoods,870.79,Fire Service Workshops,2122P05_CR00187,133095
Sandwell Metropolitan Borough Council,http://www.sandwell.gov.uk/info/200202/performance_and_spending/1079/payments_over_500,01-Aug-21,Housing & Communities,DAYS RENTAL,Neighbourhoods,890.94,Vehicle Hiring Charges,2122P05_CR00188,128169
Sandwell Metropolitan Borough Council,http://www.sandwell.gov.uk/info/200202/performance_and_spending/1079/payments_over_500,01-Aug-21,Housing & Communities,DAYS RENTAL,Neighbourhoods,890.94,Vehicle Hiring Charges,2122P05_CR00189,128169
Sandwell Metropolitan Borough Council,http://www.sandwell.gov.uk/info/200202/performance_and_spending/1079/payments_over_500,01-Aug-21,Housing & Communities,DAYS RENTAL,Neighbourhoods,890.94,Vehicle Hiring Charges,2122P05_CR00190,128169
Sandwell Metropolitan Borough Council,http://www.sandwell.gov.uk/info/200202/performance_and_spending/1079/payments_over_500,01-Aug-21,Housing & Communities,UNI-POWER,Neighbourhoods,914.27,Repairs & Maintenance,2122P05_CR00191,137493
Sandwell Metropolitan Borough Council,http://www.sandwell.gov.uk/info/200202/performance_and_spending/1079/payments_over_500,01-Aug-21,Housing & Communities,PHS BESAFE,Neighbourhoods,1054.83,Protective Clothing & Uniforms,2122P05_CR00192,124613
Sandwell Metropolitan Borough Council,http://www.sandwell.gov.uk/info/200202/performance_and_spending/1079/payments_over_500,20-Aug-21,Housing & Communities,GEESINK NORBA LTD,Neighbourhoods,1154.86,Fire Service Workshops,2122P05_CR00193,102799
Sandwell Metropolitan Borough Council,http://www.sandwell.gov.uk/info/200202/performance_and_spending/1079/payments_over_500,04-Aug-21,Housing & Communities,TRUCKSTOP-HAWKES,Neighbourhoods,1260,Subscriptions,2122P05_CR00194,109408
Sandwell Metropolitan Borough Council,http://www.sandwell.gov.uk/info/200202/performance_and_spending/1079/payments_over_500,24-Aug-21,Housing & Communities,GEESINK NORBA LTD,Neighbourhoods,1418.83,Fire Service Workshops,2122P05_CR00195,102799
Sandwell Metropolitan Borough Council,http://www.sandwell.gov.uk/info/200202/performance_and_spending/1079/payments_over_500,02-Aug-21,Housing & Communities,DIRECT TYRE MANAGEMENT LTD,Neighbourhoods,1601.98,Tyres,2122P05_CR00196,134146
Sandwell Metropolitan Borough Council,http://www.sandwell.gov.uk/info/200202/performance_and_spending/1079/payments_over_500,01-Aug-21,Housing & Communities,BICKFORD TRUCK HIRE LTD,Neighbourhoods,1680,Vehicle Hiring Charges,2122P05_CR00197,126698
Sandwell Metropolitan Borough Council,http://www.sandwell.gov.uk/info/200202/performance_and_spending/1079/payments_over_500,01-Aug-21,Housing & Communities,HADLEYS STEAM CLEANING LTD,Neighbourhoods,2104,Repairs & Maintenance,2122P05_CR00198,132536
Sandwell Metropolitan Borough Council,http://www.sandwell.gov.uk/info/200202/performance_and_spending/1079/payments_over_500,01-Aug-21,Housing & Communities,WESTON MOTORS LIMITED,Neighbourhoods,2808.54,Fire Service Workshops,2122P05_CR00199,127787
Sandwell Metropolitan Borough Council,http://www.sandwell.gov.uk/info/200202/performance_and_spending/1079/payments_over_500,18-Aug-21,Housing & Communities,MARSHALL PEUGEOT PETERBOROUGH,Neighbourhoods,22266.7,Licences & Test Fees,2122P05_CR00200,147845
Sandwell Metropolitan Borough Council,http://www.sandwell.gov.uk/info/200202/performance_and_spending/1079/payments_over_500,01-Aug-21,Housing & Communities,TRH WALSALL LTD,Neighbourhoods,539.63,Rents,2122P05_CR00201,85648
Sandwell Metropolitan Borough Council,http://www.sandwell.gov.uk/info/200202/performance_and_spending/1079/payments_over_500,01-Aug-21,Housing & Communities,TRH WALSALL LTD,Neighbourhoods,595.92,Rents,2122P05_CR00202,85648
Sandwell Metropolitan Borough Council,http://www.sandwell.gov.uk/info/200202/performance_and_spending/1079/payments_over_500,01-Aug-21,Housing & Communities,TRH WALSALL LTD,Neighbourhoods,687.6,Rents,2122P05_CR00203,85648
Sandwell Metropolitan Borough Council,http://www.sandwell.gov.uk/info/200202/performance_and_spending/1079/payments_over_500,01-Aug-21,Housing & Communities,TRH WALSALL LTD,Neighbourhoods,816.76,Rents,2122P05_CR00204,85648
Sandwell Metropolitan Borough Council,http://www.sandwell.gov.uk/info/200202/performance_and_spending/1079/payments_over_500,01-Aug-21,Housing & Communities,TRH WALSALL LTD,Neighbourhoods,816.76,Rents,2122P05_CR00205,85648
Sandwell Metropolitan Borough Council,http://www.sandwell.gov.uk/info/200202/performance_and_spending/1079/payments_over_500,01-Aug-21,Housing & Communities,TRH WALSALL LTD,Neighbourhoods,933.52,Rents,2122P05_CR00206,85648
Sandwell Metropolitan Borough Council,http://www.sandwell.gov.uk/info/200202/performance_and_spending/1079/payments_over_500,01-Aug-21,Housing & Communities,TRH WALSALL LTD,Neighbourhoods,1400.28,Rents,2122P05_CR00207,85648
Sandwell Metropolitan Borough Council,http://www.sandwell.gov.uk/info/200202/performance_and_spending/1079/payments_over_500,05-Aug-21,Housing & Communities,MIDLAND FORESTRY LIMITED,Neighbourhoods,609,Externally Purchased Professional Services ,2122P05_CR00208,45812
Sandwell Metropolitan Borough Council,http://www.sandwell.gov.uk/info/200202/performance_and_spending/1079/payments_over_500,10-Aug-21,Housing & Communities,MIDLAND FORESTRY LIMITED,Neighbourhoods,780,Externally Purchased Professional Services ,2122P05_CR00209,45812
Sandwell Metropolitan Borough Council,http://www.sandwell.gov.uk/info/200202/performance_and_spending/1079/payments_over_500,05-Aug-21,Housing & Communities,MIDLAND FORESTRY LIMITED,Neighbourhoods,1044,Externally Purchased Professional Services ,2122P05_CR00210,45812
Sandwell Metropolitan Borough Council,http://www.sandwell.gov.uk/info/200202/performance_and_spending/1079/payments_over_500,20-Aug-21,Housing & Communities,MIDLAND FORESTRY LIMITED,Neighbourhoods,3332,Externally Purchased Professional Services ,2122P05_CR00211,45812
Sandwell Metropolitan Borough Council,http://www.sandwell.gov.uk/info/200202/performance_and_spending/1079/payments_over_500,03-Aug-21,Housing & Communities,SERCO LIMITED,Neighbourhoods,728.37,Waste Disposal Charges,2122P05_CR00212,53771
Sandwell Metropolitan Borough Council,http://www.sandwell.gov.uk/info/200202/performance_and_spending/1079/payments_over_500,01-Aug-21,Housing & Communities,A E CHAPMAN & CO (OLD HILL) LTD,Neighbourhoods,808.04,Advertising & Publicity,2122P05_CR00213,77001665
Sandwell Metropolitan Borough Council,http://www.sandwell.gov.uk/info/200202/performance_and_spending/1079/payments_over_500,01-Aug-21,Housing & Communities,HOME FARM NURSERIES (PINVIN) LIMITED,Neighbourhoods,993.14,Operational Services ,2122P05_CR00214,77003445
Sandwell Metropolitan Borough Council,http://www.sandwell.gov.uk/info/200202/performance_and_spending/1079/payments_over_500,24-Aug-21,Housing & Communities,A E CHAPMAN & CO (OLD HILL) LTD,Neighbourhoods,1394.39,Equipment & Furniture ,2122P05_CR00215,77001665
Sandwell Metropolitan Borough Council,http://www.sandwell.gov.uk/info/200202/performance_and_spending/1079/payments_over_500,18-Aug-21,Housing & Communities,HAYSTOUN CONSTRUCTION LTD,Neighbourhoods,1656.75,Operational Services ,2122P05_CR00216,11849
Sandwell Metropolitan Borough Council,http://www.sandwell.gov.uk/info/200202/performance_and_spending/1079/payments_over_500,01-Aug-21,Housing & Communities,HOME FARM NURSERIES (PINVIN) LIMITED,Neighbourhoods,1747.22,Operational Services ,2122P05_CR00217,77003445
Sandwell Metropolitan Borough Council,http://www.sandwell.gov.uk/info/200202/performance_and_spending/1079/payments_over_500,12-Aug-21,Housing & Communities,HAYSTOUN CONSTRUCTION LTD,Neighbourhoods,3240,Operational Services ,2122P05_CR00218,11849
Sandwell Metropolitan Borough Council,http://www.sandwell.gov.uk/info/200202/performance_and_spending/1079/payments_over_500,01-Aug-21,Housing & Communities,BROXAP LIMITED,Neighbourhoods,9445,Operational Services ,2122P05_CR00219,99472
Sandwell Metropolitan Borough Council,http://www.sandwell.gov.uk/info/200202/performance_and_spending/1079/payments_over_500,12-Aug-21,Housing & Communities,HAYSTOUN CONSTRUCTION LTD,Neighbourhoods,17214.87,Operational Services ,2122P05_CR00220,11849
Sandwell Metropolitan Borough Council,http://www.sandwell.gov.uk/info/200202/performance_and_spending/1079/payments_over_500,01-Aug-21,Housing & Communities,P CASEY LTD,Housing & Communities,136735.46,"CIP - New Construction,Conversion, Enhancement & Reno",2122P05_CR00221,149276
Sandwell Metropolitan Borough Council,http://www.sandwell.gov.uk/info/200202/performance_and_spending/1079/payments_over_500,10-Aug-21,Housing & Communities,INTERCLASS PLC,Housing & Communities,160767.4,"CIP - New Construction,Conversion, Enhancement & Reno",2122P05_CR00222,77001959
Sandwell Metropolitan Borough Council,http://www.sandwell.gov.uk/info/200202/performance_and_spending/1079/payments_over_500,18-Aug-21,Housing & Communities,WATES CONSTRUCTION LTD                                 01,Housing & Communities,1246600.96,"CIP - New Construction,Conversion, Enhancement & Reno",2122P05_CR00223,77000882
Sandwell Metropolitan Borough Council,http://www.sandwell.gov.uk/info/200202/performance_and_spending/1079/payments_over_500,04-Aug-21,Housing & Communities,SERCO LIMITED,Neighbourhoods,1548625.84,Waste Disposal Charges,2122P05_CR00224,53771
Sandwell Metropolitan Borough Council,http://www.sandwell.gov.uk/info/200202/performance_and_spending/1079/payments_over_500,04-Aug-21,Housing & Communities,WATES CONSTRUCTION LTD                                 01,Housing & Communities,3105726.95,"CIP - New Construction,Conversion, Enhancement & Reno",2122P05_CR00225,77000882
Sandwell Metropolitan Borough Council,http://www.sandwell.gov.uk/info/200202/performance_and_spending/1079/payments_over_500,24-Aug-21,Housing & Communities,HILL INTERIOR CONTRACTS LTD,Neighbourhoods,21040.5,Building Maintenance & Improvements,2122P05_CR00226,17158
Sandwell Metropolitan Borough Council,http://www.sandwell.gov.uk/info/200202/performance_and_spending/1079/payments_over_500,23-Aug-21,Housing & Communities,SHARP,Neighbourhoods,4402.44,Rents,2122P05_CR00227,8280972
Sandwell Metropolitan Borough Council,http://www.sandwell.gov.uk/info/200202/performance_and_spending/1079/payments_over_500,23-Aug-21,Housing & Communities,SHARP,Neighbourhoods,4402.44,Rents,2122P05_CR00228,8280972
Sandwell Metropolitan Borough Council,http://www.sandwell.gov.uk/info/200202/performance_and_spending/1079/payments_over_500,01-Aug-21,Housing & Communities,SHARP,Neighbourhoods,4402.44,Rents,2122P05_CR00229,8280972
Sandwell Metropolitan Borough Council,http://www.sandwell.gov.uk/info/200202/performance_and_spending/1079/payments_over_500,01-Aug-21,Housing & Communities,SHARP,Neighbourhoods,4402.44,Rents,2122P05_CR00230,8280972
Sandwell Metropolitan Borough Council,http://www.sandwell.gov.uk/info/200202/performance_and_spending/1079/payments_over_500,01-Aug-21,Housing & Communities,SHARP,Neighbourhoods,4402.44,Rents,2122P05_CR00231,8280972
Sandwell Metropolitan Borough Council,http://www.sandwell.gov.uk/info/200202/performance_and_spending/1079/payments_over_500,01-Aug-21,Housing & Communities,SHARP,Neighbourhoods,4402.44,Rents,2122P05_CR00232,8280972
Sandwell Metropolitan Borough Council,http://www.sandwell.gov.uk/info/200202/performance_and_spending/1079/payments_over_500,01-Aug-21,Housing & Communities,PRO-SERVICING LTD,Neighbourhoods,585,Rents & Accomodation Charges,2122P05_CR00233,153485
Sandwell Metropolitan Borough Council,http://www.sandwell.gov.uk/info/200202/performance_and_spending/1079/payments_over_500,01-Aug-21,Housing & Communities,DLM DISTRIBUTION LIMITED,Neighbourhoods,611,Postages,2122P05_CR00234,77838
Sandwell Metropolitan Borough Council,http://www.sandwell.gov.uk/info/200202/performance_and_spending/1079/payments_over_500,01-Aug-21,Housing & Communities,REDACTED PERSONAL DATA,Neighbourhoods,1300,Bereavement Expenses,2122P05_CR00235,REDACTED PERSONAL DATA
Sandwell Metropolitan Borough Council,http://www.sandwell.gov.uk/info/200202/performance_and_spending/1079/payments_over_500,03-Aug-21,Housing & Communities,REDACTED PERSONAL DATA,Neighbourhoods,1078,Building Maintenance & Improvements,2122P05_CR00236,REDACTED PERSONAL DATA
Sandwell Metropolitan Borough Council,http://www.sandwell.gov.uk/info/200202/performance_and_spending/1079/payments_over_500,01-Aug-21,Housing & Communities,SPLINTER STUDIOS,Neighbourhoods,500,Civic Events,2122P05_CR00237,141799
Sandwell Metropolitan Borough Council,http://www.sandwell.gov.uk/info/200202/performance_and_spending/1079/payments_over_500,01-Aug-21,Housing & Communities,PROFILE SECURITY SERVICES LTD,Neighbourhoods,502.46,Security,2122P05_CR00238,131253
Sandwell Metropolitan Borough Council,http://www.sandwell.gov.uk/info/200202/performance_and_spending/1079/payments_over_500,01-Aug-21,Housing & Communities,WYNNSTAY (AGRICULTURAL SUPPLIES) LIMITED,Neighbourhoods,526.51,Materials & Consumables,2122P05_CR00239,121165
Sandwell Metropolitan Borough Council,http://www.sandwell.gov.uk/info/200202/performance_and_spending/1079/payments_over_500,01-Aug-21,Housing & Communities,WYNNSTAY (AGRICULTURAL SUPPLIES) LIMITED,Neighbourhoods,527.64,Materials & Consumables,2122P05_CR00240,121165
Sandwell Metropolitan Borough Council,http://www.sandwell.gov.uk/info/200202/performance_and_spending/1079/payments_over_500,01-Aug-21,Housing & Communities,SHERRIFFS FOODS LIMITED T/A FOSTERS,Neighbourhoods,534,Materials & Consumables,2122P05_CR00241,139776
Sandwell Metropolitan Borough Council,http://www.sandwell.gov.uk/info/200202/performance_and_spending/1079/payments_over_500,01-Aug-21,Housing & Communities,CONTRACT LETTINGS LTD,Neighbourhoods,541.8,Rents,2122P05_CR00242,76625
Sandwell Metropolitan Borough Council,http://www.sandwell.gov.uk/info/200202/performance_and_spending/1079/payments_over_500,01-Aug-21,Housing & Communities,CONTRACT LETTINGS LTD,Neighbourhoods,541.8,Rents,2122P05_CR00243,76625
Sandwell Metropolitan Borough Council,http://www.sandwell.gov.uk/info/200202/performance_and_spending/1079/payments_over_500,21-Aug-21,Housing & Communities,FILMS IN A FLASH,Neighbourhoods,550,Civic Events,2122P05_CR00244,154207
Sandwell Metropolitan Borough Council,http://www.sandwell.gov.uk/info/200202/performance_and_spending/1079/payments_over_500,01-Aug-21,Housing & Communities,CITRON HYGIENE UK LTD,Neighbourhoods,554.88,Materials & Consumables,2122P05_CR00245,140849
Sandwell Metropolitan Borough Council,http://www.sandwell.gov.uk/info/200202/performance_and_spending/1079/payments_over_500,01-Aug-21,Housing & Communities,CONTRACT LETTINGS LTD,Neighbourhoods,559.86,Rents,2122P05_CR00246,76625
Sandwell Metropolitan Borough Council,http://www.sandwell.gov.uk/info/200202/performance_and_spending/1079/payments_over_500,01-Aug-21,Housing & Communities,CONTRACT LETTINGS LTD,Neighbourhoods,559.86,Rents,2122P05_CR00247,76625
Sandwell Metropolitan Borough Council,http://www.sandwell.gov.uk/info/200202/performance_and_spending/1079/payments_over_500,01-Aug-21,Housing & Communities,PROFILE SECURITY SERVICES LTD,Neighbourhoods,570.36,Security,2122P05_CR00248,131253
Sandwell Metropolitan Borough Council,http://www.sandwell.gov.uk/info/200202/performance_and_spending/1079/payments_over_500,01-Aug-21,Housing & Communities,RIGHT TO CARE LTD.,Neighbourhoods,571.43,Rents,2122P05_CR00249,133426
Sandwell Metropolitan Borough Council,http://www.sandwell.gov.uk/info/200202/performance_and_spending/1079/payments_over_500,01-Aug-21,Housing & Communities,BIRMINGHAM INTERNATIONAL JAZZ & BLUES FESTIVAL LIMITED,Neighbourhoods,595,Civic Events,2122P05_CR00250,87922
Sandwell Metropolitan Borough Council,http://www.sandwell.gov.uk/info/200202/performance_and_spending/1079/payments_over_500,01-Aug-21,Housing & Communities,JAMES HIPKISS (FANCY FRIES),Neighbourhoods,600,Rents & Accomodation Charges,2122P05_CR00251,154154
Sandwell Metropolitan Borough Council,http://www.sandwell.gov.uk/info/200202/performance_and_spending/1079/payments_over_500,01-Aug-21,Housing & Communities,RIGHT TO CARE LTD.,Neighbourhoods,607.14,Rents,2122P05_CR00252,133426
Sandwell Metropolitan Borough Council,http://www.sandwell.gov.uk/info/200202/performance_and_spending/1079/payments_over_500,12-Aug-21,Housing & Communities,VENDAID LTD,Neighbourhoods,611.94,Materials & Consumables,2122P05_CR00253,1045695
Sandwell Metropolitan Borough Council,http://www.sandwell.gov.uk/info/200202/performance_and_spending/1079/payments_over_500,12-Aug-21,Housing & Communities,TREDOMEN FARM LTD,Neighbourhoods,620,Externally Purchased Professional Services ,2122P05_CR00254,154259
Sandwell Metropolitan Borough Council,http://www.sandwell.gov.uk/info/200202/performance_and_spending/1079/payments_over_500,06-Aug-21,Housing & Communities,CERTAS ENERGY LIMITED,Neighbourhoods,626.67,Fuel ,2122P05_CR00255,80421
Sandwell Metropolitan Borough Council,http://www.sandwell.gov.uk/info/200202/performance_and_spending/1079/payments_over_500,01-Aug-21,Housing & Communities,BEECHWOOD TREES & LANDSCAPE LTD,Neighbourhoods,635,Externally Purchased Professional Services ,2122P05_CR00256,93287
Sandwell Metropolitan Borough Council,http://www.sandwell.gov.uk/info/200202/performance_and_spending/1079/payments_over_500,01-Aug-21,Housing & Communities,BEECHWOOD TREES & LANDSCAPE LTD,Neighbourhoods,655,Externally Purchased Professional Services ,2122P05_CR00257,93287
Sandwell Metropolitan Borough Council,http://www.sandwell.gov.uk/info/200202/performance_and_spending/1079/payments_over_500,01-Aug-21,Housing & Communities,CONTRACT LETTINGS LTD,Neighbourhoods,678.6,Rents,2122P05_CR00258,76625
Sandwell Metropolitan Borough Council,http://www.sandwell.gov.uk/info/200202/performance_and_spending/1079/payments_over_500,01-Aug-21,Housing & Communities,CONTRACT LETTINGS LTD,Neighbourhoods,678.6,Rents,2122P05_CR00259,76625
Sandwell Metropolitan Borough Council,http://www.sandwell.gov.uk/info/200202/performance_and_spending/1079/payments_over_500,01-Aug-21,Housing & Communities,CONTRACT LETTINGS LTD,Neighbourhoods,678.6,Rents,2122P05_CR00260,76625
Sandwell Metropolitan Borough Council,http://www.sandwell.gov.uk/info/200202/performance_and_spending/1079/payments_over_500,01-Aug-21,Housing & Communities,CONTRACT LETTINGS LTD,Neighbourhoods,678.6,Rents,2122P05_CR00261,76625
Sandwell Metropolitan Borough Council,http://www.sandwell.gov.uk/info/200202/performance_and_spending/1079/payments_over_500,01-Aug-21,Housing & Communities,CONTRACT LETTINGS LTD,Neighbourhoods,678.6,Rents,2122P05_CR00262,76625
Sandwell Metropolitan Borough Council,http://www.sandwell.gov.uk/info/200202/performance_and_spending/1079/payments_over_500,01-Aug-21,Housing & Communities,CONTRACT LETTINGS LTD,Neighbourhoods,678.6,Rents,2122P05_CR00263,76625
Sandwell Metropolitan Borough Council,http://www.sandwell.gov.uk/info/200202/performance_and_spending/1079/payments_over_500,01-Aug-21,Housing & Communities,KEYCRAFT,Neighbourhoods,695.56,Materials & Consumables,2122P05_CR00264,1064066
Sandwell Metropolitan Borough Council,http://www.sandwell.gov.uk/info/200202/performance_and_spending/1079/payments_over_500,01-Aug-21,Housing & Communities,CONTRACT LETTINGS LTD,Neighbourhoods,701.22,Rents,2122P05_CR00265,76625
Sandwell Metropolitan Borough Council,http://www.sandwell.gov.uk/info/200202/performance_and_spending/1079/payments_over_500,01-Aug-21,Housing & Communities,CONTRACT LETTINGS LTD,Neighbourhoods,701.22,Rents,2122P05_CR00266,76625
Sandwell Metropolitan Borough Council,http://www.sandwell.gov.uk/info/200202/performance_and_spending/1079/payments_over_500,01-Aug-21,Housing & Communities,CONTRACT LETTINGS LTD,Neighbourhoods,701.22,Rents,2122P05_CR00267,76625
Sandwell Metropolitan Borough Council,http://www.sandwell.gov.uk/info/200202/performance_and_spending/1079/payments_over_500,01-Aug-21,Housing & Communities,CONTRACT LETTINGS LTD,Neighbourhoods,701.22,Rents,2122P05_CR00268,76625
Sandwell Metropolitan Borough Council,http://www.sandwell.gov.uk/info/200202/performance_and_spending/1079/payments_over_500,01-Aug-21,Housing & Communities,CONTRACT LETTINGS LTD,Neighbourhoods,701.22,Rents,2122P05_CR00269,76625
Sandwell Metropolitan Borough Council,http://www.sandwell.gov.uk/info/200202/performance_and_spending/1079/payments_over_500,01-Aug-21,Housing & Communities,CONTRACT LETTINGS LTD,Neighbourhoods,701.22,Rents,2122P05_CR00270,76625
Sandwell Metropolitan Borough Council,http://www.sandwell.gov.uk/info/200202/performance_and_spending/1079/payments_over_500,01-Aug-21,Housing & Communities,AA MEDIA LTD T/A VISITENGLAND ASSESSMENT SERVICES,Neighbourhoods,710.59,Subscriptions,2122P05_CR00271,135990
Sandwell Metropolitan Borough Council,http://www.sandwell.gov.uk/info/200202/performance_and_spending/1079/payments_over_500,01-Aug-21,Housing & Communities,WATER PLUS SELECT LIMITED,Neighbourhoods,737.37,Water Services,2122P05_CR00272,129644
Sandwell Metropolitan Borough Council,http://www.sandwell.gov.uk/info/200202/performance_and_spending/1079/payments_over_500,01-Aug-21,Housing & Communities,CONTRACT LETTINGS LTD,Neighbourhoods,738.6,Rents,2122P05_CR00273,76625
Sandwell Metropolitan Borough Council,http://www.sandwell.gov.uk/info/200202/performance_and_spending/1079/payments_over_500,01-Aug-21,Housing & Communities,CONTRACT LETTINGS LTD,Neighbourhoods,738.6,Rents,2122P05_CR00274,76625
Sandwell Metropolitan Borough Council,http://www.sandwell.gov.uk/info/200202/performance_and_spending/1079/payments_over_500,01-Aug-21,Housing & Communities,CONTRACT LETTINGS LTD,Neighbourhoods,738.6,Rents,2122P05_CR00275,76625
Sandwell Metropolitan Borough Council,http://www.sandwell.gov.uk/info/200202/performance_and_spending/1079/payments_over_500,01-Aug-21,Housing & Communities,CONTRACT LETTINGS LTD,Neighbourhoods,747,Rents,2122P05_CR00276,76625
Sandwell Metropolitan Borough Council,http://www.sandwell.gov.uk/info/200202/performance_and_spending/1079/payments_over_500,01-Aug-21,Housing & Communities,THOMSON ECOLOGY LIMITED,Housing & Communities,749,"CIP - New Construction,Conversion, Enhancement & Reno",2122P05_CR00277,120393
Sandwell Metropolitan Borough Council,http://www.sandwell.gov.uk/info/200202/performance_and_spending/1079/payments_over_500,09-Aug-21,Housing & Communities,BEECHWOOD TREES & LANDSCAPE LTD,Neighbourhoods,757.5,Externally Purchased Professional Services ,2122P05_CR00278,93287
Sandwell Metropolitan Borough Council,http://www.sandwell.gov.uk/info/200202/performance_and_spending/1079/payments_over_500,01-Aug-21,Housing & Communities,CONTRACT LETTINGS LTD,Neighbourhoods,763.22,Rents,2122P05_CR00279,76625
Sandwell Metropolitan Borough Council,http://www.sandwell.gov.uk/info/200202/performance_and_spending/1079/payments_over_500,01-Aug-21,Housing & Communities,CONTRACT LETTINGS LTD,Neighbourhoods,763.22,Rents,2122P05_CR00280,76625
Sandwell Metropolitan Borough Council,http://www.sandwell.gov.uk/info/200202/performance_and_spending/1079/payments_over_500,01-Aug-21,Housing & Communities,CONTRACT LETTINGS LTD,Neighbourhoods,763.22,Rents,2122P05_CR00281,76625
Sandwell Metropolitan Borough Council,http://www.sandwell.gov.uk/info/200202/performance_and_spending/1079/payments_over_500,01-Aug-21,Housing & Communities,CONTRACT LETTINGS LTD,Neighbourhoods,768.6,Rents,2122P05_CR00282,76625
Sandwell Metropolitan Borough Council,http://www.sandwell.gov.uk/info/200202/performance_and_spending/1079/payments_over_500,01-Aug-21,Housing & Communities,CONTRACT LETTINGS LTD,Neighbourhoods,768.6,Rents,2122P05_CR00283,76625
Sandwell Metropolitan Borough Council,http://www.sandwell.gov.uk/info/200202/performance_and_spending/1079/payments_over_500,01-Aug-21,Housing & Communities,CONTRACT LETTINGS LTD,Neighbourhoods,771.9,Rents,2122P05_CR00284,76625
Sandwell Metropolitan Borough Council,http://www.sandwell.gov.uk/info/200202/performance_and_spending/1079/payments_over_500,01-Aug-21,Housing & Communities,CBS MIDLANDS LTD,Neighbourhoods,776.6,Operational Services ,2122P05_CR00285,1020138
Sandwell Metropolitan Borough Council,http://www.sandwell.gov.uk/info/200202/performance_and_spending/1079/payments_over_500,01-Aug-21,Housing & Communities,BEECHWOOD TREES & LANDSCAPE LTD,Neighbourhoods,780,Externally Purchased Professional Services ,2122P05_CR00286,93287
Sandwell Metropolitan Borough Council,http://www.sandwell.gov.uk/info/200202/performance_and_spending/1079/payments_over_500,01-Aug-21,Housing & Communities,CONTRACT LETTINGS LTD,Neighbourhoods,794.22,Rents,2122P05_CR00287,76625
Sandwell Metropolitan Borough Council,http://www.sandwell.gov.uk/info/200202/performance_and_spending/1079/payments_over_500,01-Aug-21,Housing & Communities,THOMSON ECOLOGY LIMITED,Housing & Communities,834,"CIP - New Construction,Conversion, Enhancement & Reno",2122P05_CR00288,120393
Sandwell Metropolitan Borough Council,http://www.sandwell.gov.uk/info/200202/performance_and_spending/1079/payments_over_500,01-Aug-21,Housing & Communities,PROFILE SECURITY SERVICES LTD,Neighbourhoods,896.28,Security,2122P05_CR00289,131253
Sandwell Metropolitan Borough Council,http://www.sandwell.gov.uk/info/200202/performance_and_spending/1079/payments_over_500,01-Aug-21,Housing & Communities,BEECHWOOD TREES & LANDSCAPE LTD,Neighbourhoods,900,Externally Purchased Professional Services ,2122P05_CR00290,93287
Sandwell Metropolitan Borough Council,http://www.sandwell.gov.uk/info/200202/performance_and_spending/1079/payments_over_500,07-Aug-21,Housing & Communities,TOTAL GAS AND POWER LIMITED,Neighbourhoods,914.73,Electricity,2122P05_CR00291,107605
Sandwell Metropolitan Borough Council,http://www.sandwell.gov.uk/info/200202/performance_and_spending/1079/payments_over_500,11-Aug-21,Housing & Communities,KEYCRAFT,Neighbourhoods,919.48,Materials & Consumables,2122P05_CR00292,1064066
Sandwell Metropolitan Borough Council,http://www.sandwell.gov.uk/info/200202/performance_and_spending/1079/payments_over_500,01-Aug-21,Housing & Communities,PENNON WATER SERVICES T/A SOURCE FOR BUSINESS,Neighbourhoods,931.53,Water Services,2122P05_CR00293,131726
Sandwell Metropolitan Borough Council,http://www.sandwell.gov.uk/info/200202/performance_and_spending/1079/payments_over_500,01-Aug-21,Housing & Communities,WATER PLUS SELECT LIMITED,Neighbourhoods,947.13,Water Services,2122P05_CR00294,129644
Sandwell Metropolitan Borough Council,http://www.sandwell.gov.uk/info/200202/performance_and_spending/1079/payments_over_500,09-Aug-21,Housing & Communities,BEECHWOOD TREES & LANDSCAPE LTD,Neighbourhoods,982.5,Externally Purchased Professional Services ,2122P05_CR00295,93287
Sandwell Metropolitan Borough Council,http://www.sandwell.gov.uk/info/200202/performance_and_spending/1079/payments_over_500,01-Aug-21,Housing & Communities,BEECHWOOD TREES & LANDSCAPE LTD,Neighbourhoods,1000,Externally Purchased Professional Services ,2122P05_CR00296,93287
Sandwell Metropolitan Borough Council,http://www.sandwell.gov.uk/info/200202/performance_and_spending/1079/payments_over_500,01-Aug-21,Housing & Communities,CONTRACT LETTINGS LTD,Neighbourhoods,1020,Rents,2122P05_CR00297,76625
Sandwell Metropolitan Borough Council,http://www.sandwell.gov.uk/info/200202/performance_and_spending/1079/payments_over_500,01-Aug-21,Housing & Communities,THOMSON ECOLOGY LIMITED,Housing & Communities,1046.25,"CIP - New Construction,Conversion, Enhancement & Reno",2122P05_CR00298,120393
Sandwell Metropolitan Borough Council,http://www.sandwell.gov.uk/info/200202/performance_and_spending/1079/payments_over_500,01-Aug-21,Housing & Communities,PROFILE SECURITY SERVICES LTD,Neighbourhoods,1064,Security,2122P05_CR00299,131253
Sandwell Metropolitan Borough Council,http://www.sandwell.gov.uk/info/200202/performance_and_spending/1079/payments_over_500,01-Aug-21,Housing & Communities,READING AGENCY FOR LIBRARIES LTD,Neighbourhoods,1074.8,Civic Events,2122P05_CR00300,10863
Sandwell Metropolitan Borough Council,http://www.sandwell.gov.uk/info/200202/performance_and_spending/1079/payments_over_500,01-Aug-21,Housing & Communities,RIDDELL TPS LIMITED,Neighbourhoods,1103.89,Rents,2122P05_CR00301,132427
Sandwell Metropolitan Borough Council,http://www.sandwell.gov.uk/info/200202/performance_and_spending/1079/payments_over_500,01-Aug-21,Housing & Communities,BEECHWOOD TREES & LANDSCAPE LTD,Neighbourhoods,1125,Externally Purchased Professional Services ,2122P05_CR00302,93287
Sandwell Metropolitan Borough Council,http://www.sandwell.gov.uk/info/200202/performance_and_spending/1079/payments_over_500,01-Aug-21,Housing & Communities,DON RUFFLES LTD,Neighbourhoods,1130,Equipment & Furniture ,2122P05_CR00303,106173
Sandwell Metropolitan Borough Council,http://www.sandwell.gov.uk/info/200202/performance_and_spending/1079/payments_over_500,01-Aug-21,Housing & Communities,GREEN MAGIC CO. UK LTD,Neighbourhoods,1132,Equipment & Furniture ,2122P05_CR00304,127319
Sandwell Metropolitan Borough Council,http://www.sandwell.gov.uk/info/200202/performance_and_spending/1079/payments_over_500,01-Aug-21,Housing & Communities,BEECHWOOD TREES & LANDSCAPE LTD,Neighbourhoods,1162.5,Externally Purchased Professional Services ,2122P05_CR00305,93287
Sandwell Metropolitan Borough Council,http://www.sandwell.gov.uk/info/200202/performance_and_spending/1079/payments_over_500,01-Aug-21,Housing & Communities,CITRON HYGIENE UK LTD,Neighbourhoods,1185.48,Hygiene Services,2122P05_CR00306,140849
Sandwell Metropolitan Borough Council,http://www.sandwell.gov.uk/info/200202/performance_and_spending/1079/payments_over_500,01-Aug-21,Housing & Communities,CITRON HYGIENE UK LTD,Neighbourhoods,1223.52,Hygiene Services,2122P05_CR00307,140849
Sandwell Metropolitan Borough Council,http://www.sandwell.gov.uk/info/200202/performance_and_spending/1079/payments_over_500,01-Aug-21,Housing & Communities,BEECHWOOD TREES & LANDSCAPE LTD,Neighbourhoods,1267,Externally Purchased Professional Services ,2122P05_CR00308,93287
Sandwell Metropolitan Borough Council,http://www.sandwell.gov.uk/info/200202/performance_and_spending/1079/payments_over_500,01-Aug-21,Housing & Communities,CERTAS ENERGY LIMITED,Neighbourhoods,1424.1,Oil,2122P05_CR00309,80421
Sandwell Metropolitan Borough Council,http://www.sandwell.gov.uk/info/200202/performance_and_spending/1079/payments_over_500,01-Aug-21,Housing & Communities,PROFILE SECURITY SERVICES LTD,Neighbourhoods,1480.22,Security,2122P05_CR00310,131253
Sandwell Metropolitan Borough Council,http://www.sandwell.gov.uk/info/200202/performance_and_spending/1079/payments_over_500,01-Aug-21,Housing & Communities,BEECHWOOD TREES & LANDSCAPE LTD,Neighbourhoods,1545.48,Externally Purchased Professional Services ,2122P05_CR00311,93287
Sandwell Metropolitan Borough Council,http://www.sandwell.gov.uk/info/200202/performance_and_spending/1079/payments_over_500,01-Aug-21,Housing & Communities,BEECHWOOD TREES & LANDSCAPE LTD,Neighbourhoods,1575,Externally Purchased Professional Services ,2122P05_CR00312,93287
Sandwell Metropolitan Borough Council,http://www.sandwell.gov.uk/info/200202/performance_and_spending/1079/payments_over_500,01-Aug-21,Housing & Communities,PROFILE SECURITY SERVICES LTD,Neighbourhoods,1629.25,Security,2122P05_CR00313,131253
Sandwell Metropolitan Borough Council,http://www.sandwell.gov.uk/info/200202/performance_and_spending/1079/payments_over_500,01-Aug-21,Housing & Communities,BIRMINGHAM INTERNATIONAL JAZZ & BLUES FESTIVAL LIMITED,Neighbourhoods,1655,Civic Events,2122P05_CR00314,87922
Sandwell Metropolitan Borough Council,http://www.sandwell.gov.uk/info/200202/performance_and_spending/1079/payments_over_500,09-Aug-21,Housing & Communities,CERTAS ENERGY LIMITED,Neighbourhoods,1677.3,Fuel ,2122P05_CR00315,80421
Sandwell Metropolitan Borough Council,http://www.sandwell.gov.uk/info/200202/performance_and_spending/1079/payments_over_500,01-Aug-21,Housing & Communities,THOMSON ECOLOGY LIMITED,Housing & Communities,1720,"CIP - New Construction,Conversion, Enhancement & Reno",2122P05_CR00316,120393
Sandwell Metropolitan Borough Council,http://www.sandwell.gov.uk/info/200202/performance_and_spending/1079/payments_over_500,01-Aug-21,Housing & Communities,HEARTLANDS HOSTEL LTD,Neighbourhoods,1754.62,Rents,2122P05_CR00317,154179
Sandwell Metropolitan Borough Council,http://www.sandwell.gov.uk/info/200202/performance_and_spending/1079/payments_over_500,01-Aug-21,Housing & Communities,CONTRACT LETTINGS LTD,Neighbourhoods,1775,Rents,2122P05_CR00318,76625
Sandwell Metropolitan Borough Council,http://www.sandwell.gov.uk/info/200202/performance_and_spending/1079/payments_over_500,01-Aug-21,Housing & Communities,PROFILE SECURITY SERVICES LTD,Neighbourhoods,1835.4,Security,2122P05_CR00319,131253
Sandwell Metropolitan Borough Council,http://www.sandwell.gov.uk/info/200202/performance_and_spending/1079/payments_over_500,11-Aug-21,Housing & Communities,Q-MATIC AB LTD,Neighbourhoods,1856,Equipment & Furniture ,2122P05_CR00320,141886
Sandwell Metropolitan Borough Council,http://www.sandwell.gov.uk/info/200202/performance_and_spending/1079/payments_over_500,01-Aug-21,Housing & Communities,CONTRACT LETTINGS LTD,Neighbourhoods,1870,Rents,2122P05_CR00321,76625
Sandwell Metropolitan Borough Council,http://www.sandwell.gov.uk/info/200202/performance_and_spending/1079/payments_over_500,01-Aug-21,Housing & Communities,SUEZ RECYLING AND RECOVERY HOLDINGS UK LTD,Neighbourhoods,1955.3,Waste Disposal Charges,2122P05_CR00322,129939
Sandwell Metropolitan Borough Council,http://www.sandwell.gov.uk/info/200202/performance_and_spending/1079/payments_over_500,01-Aug-21,Housing & Communities,PROFILE SECURITY SERVICES LTD,Neighbourhoods,1965.71,Security,2122P05_CR00323,131253
Sandwell Metropolitan Borough Council,http://www.sandwell.gov.uk/info/200202/performance_and_spending/1079/payments_over_500,01-Aug-21,Housing & Communities,BEECHWOOD TREES & LANDSCAPE LTD,Neighbourhoods,2250,Externally Purchased Professional Services ,2122P05_CR00324,93287
Sandwell Metropolitan Borough Council,http://www.sandwell.gov.uk/info/200202/performance_and_spending/1079/payments_over_500,01-Aug-21,Housing & Communities,THOMSON ECOLOGY LIMITED,Housing & Communities,2316.5,"CIP - New Construction,Conversion, Enhancement & Reno",2122P05_CR00325,120393
Sandwell Metropolitan Borough Council,http://www.sandwell.gov.uk/info/200202/performance_and_spending/1079/payments_over_500,01-Aug-21,Housing & Communities,PROFILE SECURITY SERVICES LTD,Neighbourhoods,2366,Security,2122P05_CR00326,131253
Sandwell Metropolitan Borough Council,http://www.sandwell.gov.uk/info/200202/performance_and_spending/1079/payments_over_500,01-Aug-21,Housing & Communities,INFAMOUS COMMUNITY ARTS,Neighbourhoods,2400,Civic Events,2122P05_CR00327,102940
Sandwell Metropolitan Borough Council,http://www.sandwell.gov.uk/info/200202/performance_and_spending/1079/payments_over_500,01-Aug-21,Housing & Communities,OVERDRIVE GLOBAL LTD,Neighbourhoods,2453.61,Materials & Consumables,2122P05_CR00328,153017
Sandwell Metropolitan Borough Council,http://www.sandwell.gov.uk/info/200202/performance_and_spending/1079/payments_over_500,24-Aug-21,Housing & Communities,PITCHMARK LTD,Neighbourhoods,2560,Materials & Consumables,2122P05_CR00329,120374
Sandwell Metropolitan Borough Council,http://www.sandwell.gov.uk/info/200202/performance_and_spending/1079/payments_over_500,15-Aug-21,Housing & Communities,ALLSTAR BUSINESS SOLUTIONS LIMITED,Neighbourhoods,2563.49,Fuel ,2122P05_CR00330,104057
Sandwell Metropolitan Borough Council,http://www.sandwell.gov.uk/info/200202/performance_and_spending/1079/payments_over_500,01-Aug-21,Housing & Communities,WEST MIDLANDS MARQUEES,Neighbourhoods,2643.75,Equipment & Furniture ,2122P05_CR00331,134805
Sandwell Metropolitan Borough Council,http://www.sandwell.gov.uk/info/200202/performance_and_spending/1079/payments_over_500,24-Aug-21,Housing & Communities,NOMIX ENVIRO LTD,Neighbourhoods,2661,Materials & Consumables,2122P05_CR00332,37313
Sandwell Metropolitan Borough Council,http://www.sandwell.gov.uk/info/200202/performance_and_spending/1079/payments_over_500,01-Aug-21,Housing & Communities,CLASSIC CATERING,Neighbourhoods,2801.5,Rents & Accomodation Charges,2122P05_CR00333,152411
Sandwell Metropolitan Borough Council,http://www.sandwell.gov.uk/info/200202/performance_and_spending/1079/payments_over_500,01-Aug-21,Housing & Communities,BEECHWOOD TREES & LANDSCAPE LTD,Neighbourhoods,2937,Externally Purchased Professional Services ,2122P05_CR00334,93287
Sandwell Metropolitan Borough Council,http://www.sandwell.gov.uk/info/200202/performance_and_spending/1079/payments_over_500,16-Aug-21,Housing & Communities,GREENWICH LEISURE LTD,Neighbourhoods,3000,ICT ,2122P05_CR00335,136157
Sandwell Metropolitan Borough Council,http://www.sandwell.gov.uk/info/200202/performance_and_spending/1079/payments_over_500,01-Aug-21,Housing & Communities,ALLSTAR BUSINESS SOLUTIONS LIMITED,Neighbourhoods,3127.99,Fuel ,2122P05_CR00336,104057
Sandwell Metropolitan Borough Council,http://www.sandwell.gov.uk/info/200202/performance_and_spending/1079/payments_over_500,24-Aug-21,Housing & Communities,PITCHMARK LTD,Neighbourhoods,3440,Equipment & Furniture ,2122P05_CR00337,120374
Sandwell Metropolitan Borough Council,http://www.sandwell.gov.uk/info/200202/performance_and_spending/1079/payments_over_500,01-Aug-21,Housing & Communities,CONTRACT LETTINGS LTD,Neighbourhoods,3485.76,Rents,2122P05_CR00338,76625
Sandwell Metropolitan Borough Council,http://www.sandwell.gov.uk/info/200202/performance_and_spending/1079/payments_over_500,05-Aug-21,Housing & Communities,CHRIS SEABRIDGE & ASSOCIATES LIMITED,Neighbourhoods,3505,Externally Purchased Professional Services ,2122P05_CR00339,104602
Sandwell Metropolitan Borough Council,http://www.sandwell.gov.uk/info/200202/performance_and_spending/1079/payments_over_500,01-Aug-21,Housing & Communities,BEECHWOOD TREES & LANDSCAPE LTD,Neighbourhoods,3800,Externally Purchased Professional Services ,2122P05_CR00340,93287
Sandwell Metropolitan Borough Council,http://www.sandwell.gov.uk/info/200202/performance_and_spending/1079/payments_over_500,01-Aug-21,Housing & Communities,TOTAL GAS AND POWER LIMITED,Housing & Communities,3960.44,"CIP - New Construction,Conversion, Enhancement & Reno",2122P05_CR00341,107605
Sandwell Metropolitan Borough Council,http://www.sandwell.gov.uk/info/200202/performance_and_spending/1079/payments_over_500,01-Aug-21,Housing & Communities,PROFILE SECURITY SERVICES LTD,Neighbourhoods,3965.36,Security,2122P05_CR00342,131253
Sandwell Metropolitan Borough Council,http://www.sandwell.gov.uk/info/200202/performance_and_spending/1079/payments_over_500,16-Aug-21,Housing & Communities,SANDWELL & WEST BIRMINGHAM HOSPITALS NHS TRUST,Neighbourhoods,5198.53,Waste Disposal Charges,2122P05_CR00343,1385
Sandwell Metropolitan Borough Council,http://www.sandwell.gov.uk/info/200202/performance_and_spending/1079/payments_over_500,16-Aug-21,Housing & Communities,SANDWELL & WEST BIRMINGHAM HOSPITALS NHS TRUST,Neighbourhoods,5198.53,Waste Disposal Charges,2122P05_CR00344,1385
Sandwell Metropolitan Borough Council,http://www.sandwell.gov.uk/info/200202/performance_and_spending/1079/payments_over_500,01-Aug-21,Housing & Communities,BIRMINGHAM INTERNATIONAL JAZZ & BLUES FESTIVAL LIMITED,Neighbourhoods,6000,Civic Events,2122P05_CR00345,87922
Sandwell Metropolitan Borough Council,http://www.sandwell.gov.uk/info/200202/performance_and_spending/1079/payments_over_500,01-Aug-21,Housing & Communities,PINSENT MASON LLP,Neighbourhoods,6000,Externally Purchased Professional Services ,2122P05_CR00346,47648
Sandwell Metropolitan Borough Council,http://www.sandwell.gov.uk/info/200202/performance_and_spending/1079/payments_over_500,01-Aug-21,Housing & Communities,OVERDRIVE GLOBAL LTD,Neighbourhoods,7216.5,Materials & Consumables,2122P05_CR00347,153017
Sandwell Metropolitan Borough Council,http://www.sandwell.gov.uk/info/200202/performance_and_spending/1079/payments_over_500,01-Aug-21,Housing & Communities,SANDWELL & WEST BIRMINGHAM HOSPITALS NHS TRUST,Neighbourhoods,7375,Grant Payments,2122P05_CR00348,1385
Sandwell Metropolitan Borough Council,http://www.sandwell.gov.uk/info/200202/performance_and_spending/1079/payments_over_500,01-Aug-21,Housing & Communities,MACE LTD,Neighbourhoods,9060,Consultancy,2122P05_CR00349,30882
Sandwell Metropolitan Borough Council,http://www.sandwell.gov.uk/info/200202/performance_and_spending/1079/payments_over_500,02-Aug-21,Housing & Communities,J MCCANN & CO LIMITED,Housing & Communities,9635.84,CIP - Fixtures & Fittings,2122P05_CR00350,127457
Sandwell Metropolitan Borough Council,http://www.sandwell.gov.uk/info/200202/performance_and_spending/1079/payments_over_500,19-Aug-21,Housing & Communities,COMMUNITY FIRST PARTNERSHIP LIMITED,Housing & Communities,10000,Externally Purchased Professional Services ,2122P05_CR00351,34777
Sandwell Metropolitan Borough Council,http://www.sandwell.gov.uk/info/200202/performance_and_spending/1079/payments_over_500,01-Aug-21,Housing & Communities,BLACK COUNTRY WOMEN'S AID,Neighbourhoods,10000,Grant Payments,2122P05_CR00352,127401
Sandwell Metropolitan Borough Council,http://www.sandwell.gov.uk/info/200202/performance_and_spending/1079/payments_over_500,09-Aug-21,Housing & Communities,CERTAS ENERGY LIMITED,Neighbourhoods,11245.3,Fuel ,2122P05_CR00353,80421
Sandwell Metropolitan Borough Council,http://www.sandwell.gov.uk/info/200202/performance_and_spending/1079/payments_over_500,01-Aug-21,Housing & Communities,SANDWELL LIFT PROJECT COMPANY (NO 3) LIMITED,Neighbourhoods,111833.08,SH Payments,2122P05_CR00354,113986
Sandwell Metropolitan Borough Council,http://www.sandwell.gov.uk/info/200202/performance_and_spending/1079/payments_over_500,17-Aug-21,Housing & Communities,S.C.V.O.,Neighbourhoods,1500,Grant Payments,2122P05_CR00355,109813
Sandwell Metropolitan Borough Council,http://www.sandwell.gov.uk/info/200202/performance_and_spending/1079/payments_over_500,06-Aug-21,Housing & Communities,PROPERTY KEY SALES & LETTINGS LIMITED,Neighbourhoods,650,Rents,2122P05_CR00356,153979
Sandwell Metropolitan Borough Council,http://www.sandwell.gov.uk/info/200202/performance_and_spending/1079/payments_over_500,26-Aug-21,Housing & Communities,REDACTED PERSONAL DATA,Neighbourhoods,800,Rents,2122P05_CR00357,REDACTED PERSONAL DATA
Sandwell Metropolitan Borough Council,http://www.sandwell.gov.uk/info/200202/performance_and_spending/1079/payments_over_500,17-Aug-21,Housing & Communities,SEQUENCE (UK) LIMITED,Neighbourhoods,1125,Rents,2122P05_CR00358,154234
Sandwell Metropolitan Borough Council,http://www.sandwell.gov.uk/info/200202/performance_and_spending/1079/payments_over_500,06-Aug-21,Housing & Communities,REDACTED PERSONAL DATA,Neighbourhoods,1200,Rents,2122P05_CR00359,REDACTED PERSONAL DATA
Sandwell Metropolitan Borough Council,http://www.sandwell.gov.uk/info/200202/performance_and_spending/1079/payments_over_500,27-Aug-21,Housing & Communities,REDACTED PERSONAL DATA,Neighbourhoods,500,Rents,2122P05_CR00360,REDACTED PERSONAL DATA
Sandwell Metropolitan Borough Council,http://www.sandwell.gov.uk/info/200202/performance_and_spending/1079/payments_over_500,27-Aug-21,Housing & Communities,REDACTED PERSONAL DATA,Neighbourhoods,500,Rents,2122P05_CR00361,REDACTED PERSONAL DATA
Sandwell Metropolitan Borough Council,http://www.sandwell.gov.uk/info/200202/performance_and_spending/1079/payments_over_500,27-Aug-21,Housing & Communities,REDACTED PERSONAL DATA,Neighbourhoods,500,Rents,2122P05_CR00362,REDACTED PERSONAL DATA
Sandwell Metropolitan Borough Council,http://www.sandwell.gov.uk/info/200202/performance_and_spending/1079/payments_over_500,27-Aug-21,Housing & Communities,REDACTED PERSONAL DATA,Neighbourhoods,550,Rents,2122P05_CR00363,REDACTED PERSONAL DATA
Sandwell Metropolitan Borough Council,http://www.sandwell.gov.uk/info/200202/performance_and_spending/1079/payments_over_500,27-Aug-21,Housing & Communities,REDACTED PERSONAL DATA,Neighbourhoods,550,Rents,2122P05_CR00364,REDACTED PERSONAL DATA
Sandwell Metropolitan Borough Council,http://www.sandwell.gov.uk/info/200202/performance_and_spending/1079/payments_over_500,27-Aug-21,Housing & Communities,REDACTED PERSONAL DATA,Neighbourhoods,550,Rents,2122P05_CR00365,REDACTED PERSONAL DATA
Sandwell Metropolitan Borough Council,http://www.sandwell.gov.uk/info/200202/performance_and_spending/1079/payments_over_500,27-Aug-21,Housing & Communities,REDACTED PERSONAL DATA,Neighbourhoods,1000,Rents,2122P05_CR00366,REDACTED PERSONAL DATA
Sandwell Metropolitan Borough Council,http://www.sandwell.gov.uk/info/200202/performance_and_spending/1079/payments_over_500,27-Aug-21,Housing & Communities,REDACTED PERSONAL DATA,Neighbourhoods,500,Rents,2122P05_CR00367,REDACTED PERSONAL DATA
Sandwell Metropolitan Borough Council,http://www.sandwell.gov.uk/info/200202/performance_and_spending/1079/payments_over_500,27-Aug-21,Housing & Communities,REDACTED PERSONAL DATA,Neighbourhoods,500,Rents,2122P05_CR00368,REDACTED PERSONAL DATA
Sandwell Metropolitan Borough Council,http://www.sandwell.gov.uk/info/200202/performance_and_spending/1079/payments_over_500,27-Aug-21,Housing & Communities,REDACTED PERSONAL DATA,Neighbourhoods,500,Rents,2122P05_CR00369,REDACTED PERSONAL DATA
Sandwell Metropolitan Borough Council,http://www.sandwell.gov.uk/info/200202/performance_and_spending/1079/payments_over_500,27-Aug-21,Housing & Communities,REDACTED PERSONAL DATA,Neighbourhoods,500,Rents,2122P05_CR00370,REDACTED PERSONAL DATA
Sandwell Metropolitan Borough Council,http://www.sandwell.gov.uk/info/200202/performance_and_spending/1079/payments_over_500,27-Aug-21,Housing & Communities,REDACTED PERSONAL DATA,Neighbourhoods,500,Rents,2122P05_CR00371,REDACTED PERSONAL DATA
Sandwell Metropolitan Borough Council,http://www.sandwell.gov.uk/info/200202/performance_and_spending/1079/payments_over_500,27-Aug-21,Housing & Communities,REDACTED PERSONAL DATA,Neighbourhoods,500,Rents,2122P05_CR00372,REDACTED PERSONAL DATA
Sandwell Metropolitan Borough Council,http://www.sandwell.gov.uk/info/200202/performance_and_spending/1079/payments_over_500,27-Aug-21,Housing & Communities,REDACTED PERSONAL DATA,Neighbourhoods,550,Rents,2122P05_CR00373,REDACTED PERSONAL DATA
Sandwell Metropolitan Borough Council,http://www.sandwell.gov.uk/info/200202/performance_and_spending/1079/payments_over_500,27-Aug-21,Housing & Communities,REDACTED PERSONAL DATA,Neighbourhoods,550,Rents,2122P05_CR00374,REDACTED PERSONAL DATA
Sandwell Metropolitan Borough Council,http://www.sandwell.gov.uk/info/200202/performance_and_spending/1079/payments_over_500,27-Aug-21,Housing & Communities,REDACTED PERSONAL DATA,Neighbourhoods,500,Rents,2122P05_CR00375,REDACTED PERSONAL DATA
Sandwell Metropolitan Borough Council,http://www.sandwell.gov.uk/info/200202/performance_and_spending/1079/payments_over_500,27-Aug-21,Housing & Communities,REDACTED PERSONAL DATA,Neighbourhoods,500,Rents,2122P05_CR00376,REDACTED PERSONAL DATA
Sandwell Metropolitan Borough Council,http://www.sandwell.gov.uk/info/200202/performance_and_spending/1079/payments_over_500,06-Aug-21,Housing & Communities,ASPIRE4U CIC,Neighbourhoods,5000,Grant Payments,2122P05_CR00377,130013
Sandwell Metropolitan Borough Council,http://www.sandwell.gov.uk/info/200202/performance_and_spending/1079/payments_over_500,01-Aug-21,Housing Revenue Account Capital,PR PROPERTY MAINTENANCE,Housing Revenue Account Capital,730,Deferred Charges/Grant Payments,2122P05_CR00378,33836
Sandwell Metropolitan Borough Council,http://www.sandwell.gov.uk/info/200202/performance_and_spending/1079/payments_over_500,01-Aug-21,Housing Revenue Account Capital,PR PROPERTY MAINTENANCE,Housing Revenue Account Capital,2849.48,Deferred Charges/Grant Payments,2122P05_CR00379,33836
Sandwell Metropolitan Borough Council,http://www.sandwell.gov.uk/info/200202/performance_and_spending/1079/payments_over_500,01-Aug-21,Housing Revenue Account Capital,PR PROPERTY MAINTENANCE,Housing Revenue Account Capital,8547.69,Deferred Charges/Grant Payments,2122P05_CR00380,33836
Sandwell Metropolitan Borough Council,http://www.sandwell.gov.uk/info/200202/performance_and_spending/1079/payments_over_500,13-Aug-21,Housing Revenue Account Capital,LIFT & ENGINEERING SERVICES LTD,Housing Revenue Account Capital,1173.72,"CIP - New Construction,Conversion, Enhancement & Reno",2122P05_CR00381,77003962
Sandwell Metropolitan Borough Council,http://www.sandwell.gov.uk/info/200202/performance_and_spending/1079/payments_over_500,05-Aug-21,Housing Revenue Account Capital,LOVELL PARTNERSHIPS  LTD,Housing Revenue Account Capital,31615.04,"CIP - New Construction,Conversion, Enhancement & Reno",2122P05_CR00382,77007398
Sandwell Metropolitan Borough Council,http://www.sandwell.gov.uk/info/200202/performance_and_spending/1079/payments_over_500,05-Aug-21,Housing Revenue Account Capital,LOVELL PARTNERSHIPS  LTD,Housing Revenue Account Capital,73396.04,"CIP - New Construction,Conversion, Enhancement & Reno",2122P05_CR00383,77007398
Sandwell Metropolitan Borough Council,http://www.sandwell.gov.uk/info/200202/performance_and_spending/1079/payments_over_500,05-Aug-21,Housing Revenue Account Capital,LOVELL PARTNERSHIPS  LTD,Housing Revenue Account Capital,76739.89,"CIP - New Construction,Conversion, Enhancement & Reno",2122P05_CR00384,77007398
Sandwell Metropolitan Borough Council,http://www.sandwell.gov.uk/info/200202/performance_and_spending/1079/payments_over_500,04-Aug-21,Housing Revenue Account Capital,VINCI CONSTRUCTION LTD,Housing Revenue Account Capital,76907.11,"CIP - New Construction,Conversion, Enhancement & Reno",2122P05_CR00385,36361
Sandwell Metropolitan Borough Council,http://www.sandwell.gov.uk/info/200202/performance_and_spending/1079/payments_over_500,05-Aug-21,Housing Revenue Account Capital,LOVELL PARTNERSHIPS  LTD,Housing Revenue Account Capital,80296.57,"CIP - New Construction,Conversion, Enhancement & Reno",2122P05_CR00386,77007398
Sandwell Metropolitan Borough Council,http://www.sandwell.gov.uk/info/200202/performance_and_spending/1079/payments_over_500,01-Aug-21,Housing Revenue Account Capital,SEDDON CONSTRUCTION LIMITED,Housing Revenue Account Capital,125739.92,"CIP - New Construction,Conversion, Enhancement & Reno",2122P05_CR00387,132999
Sandwell Metropolitan Borough Council,http://www.sandwell.gov.uk/info/200202/performance_and_spending/1079/payments_over_500,04-Aug-21,Housing Revenue Account Capital,VINCI CONSTRUCTION LTD,Housing Revenue Account Capital,131766.76,"CIP - New Construction,Conversion, Enhancement & Reno",2122P05_CR00388,36361
Sandwell Metropolitan Borough Council,http://www.sandwell.gov.uk/info/200202/performance_and_spending/1079/payments_over_500,01-Aug-21,Housing Revenue Account Capital,FORKERS LTD,Housing Revenue Account Capital,250785,"CIP - New Construction,Conversion, Enhancement & Reno",2122P05_CR00389,10149
Sandwell Metropolitan Borough Council,http://www.sandwell.gov.uk/info/200202/performance_and_spending/1079/payments_over_500,05-Aug-21,Housing Revenue Account Capital,LOVELL PARTNERSHIPS  LTD,Housing Revenue Account Capital,274249.67,"CIP - New Construction,Conversion, Enhancement & Reno",2122P05_CR00390,77007398
Sandwell Metropolitan Borough Council,http://www.sandwell.gov.uk/info/200202/performance_and_spending/1079/payments_over_500,12-Aug-21,Housing Revenue Account Capital,VINCI CONSTRUCTION LTD,Housing Revenue Account Capital,466948.8,"CIP - New Construction,Conversion, Enhancement & Reno",2122P05_CR00391,36361
Sandwell Metropolitan Borough Council,http://www.sandwell.gov.uk/info/200202/performance_and_spending/1079/payments_over_500,17-Aug-21,Housing Revenue Account Capital,SEDDON CONSTRUCTION LIMITED,Housing Revenue Account Capital,557578.49,"CIP - New Construction,Conversion, Enhancement & Reno",2122P05_CR00392,132999
Sandwell Metropolitan Borough Council,http://www.sandwell.gov.uk/info/200202/performance_and_spending/1079/payments_over_500,03-Aug-21,Housing Revenue Account Capital,J.HARPER & SONS (LEOMINSTER) LIMITED,Housing Revenue Account Capital,117932.67,"CIP - New Construction,Conversion, Enhancement & Reno",2122P05_CR00393,111814
Sandwell Metropolitan Borough Council,http://www.sandwell.gov.uk/info/200202/performance_and_spending/1079/payments_over_500,10-Aug-21,Housing Revenue Account Capital,SPELLER METCALFE MALVERN LIMITED,Housing Revenue Account Capital,244352.62,"CIP - New Construction,Conversion, Enhancement & Reno",2122P05_CR00394,92473
Sandwell Metropolitan Borough Council,http://www.sandwell.gov.uk/info/200202/performance_and_spending/1079/payments_over_500,01-Aug-21,Housing Revenue Account Capital,J.HARPER & SONS (LEOMINSTER) LIMITED,Housing Revenue Account Capital,398855.17,"CIP - New Construction,Conversion, Enhancement & Reno",2122P05_CR00395,111814
Sandwell Metropolitan Borough Council,http://www.sandwell.gov.uk/info/200202/performance_and_spending/1079/payments_over_500,13-Aug-21,Housing Revenue Account Capital,SOUTH STAFFORDSHIRE WATER PLC,Housing Revenue Account Capital,7162.05,"CIP - New Construction,Conversion, Enhancement & Reno",2122P05_CR00396,77003605
Sandwell Metropolitan Borough Council,http://www.sandwell.gov.uk/info/200202/performance_and_spending/1079/payments_over_500,01-Aug-21,Housing Revenue Account Capital,DISABLE AIDS (CANNOCK) LTD,Housing Revenue Account Capital,525,Building Maintenance & Improvements,2122P05_CR00397,1593219
Sandwell Metropolitan Borough Council,http://www.sandwell.gov.uk/info/200202/performance_and_spending/1079/payments_over_500,01-Aug-21,Housing Revenue Account Capital,POWRED HEATING COMPONENTS LIMITED,Housing Revenue Account Capital,734.91,Materials & Consumables,2122P05_CR00398,133978
Sandwell Metropolitan Borough Council,http://www.sandwell.gov.uk/info/200202/performance_and_spending/1079/payments_over_500,01-Aug-21,Housing Revenue Account Capital,FRASER WOOD (MIDLANDS) LIMITED,Housing Revenue Account Capital,9915,Externally Purchased Professional Services ,2122P05_CR00399,57157
Sandwell Metropolitan Borough Council,http://www.sandwell.gov.uk/info/200202/performance_and_spending/1079/payments_over_500,01-Aug-21,Housing Revenue Account Capital,ROWELEC LIMITED,Housing Revenue Account Capital,9924.37,"CIP - New Construction,Conversion, Enhancement & Reno",2122P05_CR00400,116267
Sandwell Metropolitan Borough Council,http://www.sandwell.gov.uk/info/200202/performance_and_spending/1079/payments_over_500,13-Aug-21,Housing Revenue Account Capital,SURE MAINTENANCE LIMITED,Housing Revenue Account Capital,318639.37,"CIP - New Construction,Conversion, Enhancement & Reno",2122P05_CR00401,93926
Sandwell Metropolitan Borough Council,http://www.sandwell.gov.uk/info/200202/performance_and_spending/1079/payments_over_500,18-Aug-21,Housing Revenue Account Capital,HIGGS & SONS SOLICITORS,Housing Revenue Account Capital,78163,CIP - Acquisition of Land & Existing Buildings,2122P05_CR00402,120965
Sandwell Metropolitan Borough Council,http://www.sandwell.gov.uk/info/200202/performance_and_spending/1079/payments_over_500,09-Aug-21,Housing Revenue Account Capital,HIGGS & SONS SOLICITORS,Housing Revenue Account Capital,150318,CIP - Acquisition of Land & Existing Buildings,2122P05_CR00403,120965
Sandwell Metropolitan Borough Council,http://www.sandwell.gov.uk/info/200202/performance_and_spending/1079/payments_over_500,09-Aug-21,Housing Revenue Account Capital,KENNETH CURTIS & CO,Housing Revenue Account Capital,163000,CIP - Acquisition of Land & Existing Buildings,2122P05_CR00404,120965
Sandwell Metropolitan Borough Council,http://www.sandwell.gov.uk/info/200202/performance_and_spending/1079/payments_over_500,16-Aug-21,Housing Revenue Account Capital,HIGGS & SONS SOLICITORS,Housing Revenue Account Capital,163226,CIP - Acquisition of Land & Existing Buildings,2122P05_CR00405,120965
Sandwell Metropolitan Borough Council,http://www.sandwell.gov.uk/info/200202/performance_and_spending/1079/payments_over_500,01-Aug-21,Housing Revenue Account Capital,REDACTED PERSONAL DATA,Housing Revenue Account Capital,600,Deferred Charges/Grant Payments,2122P05_CR00406,REDACTED PERSONAL DATA
Sandwell Metropolitan Borough Council,http://www.sandwell.gov.uk/info/200202/performance_and_spending/1079/payments_over_500,01-Aug-21,Housing Revenue Account Capital,FORMBUILD INSTALLATIONS LTD,Housing Revenue Account Capital,2941.68,Deferred Charges/Grant Payments,2122P05_CR00407,153985
Sandwell Metropolitan Borough Council,http://www.sandwell.gov.uk/info/200202/performance_and_spending/1079/payments_over_500,03-Aug-21,Individual School Budgets With Inclusion,SANDWELL FUTURES LTD,Individual School Budgets With Inclusion,531.59,Private Contractors,2122P05_CR00408,88151
Sandwell Metropolitan Borough Council,http://www.sandwell.gov.uk/info/200202/performance_and_spending/1079/payments_over_500,03-Aug-21,Individual School Budgets With Inclusion,SANDWELL FUTURES LTD,Individual School Budgets With Inclusion,1452.8,Private Contractors,2122P05_CR00409,88151
Sandwell Metropolitan Borough Council,http://www.sandwell.gov.uk/info/200202/performance_and_spending/1079/payments_over_500,03-Aug-21,Individual School Budgets With Inclusion,SANDWELL FUTURES LTD,Individual School Budgets With Inclusion,1452.8,Private Contractors,2122P05_CR00410,88151
Sandwell Metropolitan Borough Council,http://www.sandwell.gov.uk/info/200202/performance_and_spending/1079/payments_over_500,03-Aug-21,Individual School Budgets With Inclusion,SANDWELL FUTURES LTD,Individual School Budgets With Inclusion,3733.47,Private Contractors,2122P05_CR00411,88151
Sandwell Metropolitan Borough Council,http://www.sandwell.gov.uk/info/200202/performance_and_spending/1079/payments_over_500,03-Aug-21,Individual School Budgets With Inclusion,SANDWELL FUTURES LTD,Individual School Budgets With Inclusion,23539.36,Private Contractors,2122P05_CR00412,88151
Sandwell Metropolitan Borough Council,http://www.sandwell.gov.uk/info/200202/performance_and_spending/1079/payments_over_500,01-Aug-21,Individual School Budgets With Inclusion,SANDWELL FUTURES LTD,Individual School Budgets With Inclusion,101325.56,Private Contractors,2122P05_CR00413,88151
Sandwell Metropolitan Borough Council,http://www.sandwell.gov.uk/info/200202/performance_and_spending/1079/payments_over_500,01-Aug-21,Individual School Budgets With Inclusion,SANDWELL FUTURES LTD,Individual School Budgets With Inclusion,116734.98,Private Contractors,2122P05_CR00414,88151
Sandwell Metropolitan Borough Council,http://www.sandwell.gov.uk/info/200202/performance_and_spending/1079/payments_over_500,01-Aug-21,Individual School Budgets With Inclusion,SANDWELL FUTURES LTD,Individual School Budgets With Inclusion,121791.19,Private Contractors,2122P05_CR00415,88151
Sandwell Metropolitan Borough Council,http://www.sandwell.gov.uk/info/200202/performance_and_spending/1079/payments_over_500,01-Aug-21,Individual School Budgets With Inclusion,SANDWELL FUTURES LTD,Individual School Budgets With Inclusion,123173.57,Private Contractors,2122P05_CR00416,88151
Sandwell Metropolitan Borough Council,http://www.sandwell.gov.uk/info/200202/performance_and_spending/1079/payments_over_500,01-Aug-21,Individual School Budgets With Inclusion,LITTLE ANGELS DAY NURSERY LIMITED,Individual School Budgets With Inclusion,780,Externally Purchased Professional Services ,2122P05_CR00417,10207
Sandwell Metropolitan Borough Council,http://www.sandwell.gov.uk/info/200202/performance_and_spending/1079/payments_over_500,01-Aug-21,Individual School Budgets With Inclusion,SILVER BIRCH SCHOOL,Individual School Budgets With Inclusion,17500,Other Establishments,2122P05_CR00418,125110
Sandwell Metropolitan Borough Council,http://www.sandwell.gov.uk/info/200202/performance_and_spending/1079/payments_over_500,01-Aug-21,Individual School Budgets With Inclusion,HAGLEY CATHOLIC HIGH SCHOOL,Individual School Budgets With Inclusion,6176.72,Other Local Authorities,2122P05_CR00419,59561
Sandwell Metropolitan Borough Council,http://www.sandwell.gov.uk/info/200202/performance_and_spending/1079/payments_over_500,01-Aug-21,Individual School Budgets With Inclusion,BRIGHT LIGHTS DAY NURSERY,Individual School Budgets With Inclusion,1260,Externally Purchased Professional Services ,2122P05_CR00420,89877
Sandwell Metropolitan Borough Council,http://www.sandwell.gov.uk/info/200202/performance_and_spending/1079/payments_over_500,01-Aug-21,Individual School Budgets With Inclusion,BRIGHT LIGHTS DAY NURSERY,Individual School Budgets With Inclusion,2520,Externally Purchased Professional Services ,2122P05_CR00421,89877
Sandwell Metropolitan Borough Council,http://www.sandwell.gov.uk/info/200202/performance_and_spending/1079/payments_over_500,18-Aug-21,Individual School Budgets With Inclusion,ACORN CARE AND EDUCATION LIMITED,Individual School Budgets With Inclusion,15554.34,Other Establishments,2122P05_CR00422,115235
Sandwell Metropolitan Borough Council,http://www.sandwell.gov.uk/info/200202/performance_and_spending/1079/payments_over_500,18-Aug-21,Individual School Budgets With Inclusion,ACORN CARE AND EDUCATION LIMITED,Individual School Budgets With Inclusion,15554.34,Other Establishments,2122P05_CR00423,115235
Sandwell Metropolitan Borough Council,http://www.sandwell.gov.uk/info/200202/performance_and_spending/1079/payments_over_500,18-Aug-21,Individual School Budgets With Inclusion,ACORN CARE AND EDUCATION LIMITED,Individual School Budgets With Inclusion,17302,Other Establishments,2122P05_CR00424,115235
Sandwell Metropolitan Borough Council,http://www.sandwell.gov.uk/info/200202/performance_and_spending/1079/payments_over_500,18-Aug-21,Individual School Budgets With Inclusion,ACORN CARE AND EDUCATION LIMITED,Individual School Budgets With Inclusion,17302,Other Establishments,2122P05_CR00425,115235
Sandwell Metropolitan Borough Council,http://www.sandwell.gov.uk/info/200202/performance_and_spending/1079/payments_over_500,18-Aug-21,Individual School Budgets With Inclusion,ACORN CARE AND EDUCATION LIMITED,Individual School Budgets With Inclusion,17302,Other Establishments,2122P05_CR00426,115235
Sandwell Metropolitan Borough Council,http://www.sandwell.gov.uk/info/200202/performance_and_spending/1079/payments_over_500,01-Aug-21,Individual School Budgets With Inclusion,KEDLESTON (OS EDUCATION) LTD,Individual School Budgets With Inclusion,18333.33,Other Establishments,2122P05_CR00427,63209
Sandwell Metropolitan Borough Council,http://www.sandwell.gov.uk/info/200202/performance_and_spending/1079/payments_over_500,01-Aug-21,Individual School Budgets With Inclusion,KEYS PCE LTD,Individual School Budgets With Inclusion,2985,Other Establishments,2122P05_CR00428,140986
Sandwell Metropolitan Borough Council,http://www.sandwell.gov.uk/info/200202/performance_and_spending/1079/payments_over_500,01-Aug-21,Individual School Budgets With Inclusion,ST JOSEPH'S CATHOLIC PRIMARY SCHOOL (PART OF ST JOHN BOSCO MULTI ACADEMY CO),Individual School Budgets With Inclusion,525.67,Other Local Authorities,2122P05_CR00429,153484
Sandwell Metropolitan Borough Council,http://www.sandwell.gov.uk/info/200202/performance_and_spending/1079/payments_over_500,01-Aug-21,Individual School Budgets With Inclusion,YMCA WOLVERHAMPTON,Individual School Budgets With Inclusion,540,Externally Purchased Professional Services ,2122P05_CR00430,138063
Sandwell Metropolitan Borough Council,http://www.sandwell.gov.uk/info/200202/performance_and_spending/1079/payments_over_500,05-Aug-21,Individual School Budgets With Inclusion,SMARTSURVEY LTD,Individual School Budgets With Inclusion,540,Subscriptions,2122P05_CR00431,137442
Sandwell Metropolitan Borough Council,http://www.sandwell.gov.uk/info/200202/performance_and_spending/1079/payments_over_500,01-Aug-21,Individual School Budgets With Inclusion,SANTOS DAY NURSERIES,Individual School Budgets With Inclusion,570,Externally Purchased Professional Services ,2122P05_CR00432,129262
Sandwell Metropolitan Borough Council,http://www.sandwell.gov.uk/info/200202/performance_and_spending/1079/payments_over_500,01-Aug-21,Individual School Budgets With Inclusion,ST JOSEPH'S CATHOLIC PRIMARY SCHOOL (PART OF ST JOHN BOSCO MULTI ACADEMY CO),Individual School Budgets With Inclusion,606.54,Other Local Authorities,2122P05_CR00433,153484
Sandwell Metropolitan Borough Council,http://www.sandwell.gov.uk/info/200202/performance_and_spending/1079/payments_over_500,01-Aug-21,Individual School Budgets With Inclusion,LAVENDER FARM DAY NURSERY,Individual School Budgets With Inclusion,647.5,Externally Purchased Professional Services ,2122P05_CR00434,65596
Sandwell Metropolitan Borough Council,http://www.sandwell.gov.uk/info/200202/performance_and_spending/1079/payments_over_500,01-Aug-21,Individual School Budgets With Inclusion,LAVENDER FARM DAY NURSERY,Individual School Budgets With Inclusion,647.5,Externally Purchased Professional Services ,2122P05_CR00435,65596
Sandwell Metropolitan Borough Council,http://www.sandwell.gov.uk/info/200202/performance_and_spending/1079/payments_over_500,01-Aug-21,Individual School Budgets With Inclusion,THE NATIONAL TEACHING & ADVISORY SERVICE LIMITED,Individual School Budgets With Inclusion,650,Externally Purchased Professional Services ,2122P05_CR00436,1727359
Sandwell Metropolitan Borough Council,http://www.sandwell.gov.uk/info/200202/performance_and_spending/1079/payments_over_500,01-Aug-21,Individual School Budgets With Inclusion,SIPS EDUCATION LTD,Individual School Budgets With Inclusion,659,Externally Purchased Professional Services ,2122P05_CR00437,110784
Sandwell Metropolitan Borough Council,http://www.sandwell.gov.uk/info/200202/performance_and_spending/1079/payments_over_500,01-Aug-21,Individual School Budgets With Inclusion,YMCA WOLVERHAMPTON,Individual School Budgets With Inclusion,675,Externally Purchased Professional Services ,2122P05_CR00438,138063
Sandwell Metropolitan Borough Council,http://www.sandwell.gov.uk/info/200202/performance_and_spending/1079/payments_over_500,01-Aug-21,Individual School Budgets With Inclusion,WORK N LEARN LIMITED,Individual School Budgets With Inclusion,720,Externally Purchased Professional Services ,2122P05_CR00439,130458
Sandwell Metropolitan Borough Council,http://www.sandwell.gov.uk/info/200202/performance_and_spending/1079/payments_over_500,01-Aug-21,Individual School Budgets With Inclusion,WORK N LEARN LIMITED,Individual School Budgets With Inclusion,720,Externally Purchased Professional Services ,2122P05_CR00440,130458
Sandwell Metropolitan Borough Council,http://www.sandwell.gov.uk/info/200202/performance_and_spending/1079/payments_over_500,01-Aug-21,Individual School Budgets With Inclusion,WORK N LEARN LIMITED,Individual School Budgets With Inclusion,720,Externally Purchased Professional Services ,2122P05_CR00441,130458
Sandwell Metropolitan Borough Council,http://www.sandwell.gov.uk/info/200202/performance_and_spending/1079/payments_over_500,01-Aug-21,Individual School Budgets With Inclusion,WORK N LEARN LIMITED,Individual School Budgets With Inclusion,720,Externally Purchased Professional Services ,2122P05_CR00442,130458
Sandwell Metropolitan Borough Council,http://www.sandwell.gov.uk/info/200202/performance_and_spending/1079/payments_over_500,01-Aug-21,Individual School Budgets With Inclusion,WORK N LEARN LIMITED,Individual School Budgets With Inclusion,720,Externally Purchased Professional Services ,2122P05_CR00443,130458
Sandwell Metropolitan Borough Council,http://www.sandwell.gov.uk/info/200202/performance_and_spending/1079/payments_over_500,01-Aug-21,Individual School Budgets With Inclusion,WORK N LEARN LIMITED,Individual School Budgets With Inclusion,720,Externally Purchased Professional Services ,2122P05_CR00444,130458
Sandwell Metropolitan Borough Council,http://www.sandwell.gov.uk/info/200202/performance_and_spending/1079/payments_over_500,01-Aug-21,Individual School Budgets With Inclusion,WORK N LEARN LIMITED,Individual School Budgets With Inclusion,720,Externally Purchased Professional Services ,2122P05_CR00445,130458
Sandwell Metropolitan Borough Council,http://www.sandwell.gov.uk/info/200202/performance_and_spending/1079/payments_over_500,01-Aug-21,Individual School Budgets With Inclusion,WORK N LEARN LIMITED,Individual School Budgets With Inclusion,720,Externally Purchased Professional Services ,2122P05_CR00446,130458
Sandwell Metropolitan Borough Council,http://www.sandwell.gov.uk/info/200202/performance_and_spending/1079/payments_over_500,01-Aug-21,Individual School Budgets With Inclusion,WORK N LEARN LIMITED,Individual School Budgets With Inclusion,720,Externally Purchased Professional Services ,2122P05_CR00447,130458
Sandwell Metropolitan Borough Council,http://www.sandwell.gov.uk/info/200202/performance_and_spending/1079/payments_over_500,01-Aug-21,Individual School Budgets With Inclusion,WORK N LEARN LIMITED,Individual School Budgets With Inclusion,720,Externally Purchased Professional Services ,2122P05_CR00448,130458
Sandwell Metropolitan Borough Council,http://www.sandwell.gov.uk/info/200202/performance_and_spending/1079/payments_over_500,01-Aug-21,Individual School Budgets With Inclusion,WORK N LEARN LIMITED,Individual School Budgets With Inclusion,720,Externally Purchased Professional Services ,2122P05_CR00449,130458
Sandwell Metropolitan Borough Council,http://www.sandwell.gov.uk/info/200202/performance_and_spending/1079/payments_over_500,01-Aug-21,Individual School Budgets With Inclusion,WORK N LEARN LIMITED,Individual School Budgets With Inclusion,720,Externally Purchased Professional Services ,2122P05_CR00450,130458
Sandwell Metropolitan Borough Council,http://www.sandwell.gov.uk/info/200202/performance_and_spending/1079/payments_over_500,01-Aug-21,Individual School Budgets With Inclusion,WORK N LEARN LIMITED,Individual School Budgets With Inclusion,720,Externally Purchased Professional Services ,2122P05_CR00451,130458
Sandwell Metropolitan Borough Council,http://www.sandwell.gov.uk/info/200202/performance_and_spending/1079/payments_over_500,01-Aug-21,Individual School Budgets With Inclusion,WORK N LEARN LIMITED,Individual School Budgets With Inclusion,720,Externally Purchased Professional Services ,2122P05_CR00452,130458
Sandwell Metropolitan Borough Council,http://www.sandwell.gov.uk/info/200202/performance_and_spending/1079/payments_over_500,01-Aug-21,Individual School Budgets With Inclusion,WORK N LEARN LIMITED,Individual School Budgets With Inclusion,720,Externally Purchased Professional Services ,2122P05_CR00453,130458
Sandwell Metropolitan Borough Council,http://www.sandwell.gov.uk/info/200202/performance_and_spending/1079/payments_over_500,01-Aug-21,Individual School Budgets With Inclusion,WORK N LEARN LIMITED,Individual School Budgets With Inclusion,720,Externally Purchased Professional Services ,2122P05_CR00454,130458
Sandwell Metropolitan Borough Council,http://www.sandwell.gov.uk/info/200202/performance_and_spending/1079/payments_over_500,01-Aug-21,Individual School Budgets With Inclusion,WORK N LEARN LIMITED,Individual School Budgets With Inclusion,720,Externally Purchased Professional Services ,2122P05_CR00455,130458
Sandwell Metropolitan Borough Council,http://www.sandwell.gov.uk/info/200202/performance_and_spending/1079/payments_over_500,01-Aug-21,Individual School Budgets With Inclusion,WORK N LEARN LIMITED,Individual School Budgets With Inclusion,720,Externally Purchased Professional Services ,2122P05_CR00456,130458
Sandwell Metropolitan Borough Council,http://www.sandwell.gov.uk/info/200202/performance_and_spending/1079/payments_over_500,01-Aug-21,Individual School Budgets With Inclusion,WORK N LEARN LIMITED,Individual School Budgets With Inclusion,720,Externally Purchased Professional Services ,2122P05_CR00457,130458
Sandwell Metropolitan Borough Council,http://www.sandwell.gov.uk/info/200202/performance_and_spending/1079/payments_over_500,01-Aug-21,Individual School Budgets With Inclusion,WORK N LEARN LIMITED,Individual School Budgets With Inclusion,720,Externally Purchased Professional Services ,2122P05_CR00458,130458
Sandwell Metropolitan Borough Council,http://www.sandwell.gov.uk/info/200202/performance_and_spending/1079/payments_over_500,01-Aug-21,Individual School Budgets With Inclusion,WORK N LEARN LIMITED,Individual School Budgets With Inclusion,720,Externally Purchased Professional Services ,2122P05_CR00459,130458
Sandwell Metropolitan Borough Council,http://www.sandwell.gov.uk/info/200202/performance_and_spending/1079/payments_over_500,01-Aug-21,Individual School Budgets With Inclusion,WORK N LEARN LIMITED,Individual School Budgets With Inclusion,720,Externally Purchased Professional Services ,2122P05_CR00460,130458
Sandwell Metropolitan Borough Council,http://www.sandwell.gov.uk/info/200202/performance_and_spending/1079/payments_over_500,01-Aug-21,Individual School Budgets With Inclusion,TICK TOCK DAY NURSERY LTD,Individual School Budgets With Inclusion,724.5,Externally Purchased Professional Services ,2122P05_CR00461,9391
Sandwell Metropolitan Borough Council,http://www.sandwell.gov.uk/info/200202/performance_and_spending/1079/payments_over_500,24-Aug-21,Individual School Budgets With Inclusion,CROCKETTS COMMUNITY PRIMARY SCHOOL,Individual School Budgets With Inclusion,735,External Contract Hire,2122P05_CR00462,1768821
Sandwell Metropolitan Borough Council,http://www.sandwell.gov.uk/info/200202/performance_and_spending/1079/payments_over_500,01-Aug-21,Individual School Budgets With Inclusion,SMARTY PANTS @ LIGHTWOODS HOUSE LTD,Individual School Budgets With Inclusion,735,Externally Purchased Professional Services ,2122P05_CR00463,130645
Sandwell Metropolitan Borough Council,http://www.sandwell.gov.uk/info/200202/performance_and_spending/1079/payments_over_500,09-Aug-21,Individual School Budgets With Inclusion,TINY TOEZ LIMITED,Individual School Budgets With Inclusion,750,Externally Purchased Professional Services ,2122P05_CR00464,23618
Sandwell Metropolitan Borough Council,http://www.sandwell.gov.uk/info/200202/performance_and_spending/1079/payments_over_500,01-Aug-21,Individual School Budgets With Inclusion,INTEGRATED THERAPY SOLUTIONS,Individual School Budgets With Inclusion,766.4,Other Local Authorities,2122P05_CR00465,151971
Sandwell Metropolitan Borough Council,http://www.sandwell.gov.uk/info/200202/performance_and_spending/1079/payments_over_500,01-Aug-21,Individual School Budgets With Inclusion,EG (TRAINING) LTD,Individual School Budgets With Inclusion,795.17,Other Local Authorities,2122P05_CR00466,146780
Sandwell Metropolitan Borough Council,http://www.sandwell.gov.uk/info/200202/performance_and_spending/1079/payments_over_500,01-Aug-21,Individual School Budgets With Inclusion,UNICORN DAY NURSERY,Individual School Budgets With Inclusion,810,Externally Purchased Professional Services ,2122P05_CR00467,91543
Sandwell Metropolitan Borough Council,http://www.sandwell.gov.uk/info/200202/performance_and_spending/1079/payments_over_500,01-Aug-21,Individual School Budgets With Inclusion,WORK N LEARN LIMITED,Individual School Budgets With Inclusion,855,Externally Purchased Professional Services ,2122P05_CR00468,130458
Sandwell Metropolitan Borough Council,http://www.sandwell.gov.uk/info/200202/performance_and_spending/1079/payments_over_500,01-Aug-21,Individual School Budgets With Inclusion,THE NATIONAL TEACHING & ADVISORY SERVICE LIMITED,Individual School Budgets With Inclusion,910,Externally Purchased Professional Services ,2122P05_CR00469,1727359
Sandwell Metropolitan Borough Council,http://www.sandwell.gov.uk/info/200202/performance_and_spending/1079/payments_over_500,01-Aug-21,Individual School Budgets With Inclusion,THE NATIONAL TEACHING & ADVISORY SERVICE LIMITED,Individual School Budgets With Inclusion,910,Externally Purchased Professional Services ,2122P05_CR00470,1727359
Sandwell Metropolitan Borough Council,http://www.sandwell.gov.uk/info/200202/performance_and_spending/1079/payments_over_500,01-Aug-21,Individual School Budgets With Inclusion,LAVENDER FARM DAY NURSERY,Individual School Budgets With Inclusion,971.25,Externally Purchased Professional Services ,2122P05_CR00471,65596
Sandwell Metropolitan Borough Council,http://www.sandwell.gov.uk/info/200202/performance_and_spending/1079/payments_over_500,01-Aug-21,Individual School Budgets With Inclusion,ROWLEY VILLAGE DAY NURSERY,Individual School Budgets With Inclusion,980.1,Externally Purchased Professional Services ,2122P05_CR00472,24228
Sandwell Metropolitan Borough Council,http://www.sandwell.gov.uk/info/200202/performance_and_spending/1079/payments_over_500,01-Aug-21,Individual School Budgets With Inclusion,HOLIDAY INN UK LTD,Individual School Budgets With Inclusion,991.67,Hire of Facilities,2122P05_CR00473,1731622
Sandwell Metropolitan Borough Council,http://www.sandwell.gov.uk/info/200202/performance_and_spending/1079/payments_over_500,01-Aug-21,Individual School Budgets With Inclusion,THE NATIONAL TEACHING & ADVISORY SERVICE LIMITED,Individual School Budgets With Inclusion,1040,Externally Purchased Professional Services ,2122P05_CR00474,1727359
Sandwell Metropolitan Borough Council,http://www.sandwell.gov.uk/info/200202/performance_and_spending/1079/payments_over_500,24-Aug-21,Individual School Budgets With Inclusion,CROCKETTS COMMUNITY PRIMARY SCHOOL,Individual School Budgets With Inclusion,1086,External Contract Hire,2122P05_CR00475,1768821
Sandwell Metropolitan Borough Council,http://www.sandwell.gov.uk/info/200202/performance_and_spending/1079/payments_over_500,01-Aug-21,Individual School Budgets With Inclusion,IMPACT EDUCATION AND TRAINING LIMITED,Individual School Budgets With Inclusion,1090,Externally Purchased Professional Services ,2122P05_CR00476,97667
Sandwell Metropolitan Borough Council,http://www.sandwell.gov.uk/info/200202/performance_and_spending/1079/payments_over_500,01-Aug-21,Individual School Budgets With Inclusion,WALSALL COLLEGE,Individual School Budgets With Inclusion,1113.38,Externally Purchased Professional Services ,2122P05_CR00477,15561
Sandwell Metropolitan Borough Council,http://www.sandwell.gov.uk/info/200202/performance_and_spending/1079/payments_over_500,01-Aug-21,Individual School Budgets With Inclusion,WALSALL COLLEGE,Individual School Budgets With Inclusion,1193.38,Externally Purchased Professional Services ,2122P05_CR00478,15561
Sandwell Metropolitan Borough Council,http://www.sandwell.gov.uk/info/200202/performance_and_spending/1079/payments_over_500,01-Aug-21,Individual School Budgets With Inclusion,ST HUBERTS PRE-SCHOOL PLAYGROUP LIMITED,Individual School Budgets With Inclusion,1260,Externally Purchased Professional Services ,2122P05_CR00479,1615026
Sandwell Metropolitan Borough Council,http://www.sandwell.gov.uk/info/200202/performance_and_spending/1079/payments_over_500,01-Aug-21,Individual School Budgets With Inclusion,THE NATIONAL TEACHING & ADVISORY SERVICE LIMITED,Individual School Budgets With Inclusion,1300,Externally Purchased Professional Services ,2122P05_CR00480,1727359
Sandwell Metropolitan Borough Council,http://www.sandwell.gov.uk/info/200202/performance_and_spending/1079/payments_over_500,01-Aug-21,Individual School Budgets With Inclusion,THE NATIONAL TEACHING & ADVISORY SERVICE LIMITED,Individual School Budgets With Inclusion,1300,Externally Purchased Professional Services ,2122P05_CR00481,1727359
Sandwell Metropolitan Borough Council,http://www.sandwell.gov.uk/info/200202/performance_and_spending/1079/payments_over_500,01-Aug-21,Individual School Budgets With Inclusion,VICTORIA HOUSE NURSERY,Individual School Budgets With Inclusion,1305,Externally Purchased Professional Services ,2122P05_CR00482,104097
Sandwell Metropolitan Borough Council,http://www.sandwell.gov.uk/info/200202/performance_and_spending/1079/payments_over_500,01-Aug-21,Individual School Budgets With Inclusion,THE NATIONAL TEACHING & ADVISORY SERVICE LIMITED,Individual School Budgets With Inclusion,1332.5,Externally Purchased Professional Services ,2122P05_CR00483,1727359
Sandwell Metropolitan Borough Council,http://www.sandwell.gov.uk/info/200202/performance_and_spending/1079/payments_over_500,01-Aug-21,Individual School Budgets With Inclusion,YMCA WOLVERHAMPTON,Individual School Budgets With Inclusion,1440,Externally Purchased Professional Services ,2122P05_CR00484,138063
Sandwell Metropolitan Borough Council,http://www.sandwell.gov.uk/info/200202/performance_and_spending/1079/payments_over_500,01-Aug-21,Individual School Budgets With Inclusion,WORK N LEARN LIMITED,Individual School Budgets With Inclusion,1440,Externally Purchased Professional Services ,2122P05_CR00485,130458
Sandwell Metropolitan Borough Council,http://www.sandwell.gov.uk/info/200202/performance_and_spending/1079/payments_over_500,01-Aug-21,Individual School Budgets With Inclusion,WORK N LEARN LIMITED,Individual School Budgets With Inclusion,1440,Externally Purchased Professional Services ,2122P05_CR00486,130458
Sandwell Metropolitan Borough Council,http://www.sandwell.gov.uk/info/200202/performance_and_spending/1079/payments_over_500,01-Aug-21,Individual School Budgets With Inclusion,WORK N LEARN LIMITED,Individual School Budgets With Inclusion,1440,Externally Purchased Professional Services ,2122P05_CR00487,130458
Sandwell Metropolitan Borough Council,http://www.sandwell.gov.uk/info/200202/performance_and_spending/1079/payments_over_500,01-Aug-21,Individual School Budgets With Inclusion,TARGETED PROVISION LTD,Individual School Budgets With Inclusion,1471.25,Externally Purchased Professional Services ,2122P05_CR00488,153248
Sandwell Metropolitan Borough Council,http://www.sandwell.gov.uk/info/200202/performance_and_spending/1079/payments_over_500,01-Aug-21,Individual School Budgets With Inclusion,SIPS EDUCATION LTD,Individual School Budgets With Inclusion,1506,Externally Purchased Professional Services ,2122P05_CR00489,110784
Sandwell Metropolitan Borough Council,http://www.sandwell.gov.uk/info/200202/performance_and_spending/1079/payments_over_500,01-Aug-21,Individual School Budgets With Inclusion,THE NATIONAL TEACHING & ADVISORY SERVICE LIMITED,Individual School Budgets With Inclusion,1527.5,Externally Purchased Professional Services ,2122P05_CR00490,1727359
Sandwell Metropolitan Borough Council,http://www.sandwell.gov.uk/info/200202/performance_and_spending/1079/payments_over_500,01-Aug-21,Individual School Budgets With Inclusion,YMCA WOLVERHAMPTON,Individual School Budgets With Inclusion,1567.5,Externally Purchased Professional Services ,2122P05_CR00491,138063
Sandwell Metropolitan Borough Council,http://www.sandwell.gov.uk/info/200202/performance_and_spending/1079/payments_over_500,01-Aug-21,Individual School Budgets With Inclusion,ST HUBERTS PRE-SCHOOL PLAYGROUP LIMITED,Individual School Budgets With Inclusion,1662.15,Externally Purchased Professional Services ,2122P05_CR00492,1615026
Sandwell Metropolitan Borough Council,http://www.sandwell.gov.uk/info/200202/performance_and_spending/1079/payments_over_500,01-Aug-21,Individual School Budgets With Inclusion,WORK N LEARN LIMITED,Individual School Budgets With Inclusion,1800,Externally Purchased Professional Services ,2122P05_CR00493,130458
Sandwell Metropolitan Borough Council,http://www.sandwell.gov.uk/info/200202/performance_and_spending/1079/payments_over_500,01-Aug-21,Individual School Budgets With Inclusion,THE NATIONAL TEACHING & ADVISORY SERVICE LIMITED,Individual School Budgets With Inclusion,1820,Externally Purchased Professional Services ,2122P05_CR00494,1727359
Sandwell Metropolitan Borough Council,http://www.sandwell.gov.uk/info/200202/performance_and_spending/1079/payments_over_500,01-Aug-21,Individual School Budgets With Inclusion,THE NATIONAL TEACHING & ADVISORY SERVICE LIMITED,Individual School Budgets With Inclusion,2047.5,Externally Purchased Professional Services ,2122P05_CR00495,1727359
Sandwell Metropolitan Borough Council,http://www.sandwell.gov.uk/info/200202/performance_and_spending/1079/payments_over_500,01-Aug-21,Individual School Budgets With Inclusion,THE NATIONAL TEACHING & ADVISORY SERVICE LIMITED,Individual School Budgets With Inclusion,2047.5,Externally Purchased Professional Services ,2122P05_CR00496,1727359
Sandwell Metropolitan Borough Council,http://www.sandwell.gov.uk/info/200202/performance_and_spending/1079/payments_over_500,01-Aug-21,Individual School Budgets With Inclusion,HORIZON CARE AND EDUCATION GROUP LIMITED,Individual School Budgets With Inclusion,2048,Other Establishments,2122P05_CR00497,114884
Sandwell Metropolitan Borough Council,http://www.sandwell.gov.uk/info/200202/performance_and_spending/1079/payments_over_500,24-Aug-21,Individual School Budgets With Inclusion,CROCKETTS COMMUNITY PRIMARY SCHOOL,Individual School Budgets With Inclusion,2306.7,External Contract Hire,2122P05_CR00498,1768821
Sandwell Metropolitan Borough Council,http://www.sandwell.gov.uk/info/200202/performance_and_spending/1079/payments_over_500,01-Aug-21,Individual School Budgets With Inclusion,THE NATIONAL TEACHING & ADVISORY SERVICE LIMITED,Individual School Budgets With Inclusion,2470,Externally Purchased Professional Services ,2122P05_CR00499,1727359
Sandwell Metropolitan Borough Council,http://www.sandwell.gov.uk/info/200202/performance_and_spending/1079/payments_over_500,01-Aug-21,Individual School Budgets With Inclusion,LAVENDER FARM DAY NURSERY,Individual School Budgets With Inclusion,2849,Externally Purchased Professional Services ,2122P05_CR00500,65596
Sandwell Metropolitan Borough Council,http://www.sandwell.gov.uk/info/200202/performance_and_spending/1079/payments_over_500,03-Aug-21,Individual School Budgets With Inclusion,THE PATCH DAY NURSERY,Individual School Budgets With Inclusion,2870,Externally Purchased Professional Services ,2122P05_CR00501,126020
Sandwell Metropolitan Borough Council,http://www.sandwell.gov.uk/info/200202/performance_and_spending/1079/payments_over_500,01-Aug-21,Individual School Budgets With Inclusion,WORK N LEARN LIMITED,Individual School Budgets With Inclusion,2880,Externally Purchased Professional Services ,2122P05_CR00502,130458
Sandwell Metropolitan Borough Council,http://www.sandwell.gov.uk/info/200202/performance_and_spending/1079/payments_over_500,01-Aug-21,Individual School Budgets With Inclusion,THE NATIONAL TEACHING & ADVISORY SERVICE LIMITED,Individual School Budgets With Inclusion,2990,Externally Purchased Professional Services ,2122P05_CR00503,1727359
Sandwell Metropolitan Borough Council,http://www.sandwell.gov.uk/info/200202/performance_and_spending/1079/payments_over_500,01-Aug-21,Individual School Budgets With Inclusion,LAVENDER FARM DAY NURSERY,Individual School Budgets With Inclusion,3052.5,Externally Purchased Professional Services ,2122P05_CR00504,65596
Sandwell Metropolitan Borough Council,http://www.sandwell.gov.uk/info/200202/performance_and_spending/1079/payments_over_500,01-Aug-21,Individual School Budgets With Inclusion,LAVENDER FARM DAY NURSERY,Individual School Budgets With Inclusion,3108,Externally Purchased Professional Services ,2122P05_CR00505,65596
Sandwell Metropolitan Borough Council,http://www.sandwell.gov.uk/info/200202/performance_and_spending/1079/payments_over_500,01-Aug-21,Individual School Budgets With Inclusion,ENVIRONMENTS FOR LEARNING SANDWELL PFI ONE LIMITED,Individual School Budgets With Inclusion,3264.67,PFI & PPP Schemes,2122P05_CR00506,98332
Sandwell Metropolitan Borough Council,http://www.sandwell.gov.uk/info/200202/performance_and_spending/1079/payments_over_500,01-Aug-21,Individual School Budgets With Inclusion,LAVENDER FARM DAY NURSERY,Individual School Budgets With Inclusion,3330,Externally Purchased Professional Services ,2122P05_CR00507,65596
Sandwell Metropolitan Borough Council,http://www.sandwell.gov.uk/info/200202/performance_and_spending/1079/payments_over_500,01-Aug-21,Individual School Budgets With Inclusion,BLUE WHALE TRAINING,Individual School Budgets With Inclusion,3360,Externally Purchased Professional Services ,2122P05_CR00508,133720
Sandwell Metropolitan Borough Council,http://www.sandwell.gov.uk/info/200202/performance_and_spending/1079/payments_over_500,01-Aug-21,Individual School Budgets With Inclusion,SKYBOUND THERAPIES LTD,Individual School Budgets With Inclusion,5030.5,Other Local Authorities,2122P05_CR00509,144066
Sandwell Metropolitan Borough Council,http://www.sandwell.gov.uk/info/200202/performance_and_spending/1079/payments_over_500,01-Aug-21,Individual School Budgets With Inclusion,ORBIS EDUCATION AND CARE LTD,Individual School Budgets With Inclusion,6357.88,Other Establishments,2122P05_CR00510,140984
Sandwell Metropolitan Borough Council,http://www.sandwell.gov.uk/info/200202/performance_and_spending/1079/payments_over_500,01-Aug-21,Individual School Budgets With Inclusion,DUDLEY COLLEGE OF TECHNOLOGY,Individual School Budgets With Inclusion,6865.07,Externally Purchased Professional Services ,2122P05_CR00511,1646653
Sandwell Metropolitan Borough Council,http://www.sandwell.gov.uk/info/200202/performance_and_spending/1079/payments_over_500,17-Aug-21,Individual School Budgets With Inclusion,NEWBURY SCHOOL LTD,Individual School Budgets With Inclusion,8777.3,Other Establishments,2122P05_CR00512,153981
Sandwell Metropolitan Borough Council,http://www.sandwell.gov.uk/info/200202/performance_and_spending/1079/payments_over_500,01-Aug-21,Individual School Budgets With Inclusion,ENVIRONMENTS FOR LEARNING SANDWELL PFI ONE LIMITED,Individual School Budgets With Inclusion,11356.09,PFI & PPP Schemes,2122P05_CR00513,98332
Sandwell Metropolitan Borough Council,http://www.sandwell.gov.uk/info/200202/performance_and_spending/1079/payments_over_500,01-Aug-21,Individual School Budgets With Inclusion,IMPACT EDUCATION AND TRAINING LIMITED,Individual School Budgets With Inclusion,11600,Externally Purchased Professional Services ,2122P05_CR00514,97667
Sandwell Metropolitan Borough Council,http://www.sandwell.gov.uk/info/200202/performance_and_spending/1079/payments_over_500,01-Aug-21,Individual School Budgets With Inclusion,WV2 EDUCATION LTD,Individual School Budgets With Inclusion,12666.67,Other Establishments,2122P05_CR00515,152252
Sandwell Metropolitan Borough Council,http://www.sandwell.gov.uk/info/200202/performance_and_spending/1079/payments_over_500,01-Aug-21,Individual School Budgets With Inclusion,HORIZON CARE AND EDUCATION GROUP LIMITED,Individual School Budgets With Inclusion,15360,Other Establishments,2122P05_CR00516,114884
Sandwell Metropolitan Borough Council,http://www.sandwell.gov.uk/info/200202/performance_and_spending/1079/payments_over_500,01-Aug-21,Individual School Budgets With Inclusion,DUDLEY COLLEGE OF TECHNOLOGY,Individual School Budgets With Inclusion,15665.87,Externally Purchased Professional Services ,2122P05_CR00517,1646653
Sandwell Metropolitan Borough Council,http://www.sandwell.gov.uk/info/200202/performance_and_spending/1079/payments_over_500,01-Aug-21,Individual School Budgets With Inclusion,THE ROWAN SCHOOL,Individual School Budgets With Inclusion,20928.72,Other Establishments,2122P05_CR00518,139765
Sandwell Metropolitan Borough Council,http://www.sandwell.gov.uk/info/200202/performance_and_spending/1079/payments_over_500,01-Aug-21,Individual School Budgets With Inclusion,THE ROWAN SCHOOL,Individual School Budgets With Inclusion,21687.69,Other Establishments,2122P05_CR00519,139765
Sandwell Metropolitan Borough Council,http://www.sandwell.gov.uk/info/200202/performance_and_spending/1079/payments_over_500,01-Aug-21,Individual School Budgets With Inclusion,TOTAL SCHOOL SOLUTIONS (SANDWELL) LTD,Individual School Budgets With Inclusion,22240.6,PFI & PPP Schemes,2122P05_CR00520,34284
Sandwell Metropolitan Borough Council,http://www.sandwell.gov.uk/info/200202/performance_and_spending/1079/payments_over_500,01-Aug-21,Individual School Budgets With Inclusion,TOTAL SCHOOL SOLUTIONS (SANDWELL) LTD,Individual School Budgets With Inclusion,36836.68,PFI & PPP Schemes,2122P05_CR00521,34284
Sandwell Metropolitan Borough Council,http://www.sandwell.gov.uk/info/200202/performance_and_spending/1079/payments_over_500,01-Aug-21,Individual School Budgets With Inclusion,ORBIS EDUCATION AND CARE LTD,Individual School Budgets With Inclusion,43964.55,Other Establishments,2122P05_CR00522,140984
Sandwell Metropolitan Borough Council,http://www.sandwell.gov.uk/info/200202/performance_and_spending/1079/payments_over_500,01-Aug-21,Individual School Budgets With Inclusion,HORIZON CARE AND EDUCATION GROUP LIMITED,Individual School Budgets With Inclusion,164988.75,Other Establishments,2122P05_CR00523,114884
Sandwell Metropolitan Borough Council,http://www.sandwell.gov.uk/info/200202/performance_and_spending/1079/payments_over_500,01-Aug-21,Individual School Budgets With Inclusion,TOTAL SCHOOL SOLUTIONS (SANDWELL) LTD,Individual School Budgets With Inclusion,234804.12,PFI & PPP Schemes,2122P05_CR00524,34284
Sandwell Metropolitan Borough Council,http://www.sandwell.gov.uk/info/200202/performance_and_spending/1079/payments_over_500,01-Aug-21,Individual School Budgets With Inclusion,TOTAL SCHOOL SOLUTIONS (SANDWELL) LTD,Individual School Budgets With Inclusion,234823.83,PFI & PPP Schemes,2122P05_CR00525,34284
Sandwell Metropolitan Borough Council,http://www.sandwell.gov.uk/info/200202/performance_and_spending/1079/payments_over_500,01-Aug-21,Individual School Budgets With Inclusion,SANDWELL COLLEGE,Individual School Budgets With Inclusion,264000,Externally Purchased Professional Services ,2122P05_CR00526,1529345
Sandwell Metropolitan Borough Council,http://www.sandwell.gov.uk/info/200202/performance_and_spending/1079/payments_over_500,01-Aug-21,Individual School Budgets With Inclusion,ENVIRONMENTS FOR LEARNING SANDWELL PFI ONE LIMITED,Individual School Budgets With Inclusion,595345,PFI & PPP Schemes,2122P05_CR00527,98332
Sandwell Metropolitan Borough Council,http://www.sandwell.gov.uk/info/200202/performance_and_spending/1079/payments_over_500,01-Aug-21,Public Health,R W SERVICES CONTRACTORS LIMITED,Public Health,2536.12,Operational Services ,2122P05_CR00528,68320
Sandwell Metropolitan Borough Council,http://www.sandwell.gov.uk/info/200202/performance_and_spending/1079/payments_over_500,01-Aug-21,Public Health,DATA POWER LTD,Public Health,5908,ICT ,2122P05_CR00529,78780
Sandwell Metropolitan Borough Council,http://www.sandwell.gov.uk/info/200202/performance_and_spending/1079/payments_over_500,01-Aug-21,Public Health,JOHN F HUNT POWER LIMITED,Public Health,583.3,Equipment & Furniture ,2122P05_CR00530,47933
Sandwell Metropolitan Borough Council,http://www.sandwell.gov.uk/info/200202/performance_and_spending/1079/payments_over_500,24-Aug-21,Public Health,GRADKO INTERNATIONAL LIMITED,Public Health,593.5,Operational Services ,2122P05_CR00531,1699312
Sandwell Metropolitan Borough Council,http://www.sandwell.gov.uk/info/200202/performance_and_spending/1079/payments_over_500,01-Aug-21,Public Health,RENAISSANCE CREATIVE DESIGN & PRINT LTD,Public Health,865,Advertising & Publicity,2122P05_CR00532,97376
Sandwell Metropolitan Borough Council,http://www.sandwell.gov.uk/info/200202/performance_and_spending/1079/payments_over_500,01-Aug-21,Public Health,RENAISSANCE CREATIVE DESIGN & PRINT LTD,Public Health,1385,Advertising & Publicity,2122P05_CR00533,97376
Sandwell Metropolitan Borough Council,http://www.sandwell.gov.uk/info/200202/performance_and_spending/1079/payments_over_500,01-Aug-21,Public Health,THE ROYAL WOLVERHAMPTON HOSPITALS NHS TRUST,Public Health,1802.22,Externally Purchased Professional Services ,2122P05_CR00534,102582
Sandwell Metropolitan Borough Council,http://www.sandwell.gov.uk/info/200202/performance_and_spending/1079/payments_over_500,01-Aug-21,Public Health,CYBER MEDIA SOLUTIONS LTD,Public Health,1807.5,Advertising & Publicity,2122P05_CR00535,114293
Sandwell Metropolitan Borough Council,http://www.sandwell.gov.uk/info/200202/performance_and_spending/1079/payments_over_500,01-Aug-21,Public Health,CARTER BROWN - THE EXPERT SERVICE LTD,Public Health,2121.66,Externally Purchased Professional Services ,2122P05_CR00536,61555
Sandwell Metropolitan Borough Council,http://www.sandwell.gov.uk/info/200202/performance_and_spending/1079/payments_over_500,06-Aug-21,Public Health,HUGE MEDIA ADVERTISING LTD,Public Health,4794,Advertising & Publicity,2122P05_CR00537,148625
Sandwell Metropolitan Borough Council,http://www.sandwell.gov.uk/info/200202/performance_and_spending/1079/payments_over_500,01-Aug-21,Public Health,CWS SOUND & LIGHTING LTD,Public Health,4995,Conference Expenses,2122P05_CR00538,134451
Sandwell Metropolitan Borough Council,http://www.sandwell.gov.uk/info/200202/performance_and_spending/1079/payments_over_500,01-Aug-21,Public Health,EAST END FOODS LTD,Public Health,7210,Grant Payments,2122P05_CR00539,53585
Sandwell Metropolitan Borough Council,http://www.sandwell.gov.uk/info/200202/performance_and_spending/1079/payments_over_500,01-Aug-21,Public Health,EVERYONE HEALTH LTD,Public Health,7618.5,Externally Purchased Professional Services ,2122P05_CR00540,137429
Sandwell Metropolitan Borough Council,http://www.sandwell.gov.uk/info/200202/performance_and_spending/1079/payments_over_500,01-Aug-21,Public Health,EVERYONE HEALTH LTD,Public Health,7786.8,Externally Purchased Professional Services ,2122P05_CR00541,137429
Sandwell Metropolitan Borough Council,http://www.sandwell.gov.uk/info/200202/performance_and_spending/1079/payments_over_500,03-Aug-21,Public Health,DIVA CREATIVE LTD,Public Health,7804.16,Externally Purchased Professional Services ,2122P05_CR00542,88217
Sandwell Metropolitan Borough Council,http://www.sandwell.gov.uk/info/200202/performance_and_spending/1079/payments_over_500,24-Aug-21,Public Health,DUDLEY GROUP OF HOSPITALS NHS FOUNDATION TRUST,Public Health,16934.36,Externally Purchased Professional Services ,2122P05_CR00543,116503
Sandwell Metropolitan Borough Council,http://www.sandwell.gov.uk/info/200202/performance_and_spending/1079/payments_over_500,01-Aug-21,Public Health,EVERYONE HEALTH LTD,Public Health,32062.5,Externally Purchased Professional Services ,2122P05_CR00544,137429
Sandwell Metropolitan Borough Council,http://www.sandwell.gov.uk/info/200202/performance_and_spending/1079/payments_over_500,02-Aug-21,Public Health,S.C.V.O.,Public Health,42619.7,Grant Payments,2122P05_CR00545,109813
Sandwell Metropolitan Borough Council,http://www.sandwell.gov.uk/info/200202/performance_and_spending/1079/payments_over_500,17-Aug-21,Regeneration & Growth,DODD GROUP (MIDLANDS) LIMITED,Regeneration And The Economy,522.59,Building Maintenance & Improvements,2122P05_CR00546,77009142
Sandwell Metropolitan Borough Council,http://www.sandwell.gov.uk/info/200202/performance_and_spending/1079/payments_over_500,17-Aug-21,Regeneration & Growth,DODD GROUP (MIDLANDS) LIMITED,Regeneration And The Economy,538.66,Building Maintenance & Improvements,2122P05_CR00547,77009142
Sandwell Metropolitan Borough Council,http://www.sandwell.gov.uk/info/200202/performance_and_spending/1079/payments_over_500,01-Aug-21,Regeneration & Growth,DODD GROUP (MIDLANDS) LIMITED,Regeneration And The Economy,550.52,Building Maintenance & Improvements,2122P05_CR00548,77009142
Sandwell Metropolitan Borough Council,http://www.sandwell.gov.uk/info/200202/performance_and_spending/1079/payments_over_500,01-Aug-21,Regeneration & Growth,DODD GROUP (MIDLANDS) LIMITED,Regeneration And The Economy,553.57,Building Maintenance & Improvements,2122P05_CR00549,77009142
Sandwell Metropolitan Borough Council,http://www.sandwell.gov.uk/info/200202/performance_and_spending/1079/payments_over_500,17-Aug-21,Regeneration & Growth,DODD GROUP (MIDLANDS) LIMITED,Regeneration And The Economy,553.99,Building Maintenance & Improvements,2122P05_CR00550,77009142
Sandwell Metropolitan Borough Council,http://www.sandwell.gov.uk/info/200202/performance_and_spending/1079/payments_over_500,01-Aug-21,Regeneration & Growth,DODD GROUP (MIDLANDS) LIMITED,Regeneration And The Economy,568.8,Building Maintenance & Improvements,2122P05_CR00551,77009142
Sandwell Metropolitan Borough Council,http://www.sandwell.gov.uk/info/200202/performance_and_spending/1079/payments_over_500,01-Aug-21,Regeneration & Growth,DODD GROUP (MIDLANDS) LIMITED,Regeneration And The Economy,584.31,Building Maintenance & Improvements,2122P05_CR00552,77009142
Sandwell Metropolitan Borough Council,http://www.sandwell.gov.uk/info/200202/performance_and_spending/1079/payments_over_500,01-Aug-21,Regeneration & Growth,DODD GROUP (MIDLANDS) LIMITED,Regeneration And The Economy,599.61,Building Maintenance & Improvements,2122P05_CR00553,77009142
Sandwell Metropolitan Borough Council,http://www.sandwell.gov.uk/info/200202/performance_and_spending/1079/payments_over_500,01-Aug-21,Regeneration & Growth,DODD GROUP (MIDLANDS) LIMITED,Regeneration And The Economy,614.04,Building Maintenance & Improvements,2122P05_CR00554,77009142
Sandwell Metropolitan Borough Council,http://www.sandwell.gov.uk/info/200202/performance_and_spending/1079/payments_over_500,17-Aug-21,Regeneration & Growth,DODD GROUP (MIDLANDS) LIMITED,Regeneration And The Economy,631.46,Building Maintenance & Improvements,2122P05_CR00555,77009142
Sandwell Metropolitan Borough Council,http://www.sandwell.gov.uk/info/200202/performance_and_spending/1079/payments_over_500,01-Aug-21,Regeneration & Growth,DODD GROUP (MIDLANDS) LIMITED,Regeneration And The Economy,633.49,Building Maintenance & Improvements,2122P05_CR00556,77009142
Sandwell Metropolitan Borough Council,http://www.sandwell.gov.uk/info/200202/performance_and_spending/1079/payments_over_500,17-Aug-21,Regeneration & Growth,DODD GROUP (MIDLANDS) LIMITED,Regeneration And The Economy,667.1,Building Maintenance & Improvements,2122P05_CR00557,77009142
Sandwell Metropolitan Borough Council,http://www.sandwell.gov.uk/info/200202/performance_and_spending/1079/payments_over_500,01-Aug-21,Regeneration & Growth,DODD GROUP (MIDLANDS) LIMITED,Regeneration And The Economy,685.95,Building Maintenance & Improvements,2122P05_CR00558,77009142
Sandwell Metropolitan Borough Council,http://www.sandwell.gov.uk/info/200202/performance_and_spending/1079/payments_over_500,01-Aug-21,Regeneration & Growth,DODD GROUP (MIDLANDS) LIMITED,Regeneration And The Economy,693.7,Building Maintenance & Improvements,2122P05_CR00559,77009142
Sandwell Metropolitan Borough Council,http://www.sandwell.gov.uk/info/200202/performance_and_spending/1079/payments_over_500,17-Aug-21,Regeneration & Growth,DODD GROUP (MIDLANDS) LIMITED,Regeneration And The Economy,700.59,Building Maintenance & Improvements,2122P05_CR00560,77009142
Sandwell Metropolitan Borough Council,http://www.sandwell.gov.uk/info/200202/performance_and_spending/1079/payments_over_500,01-Aug-21,Regeneration & Growth,DODD GROUP (MIDLANDS) LIMITED,Regeneration And The Economy,711,Building Maintenance & Improvements,2122P05_CR00561,77009142
Sandwell Metropolitan Borough Council,http://www.sandwell.gov.uk/info/200202/performance_and_spending/1079/payments_over_500,01-Aug-21,Regeneration & Growth,DODD GROUP (MIDLANDS) LIMITED,Regeneration And The Economy,724.64,Building Maintenance & Improvements,2122P05_CR00562,77009142
Sandwell Metropolitan Borough Council,http://www.sandwell.gov.uk/info/200202/performance_and_spending/1079/payments_over_500,01-Aug-21,Regeneration & Growth,DODD GROUP (MIDLANDS) LIMITED,Regeneration And The Economy,752.96,Building Maintenance & Improvements,2122P05_CR00563,77009142
Sandwell Metropolitan Borough Council,http://www.sandwell.gov.uk/info/200202/performance_and_spending/1079/payments_over_500,01-Aug-21,Regeneration & Growth,DODD GROUP (MIDLANDS) LIMITED,Regeneration And The Economy,765.76,Building Maintenance & Improvements,2122P05_CR00564,77009142
Sandwell Metropolitan Borough Council,http://www.sandwell.gov.uk/info/200202/performance_and_spending/1079/payments_over_500,17-Aug-21,Regeneration & Growth,DODD GROUP (MIDLANDS) LIMITED,Regeneration And The Economy,770.77,Building Maintenance & Improvements,2122P05_CR00565,77009142
Sandwell Metropolitan Borough Council,http://www.sandwell.gov.uk/info/200202/performance_and_spending/1079/payments_over_500,01-Aug-21,Regeneration & Growth,DODD GROUP (MIDLANDS) LIMITED,Regeneration And The Economy,776.96,Building Maintenance & Improvements,2122P05_CR00566,77009142
Sandwell Metropolitan Borough Council,http://www.sandwell.gov.uk/info/200202/performance_and_spending/1079/payments_over_500,17-Aug-21,Regeneration & Growth,DODD GROUP (MIDLANDS) LIMITED,Regeneration And The Economy,796.44,Building Maintenance & Improvements,2122P05_CR00567,77009142
Sandwell Metropolitan Borough Council,http://www.sandwell.gov.uk/info/200202/performance_and_spending/1079/payments_over_500,17-Aug-21,Regeneration & Growth,DODD GROUP (MIDLANDS) LIMITED,Regeneration And The Economy,814.8,Building Maintenance & Improvements,2122P05_CR00568,77009142
Sandwell Metropolitan Borough Council,http://www.sandwell.gov.uk/info/200202/performance_and_spending/1079/payments_over_500,01-Aug-21,Regeneration & Growth,DODD GROUP (MIDLANDS) LIMITED,Regeneration And The Economy,846.09,Building Maintenance & Improvements,2122P05_CR00569,77009142
Sandwell Metropolitan Borough Council,http://www.sandwell.gov.uk/info/200202/performance_and_spending/1079/payments_over_500,01-Aug-21,Regeneration & Growth,DODD GROUP (MIDLANDS) LIMITED,Regeneration And The Economy,856.16,Building Maintenance & Improvements,2122P05_CR00570,77009142
Sandwell Metropolitan Borough Council,http://www.sandwell.gov.uk/info/200202/performance_and_spending/1079/payments_over_500,01-Aug-21,Regeneration & Growth,DODD GROUP (MIDLANDS) LIMITED,Regeneration And The Economy,859.13,Building Maintenance & Improvements,2122P05_CR00571,77009142
Sandwell Metropolitan Borough Council,http://www.sandwell.gov.uk/info/200202/performance_and_spending/1079/payments_over_500,01-Aug-21,Regeneration & Growth,DODD GROUP (MIDLANDS) LIMITED,Regeneration And The Economy,859.13,Building Maintenance & Improvements,2122P05_CR00572,77009142
Sandwell Metropolitan Borough Council,http://www.sandwell.gov.uk/info/200202/performance_and_spending/1079/payments_over_500,17-Aug-21,Regeneration & Growth,DODD GROUP (MIDLANDS) LIMITED,Regeneration And The Economy,883.48,Building Maintenance & Improvements,2122P05_CR00573,77009142
Sandwell Metropolitan Borough Council,http://www.sandwell.gov.uk/info/200202/performance_and_spending/1079/payments_over_500,01-Aug-21,Regeneration & Growth,DODD GROUP (MIDLANDS) LIMITED,Regeneration And The Economy,925.65,Building Maintenance & Improvements,2122P05_CR00574,77009142
Sandwell Metropolitan Borough Council,http://www.sandwell.gov.uk/info/200202/performance_and_spending/1079/payments_over_500,17-Aug-21,Regeneration & Growth,DODD GROUP (MIDLANDS) LIMITED,Regeneration And The Economy,1021.94,Building Maintenance & Improvements,2122P05_CR00575,77009142
Sandwell Metropolitan Borough Council,http://www.sandwell.gov.uk/info/200202/performance_and_spending/1079/payments_over_500,01-Aug-21,Regeneration & Growth,DODD GROUP (MIDLANDS) LIMITED,Regeneration And The Economy,1031.93,Building Maintenance & Improvements,2122P05_CR00576,77009142
Sandwell Metropolitan Borough Council,http://www.sandwell.gov.uk/info/200202/performance_and_spending/1079/payments_over_500,01-Aug-21,Regeneration & Growth,DODD GROUP (MIDLANDS) LIMITED,Regeneration And The Economy,1033.84,Building Maintenance & Improvements,2122P05_CR00577,77009142
Sandwell Metropolitan Borough Council,http://www.sandwell.gov.uk/info/200202/performance_and_spending/1079/payments_over_500,01-Aug-21,Regeneration & Growth,DODD GROUP (MIDLANDS) LIMITED,Regeneration And The Economy,1035.23,Building Maintenance & Improvements,2122P05_CR00578,77009142
Sandwell Metropolitan Borough Council,http://www.sandwell.gov.uk/info/200202/performance_and_spending/1079/payments_over_500,01-Aug-21,Regeneration & Growth,DODD GROUP (MIDLANDS) LIMITED,Regeneration And The Economy,1084.64,Building Maintenance & Improvements,2122P05_CR00579,77009142
Sandwell Metropolitan Borough Council,http://www.sandwell.gov.uk/info/200202/performance_and_spending/1079/payments_over_500,17-Aug-21,Regeneration & Growth,DODD GROUP (MIDLANDS) LIMITED,Regeneration And The Economy,1111.92,Building Maintenance & Improvements,2122P05_CR00580,77009142
Sandwell Metropolitan Borough Council,http://www.sandwell.gov.uk/info/200202/performance_and_spending/1079/payments_over_500,17-Aug-21,Regeneration & Growth,DODD GROUP (MIDLANDS) LIMITED,Regeneration And The Economy,1187.6,Building Maintenance & Improvements,2122P05_CR00581,77009142
Sandwell Metropolitan Borough Council,http://www.sandwell.gov.uk/info/200202/performance_and_spending/1079/payments_over_500,01-Aug-21,Regeneration & Growth,DODD GROUP (MIDLANDS) LIMITED,Regeneration And The Economy,1198.72,Building Maintenance & Improvements,2122P05_CR00582,77009142
Sandwell Metropolitan Borough Council,http://www.sandwell.gov.uk/info/200202/performance_and_spending/1079/payments_over_500,17-Aug-21,Regeneration & Growth,DODD GROUP (MIDLANDS) LIMITED,Regeneration And The Economy,1226.51,Building Maintenance & Improvements,2122P05_CR00583,77009142
Sandwell Metropolitan Borough Council,http://www.sandwell.gov.uk/info/200202/performance_and_spending/1079/payments_over_500,01-Aug-21,Regeneration & Growth,DODD GROUP (MIDLANDS) LIMITED,Regeneration And The Economy,1266.5,Building Maintenance & Improvements,2122P05_CR00584,77009142
Sandwell Metropolitan Borough Council,http://www.sandwell.gov.uk/info/200202/performance_and_spending/1079/payments_over_500,17-Aug-21,Regeneration & Growth,DODD GROUP (MIDLANDS) LIMITED,Regeneration And The Economy,1276.84,Building Maintenance & Improvements,2122P05_CR00585,77009142
Sandwell Metropolitan Borough Council,http://www.sandwell.gov.uk/info/200202/performance_and_spending/1079/payments_over_500,01-Aug-21,Regeneration & Growth,DODD GROUP (MIDLANDS) LIMITED,Regeneration And The Economy,1291.89,Building Maintenance & Improvements,2122P05_CR00586,77009142
Sandwell Metropolitan Borough Council,http://www.sandwell.gov.uk/info/200202/performance_and_spending/1079/payments_over_500,01-Aug-21,Regeneration & Growth,DODD GROUP (MIDLANDS) LIMITED,Regeneration And The Economy,1309.38,Building Maintenance & Improvements,2122P05_CR00587,77009142
Sandwell Metropolitan Borough Council,http://www.sandwell.gov.uk/info/200202/performance_and_spending/1079/payments_over_500,17-Aug-21,Regeneration & Growth,DODD GROUP (MIDLANDS) LIMITED,Regeneration And The Economy,1310.65,Building Maintenance & Improvements,2122P05_CR00588,77009142
Sandwell Metropolitan Borough Council,http://www.sandwell.gov.uk/info/200202/performance_and_spending/1079/payments_over_500,01-Aug-21,Regeneration & Growth,DODD GROUP (MIDLANDS) LIMITED,Regeneration And The Economy,1481.25,Building Maintenance & Improvements,2122P05_CR00589,77009142
Sandwell Metropolitan Borough Council,http://www.sandwell.gov.uk/info/200202/performance_and_spending/1079/payments_over_500,17-Aug-21,Regeneration & Growth,DODD GROUP (MIDLANDS) LIMITED,Regeneration And The Economy,1534.83,Building Maintenance & Improvements,2122P05_CR00590,77009142
Sandwell Metropolitan Borough Council,http://www.sandwell.gov.uk/info/200202/performance_and_spending/1079/payments_over_500,17-Aug-21,Regeneration & Growth,DODD GROUP (MIDLANDS) LIMITED,Regeneration And The Economy,1558.77,Building Maintenance & Improvements,2122P05_CR00591,77009142
Sandwell Metropolitan Borough Council,http://www.sandwell.gov.uk/info/200202/performance_and_spending/1079/payments_over_500,01-Aug-21,Regeneration & Growth,DODD GROUP (MIDLANDS) LIMITED,Regeneration And The Economy,1657.68,Building Maintenance & Improvements,2122P05_CR00592,77009142
Sandwell Metropolitan Borough Council,http://www.sandwell.gov.uk/info/200202/performance_and_spending/1079/payments_over_500,01-Aug-21,Regeneration & Growth,DODD GROUP (MIDLANDS) LIMITED,Regeneration And The Economy,1688.87,Building Maintenance & Improvements,2122P05_CR00593,77009142
Sandwell Metropolitan Borough Council,http://www.sandwell.gov.uk/info/200202/performance_and_spending/1079/payments_over_500,17-Aug-21,Regeneration & Growth,DODD GROUP (MIDLANDS) LIMITED,Regeneration And The Economy,1779.8,Building Maintenance & Improvements,2122P05_CR00594,77009142
Sandwell Metropolitan Borough Council,http://www.sandwell.gov.uk/info/200202/performance_and_spending/1079/payments_over_500,01-Aug-21,Regeneration & Growth,DODD GROUP (MIDLANDS) LIMITED,Regeneration And The Economy,2012.23,Building Maintenance & Improvements,2122P05_CR00595,77009142
Sandwell Metropolitan Borough Council,http://www.sandwell.gov.uk/info/200202/performance_and_spending/1079/payments_over_500,01-Aug-21,Regeneration & Growth,DODD GROUP (MIDLANDS) LIMITED,Regeneration And The Economy,2024.46,Building Maintenance & Improvements,2122P05_CR00596,77009142
Sandwell Metropolitan Borough Council,http://www.sandwell.gov.uk/info/200202/performance_and_spending/1079/payments_over_500,17-Aug-21,Regeneration & Growth,DODD GROUP (MIDLANDS) LIMITED,Regeneration And The Economy,2065.98,Building Maintenance & Improvements,2122P05_CR00597,77009142
Sandwell Metropolitan Borough Council,http://www.sandwell.gov.uk/info/200202/performance_and_spending/1079/payments_over_500,01-Aug-21,Regeneration & Growth,DODD GROUP (MIDLANDS) LIMITED,Regeneration And The Economy,2153.67,Building Maintenance & Improvements,2122P05_CR00598,77009142
Sandwell Metropolitan Borough Council,http://www.sandwell.gov.uk/info/200202/performance_and_spending/1079/payments_over_500,17-Aug-21,Regeneration & Growth,DODD GROUP (MIDLANDS) LIMITED,Regeneration And The Economy,2412.25,Building Maintenance & Improvements,2122P05_CR00599,77009142
Sandwell Metropolitan Borough Council,http://www.sandwell.gov.uk/info/200202/performance_and_spending/1079/payments_over_500,17-Aug-21,Regeneration & Growth,DODD GROUP (MIDLANDS) LIMITED,Regeneration And The Economy,2449.08,Building Maintenance & Improvements,2122P05_CR00600,77009142
Sandwell Metropolitan Borough Council,http://www.sandwell.gov.uk/info/200202/performance_and_spending/1079/payments_over_500,01-Aug-21,Regeneration & Growth,DODD GROUP (MIDLANDS) LIMITED,Regeneration And The Economy,2833.78,Building Maintenance & Improvements,2122P05_CR00601,77009142
Sandwell Metropolitan Borough Council,http://www.sandwell.gov.uk/info/200202/performance_and_spending/1079/payments_over_500,17-Aug-21,Regeneration & Growth,DODD GROUP (MIDLANDS) LIMITED,Regeneration And The Economy,3026.24,Building Maintenance & Improvements,2122P05_CR00602,77009142
Sandwell Metropolitan Borough Council,http://www.sandwell.gov.uk/info/200202/performance_and_spending/1079/payments_over_500,01-Aug-21,Regeneration & Growth,DODD GROUP (MIDLANDS) LIMITED,Regeneration And The Economy,3166.32,Building Maintenance & Improvements,2122P05_CR00603,77009142
Sandwell Metropolitan Borough Council,http://www.sandwell.gov.uk/info/200202/performance_and_spending/1079/payments_over_500,01-Aug-21,Regeneration & Growth,DODD GROUP (MIDLANDS) LIMITED,Regeneration And The Economy,3421.23,Building Maintenance & Improvements,2122P05_CR00604,77009142
Sandwell Metropolitan Borough Council,http://www.sandwell.gov.uk/info/200202/performance_and_spending/1079/payments_over_500,01-Aug-21,Regeneration & Growth,DODD GROUP (MIDLANDS) LIMITED,Regeneration And The Economy,3425.21,Building Maintenance & Improvements,2122P05_CR00605,77009142
Sandwell Metropolitan Borough Council,http://www.sandwell.gov.uk/info/200202/performance_and_spending/1079/payments_over_500,01-Aug-21,Regeneration & Growth,DODD GROUP (MIDLANDS) LIMITED,Regeneration And The Economy,3677.06,Building Maintenance & Improvements,2122P05_CR00606,77009142
Sandwell Metropolitan Borough Council,http://www.sandwell.gov.uk/info/200202/performance_and_spending/1079/payments_over_500,01-Aug-21,Regeneration & Growth,DODD GROUP (MIDLANDS) LIMITED,Regeneration And The Economy,3688.91,Building Maintenance & Improvements,2122P05_CR00607,77009142
Sandwell Metropolitan Borough Council,http://www.sandwell.gov.uk/info/200202/performance_and_spending/1079/payments_over_500,01-Aug-21,Regeneration & Growth,DODD GROUP (MIDLANDS) LIMITED,Regeneration And The Economy,4043.06,Building Maintenance & Improvements,2122P05_CR00608,77009142
Sandwell Metropolitan Borough Council,http://www.sandwell.gov.uk/info/200202/performance_and_spending/1079/payments_over_500,01-Aug-21,Regeneration & Growth,DODD GROUP (MIDLANDS) LIMITED,Regeneration And The Economy,4138.85,Building Maintenance & Improvements,2122P05_CR00609,77009142
Sandwell Metropolitan Borough Council,http://www.sandwell.gov.uk/info/200202/performance_and_spending/1079/payments_over_500,01-Aug-21,Regeneration & Growth,DODD GROUP (MIDLANDS) LIMITED,Regeneration And The Economy,5135.88,Building Maintenance & Improvements,2122P05_CR00610,77009142
Sandwell Metropolitan Borough Council,http://www.sandwell.gov.uk/info/200202/performance_and_spending/1079/payments_over_500,01-Aug-21,Regeneration & Growth,DODD GROUP (MIDLANDS) LIMITED,Regeneration And The Economy,5715.26,Building Maintenance & Improvements,2122P05_CR00611,77009142
Sandwell Metropolitan Borough Council,http://www.sandwell.gov.uk/info/200202/performance_and_spending/1079/payments_over_500,17-Aug-21,Regeneration & Growth,DODD GROUP (MIDLANDS) LIMITED,Regeneration And The Economy,6712.73,Building Maintenance & Improvements,2122P05_CR00612,77009142
Sandwell Metropolitan Borough Council,http://www.sandwell.gov.uk/info/200202/performance_and_spending/1079/payments_over_500,01-Aug-21,Regeneration & Growth,DODD GROUP (MIDLANDS) LIMITED,Regeneration And The Economy,6972.54,Building Maintenance & Improvements,2122P05_CR00613,77009142
Sandwell Metropolitan Borough Council,http://www.sandwell.gov.uk/info/200202/performance_and_spending/1079/payments_over_500,01-Aug-21,Regeneration & Growth,DODD GROUP (MIDLANDS) LIMITED,Regeneration And The Economy,8395.86,Building Maintenance & Improvements,2122P05_CR00614,77009142
Sandwell Metropolitan Borough Council,http://www.sandwell.gov.uk/info/200202/performance_and_spending/1079/payments_over_500,17-Aug-21,Regeneration & Growth,DODD GROUP (MIDLANDS) LIMITED,Regeneration And The Economy,9026.3,Building Maintenance & Improvements,2122P05_CR00615,77009142
Sandwell Metropolitan Borough Council,http://www.sandwell.gov.uk/info/200202/performance_and_spending/1079/payments_over_500,01-Aug-21,Regeneration & Growth,DODD GROUP (MIDLANDS) LIMITED,Regeneration And The Economy,9480,Building Maintenance & Improvements,2122P05_CR00616,77009142
Sandwell Metropolitan Borough Council,http://www.sandwell.gov.uk/info/200202/performance_and_spending/1079/payments_over_500,01-Aug-21,Regeneration & Growth,DODD GROUP (MIDLANDS) LIMITED,Regeneration And The Economy,10072.5,Building Maintenance & Improvements,2122P05_CR00617,77009142
Sandwell Metropolitan Borough Council,http://www.sandwell.gov.uk/info/200202/performance_and_spending/1079/payments_over_500,01-Aug-21,Regeneration & Growth,DODD GROUP (MIDLANDS) LIMITED,Regeneration And The Economy,22776.71,Building Maintenance & Improvements,2122P05_CR00618,77009142
Sandwell Metropolitan Borough Council,http://www.sandwell.gov.uk/info/200202/performance_and_spending/1079/payments_over_500,01-Aug-21,Regeneration & Growth,DODD GROUP (MIDLANDS) LIMITED,Regeneration And The Economy,25673.95,Building Maintenance & Improvements,2122P05_CR00619,77009142
Sandwell Metropolitan Borough Council,http://www.sandwell.gov.uk/info/200202/performance_and_spending/1079/payments_over_500,13-Aug-21,Regeneration & Growth,SMITH AND JANES MIDLANDS LIMITED,Regeneration And The Economy,920,Building Maintenance & Improvements,2122P05_CR00620,132913
Sandwell Metropolitan Borough Council,http://www.sandwell.gov.uk/info/200202/performance_and_spending/1079/payments_over_500,01-Aug-21,Regeneration & Growth,E.ON UK ENERGY SERVICES LIMITED,Regeneration And The Economy,516.25,Operational Services ,2122P05_CR00621,77000775
Sandwell Metropolitan Borough Council,http://www.sandwell.gov.uk/info/200202/performance_and_spending/1079/payments_over_500,01-Aug-21,Regeneration & Growth,E.ON UK ENERGY SERVICES LIMITED,Regeneration And The Economy,517.5,Operational Services ,2122P05_CR00622,77000775
Sandwell Metropolitan Borough Council,http://www.sandwell.gov.uk/info/200202/performance_and_spending/1079/payments_over_500,01-Aug-21,Regeneration & Growth,E.ON UK ENERGY SERVICES LIMITED,Regeneration And The Economy,517.5,Operational Services ,2122P05_CR00623,77000775
Sandwell Metropolitan Borough Council,http://www.sandwell.gov.uk/info/200202/performance_and_spending/1079/payments_over_500,01-Aug-21,Regeneration & Growth,E.ON UK ENERGY SERVICES LIMITED,Regeneration And The Economy,517.5,Operational Services ,2122P05_CR00624,77000775
Sandwell Metropolitan Borough Council,http://www.sandwell.gov.uk/info/200202/performance_and_spending/1079/payments_over_500,01-Aug-21,Regeneration & Growth,E.ON UK ENERGY SERVICES LIMITED,Regeneration And The Economy,517.5,Operational Services ,2122P05_CR00625,77000775
Sandwell Metropolitan Borough Council,http://www.sandwell.gov.uk/info/200202/performance_and_spending/1079/payments_over_500,01-Aug-21,Regeneration & Growth,E.ON UK ENERGY SERVICES LIMITED,Regeneration And The Economy,517.5,Operational Services ,2122P05_CR00626,77000775
Sandwell Metropolitan Borough Council,http://www.sandwell.gov.uk/info/200202/performance_and_spending/1079/payments_over_500,01-Aug-21,Regeneration & Growth,E.ON UK ENERGY SERVICES LIMITED,Regeneration And The Economy,517.5,Operational Services ,2122P05_CR00627,77000775
Sandwell Metropolitan Borough Council,http://www.sandwell.gov.uk/info/200202/performance_and_spending/1079/payments_over_500,01-Aug-21,Regeneration & Growth,E.ON UK ENERGY SERVICES LIMITED,Regeneration And The Economy,517.5,Operational Services ,2122P05_CR00628,77000775
Sandwell Metropolitan Borough Council,http://www.sandwell.gov.uk/info/200202/performance_and_spending/1079/payments_over_500,01-Aug-21,Regeneration & Growth,E.ON UK ENERGY SERVICES LIMITED,Regeneration And The Economy,517.5,Operational Services ,2122P05_CR00629,77000775
Sandwell Metropolitan Borough Council,http://www.sandwell.gov.uk/info/200202/performance_and_spending/1079/payments_over_500,01-Aug-21,Regeneration & Growth,E.ON UK ENERGY SERVICES LIMITED,Regeneration And The Economy,517.5,Operational Services ,2122P05_CR00630,77000775
Sandwell Metropolitan Borough Council,http://www.sandwell.gov.uk/info/200202/performance_and_spending/1079/payments_over_500,01-Aug-21,Regeneration & Growth,E.ON UK ENERGY SERVICES LIMITED,Regeneration And The Economy,517.5,Operational Services ,2122P05_CR00631,77000775
Sandwell Metropolitan Borough Council,http://www.sandwell.gov.uk/info/200202/performance_and_spending/1079/payments_over_500,01-Aug-21,Regeneration & Growth,DODD GROUP (MIDLANDS) LIMITED,Regeneration And The Economy,517.85,Building Maintenance & Improvements,2122P05_CR00632,77009142
Sandwell Metropolitan Borough Council,http://www.sandwell.gov.uk/info/200202/performance_and_spending/1079/payments_over_500,01-Aug-21,Regeneration & Growth,E.ON UK ENERGY SERVICES LIMITED,Regeneration And The Economy,528,Operational Services ,2122P05_CR00633,77000775
Sandwell Metropolitan Borough Council,http://www.sandwell.gov.uk/info/200202/performance_and_spending/1079/payments_over_500,01-Aug-21,Regeneration & Growth,E.ON UK ENERGY SERVICES LIMITED,Regeneration And The Economy,528,Operational Services ,2122P05_CR00634,77000775
Sandwell Metropolitan Borough Council,http://www.sandwell.gov.uk/info/200202/performance_and_spending/1079/payments_over_500,01-Aug-21,Regeneration & Growth,DODD GROUP (MIDLANDS) LIMITED,Regeneration And The Economy,528.36,Building Maintenance & Improvements,2122P05_CR00635,77009142
Sandwell Metropolitan Borough Council,http://www.sandwell.gov.uk/info/200202/performance_and_spending/1079/payments_over_500,01-Aug-21,Regeneration & Growth,DODD GROUP (MIDLANDS) LIMITED,Regeneration And The Economy,541.92,Building Maintenance & Improvements,2122P05_CR00636,77009142
Sandwell Metropolitan Borough Council,http://www.sandwell.gov.uk/info/200202/performance_and_spending/1079/payments_over_500,01-Aug-21,Regeneration & Growth,DODD GROUP (MIDLANDS) LIMITED,Regeneration And The Economy,541.92,Building Maintenance & Improvements,2122P05_CR00637,77009142
Sandwell Metropolitan Borough Council,http://www.sandwell.gov.uk/info/200202/performance_and_spending/1079/payments_over_500,01-Aug-21,Regeneration & Growth,DODD GROUP (MIDLANDS) LIMITED,Regeneration And The Economy,541.92,Building Maintenance & Improvements,2122P05_CR00638,77009142
Sandwell Metropolitan Borough Council,http://www.sandwell.gov.uk/info/200202/performance_and_spending/1079/payments_over_500,01-Aug-21,Regeneration & Growth,E.ON UK ENERGY SERVICES LIMITED,Regeneration And The Economy,573,Operational Services ,2122P05_CR00639,77000775
Sandwell Metropolitan Borough Council,http://www.sandwell.gov.uk/info/200202/performance_and_spending/1079/payments_over_500,01-Aug-21,Regeneration & Growth,E.ON UK ENERGY SERVICES LIMITED,Regeneration And The Economy,577.5,Operational Services ,2122P05_CR00640,77000775
Sandwell Metropolitan Borough Council,http://www.sandwell.gov.uk/info/200202/performance_and_spending/1079/payments_over_500,01-Aug-21,Regeneration & Growth,DODD GROUP (MIDLANDS) LIMITED,Regeneration And The Economy,585.32,Building Maintenance & Improvements,2122P05_CR00641,77009142
Sandwell Metropolitan Borough Council,http://www.sandwell.gov.uk/info/200202/performance_and_spending/1079/payments_over_500,01-Aug-21,Regeneration & Growth,DODD GROUP (MIDLANDS) LIMITED,Regeneration And The Economy,592.38,Building Maintenance & Improvements,2122P05_CR00642,77009142
Sandwell Metropolitan Borough Council,http://www.sandwell.gov.uk/info/200202/performance_and_spending/1079/payments_over_500,01-Aug-21,Regeneration & Growth,DODD GROUP (MIDLANDS) LIMITED,Regeneration And The Economy,596.5,Building Maintenance & Improvements,2122P05_CR00643,77009142
Sandwell Metropolitan Borough Council,http://www.sandwell.gov.uk/info/200202/performance_and_spending/1079/payments_over_500,01-Aug-21,Regeneration & Growth,VEOLIA ES (UK) LTD,Regeneration And The Economy,596.88,Waste Disposal Charges,2122P05_CR00644,23420
Sandwell Metropolitan Borough Council,http://www.sandwell.gov.uk/info/200202/performance_and_spending/1079/payments_over_500,01-Aug-21,Regeneration & Growth,DODD GROUP (MIDLANDS) LIMITED,Regeneration And The Economy,609.64,Building Maintenance & Improvements,2122P05_CR00645,77009142
Sandwell Metropolitan Borough Council,http://www.sandwell.gov.uk/info/200202/performance_and_spending/1079/payments_over_500,01-Aug-21,Regeneration & Growth,DODD GROUP (MIDLANDS) LIMITED,Regeneration And The Economy,609.65,Building Maintenance & Improvements,2122P05_CR00646,77009142
Sandwell Metropolitan Borough Council,http://www.sandwell.gov.uk/info/200202/performance_and_spending/1079/payments_over_500,01-Aug-21,Regeneration & Growth,DODD GROUP (MIDLANDS) LIMITED,Regeneration And The Economy,609.66,Building Maintenance & Improvements,2122P05_CR00647,77009142
Sandwell Metropolitan Borough Council,http://www.sandwell.gov.uk/info/200202/performance_and_spending/1079/payments_over_500,01-Aug-21,Regeneration & Growth,DODD GROUP (MIDLANDS) LIMITED,Regeneration And The Economy,617.42,Building Maintenance & Improvements,2122P05_CR00648,77009142
Sandwell Metropolitan Borough Council,http://www.sandwell.gov.uk/info/200202/performance_and_spending/1079/payments_over_500,01-Aug-21,Regeneration & Growth,E.ON UK ENERGY SERVICES LIMITED,Regeneration And The Economy,622.44,Operational Services ,2122P05_CR00649,77000775
Sandwell Metropolitan Borough Council,http://www.sandwell.gov.uk/info/200202/performance_and_spending/1079/payments_over_500,01-Aug-21,Regeneration & Growth,JOHN A BATES (CONTRACTORS) LTD,Regeneration And The Economy,631.33,Operational Services ,2122P05_CR00650,77001148
Sandwell Metropolitan Borough Council,http://www.sandwell.gov.uk/info/200202/performance_and_spending/1079/payments_over_500,01-Aug-21,Regeneration & Growth,E.ON UK ENERGY SERVICES LIMITED,Regeneration And The Economy,637.06,Operational Services ,2122P05_CR00651,77000775
Sandwell Metropolitan Borough Council,http://www.sandwell.gov.uk/info/200202/performance_and_spending/1079/payments_over_500,01-Aug-21,Regeneration & Growth,DODD GROUP (MIDLANDS) LIMITED,Regeneration And The Economy,650.28,Building Maintenance & Improvements,2122P05_CR00652,77009142
Sandwell Metropolitan Borough Council,http://www.sandwell.gov.uk/info/200202/performance_and_spending/1079/payments_over_500,01-Aug-21,Regeneration & Growth,DODD GROUP (MIDLANDS) LIMITED,Regeneration And The Economy,680.85,Building Maintenance & Improvements,2122P05_CR00653,77009142
Sandwell Metropolitan Borough Council,http://www.sandwell.gov.uk/info/200202/performance_and_spending/1079/payments_over_500,03-Aug-21,Regeneration & Growth,SERCO LIMITED,Regeneration And The Economy,700.64,Externally Purchased Professional Services ,2122P05_CR00654,53771
Sandwell Metropolitan Borough Council,http://www.sandwell.gov.uk/info/200202/performance_and_spending/1079/payments_over_500,01-Aug-21,Regeneration & Growth,DODD GROUP (MIDLANDS) LIMITED,Regeneration And The Economy,710.11,Building Maintenance & Improvements,2122P05_CR00655,77009142
Sandwell Metropolitan Borough Council,http://www.sandwell.gov.uk/info/200202/performance_and_spending/1079/payments_over_500,24-Aug-21,Regeneration & Growth,HAYSTOUN CONSTRUCTION LTD,Regeneration And The Economy,713.72,Operational Services ,2122P05_CR00656,11849
Sandwell Metropolitan Borough Council,http://www.sandwell.gov.uk/info/200202/performance_and_spending/1079/payments_over_500,01-Aug-21,Regeneration & Growth,WPD MIDLANDS NETWORKS SERVICES LTD,Regeneration And The Economy,721.91,Equipment & Furniture ,2122P05_CR00657,76747
Sandwell Metropolitan Borough Council,http://www.sandwell.gov.uk/info/200202/performance_and_spending/1079/payments_over_500,03-Aug-21,Regeneration & Growth,SERCO LIMITED,Regeneration And The Economy,731,Waste Disposal Charges,2122P05_CR00658,53771
Sandwell Metropolitan Borough Council,http://www.sandwell.gov.uk/info/200202/performance_and_spending/1079/payments_over_500,01-Aug-21,Regeneration & Growth,DODD GROUP (MIDLANDS) LIMITED,Regeneration And The Economy,748.92,Building Maintenance & Improvements,2122P05_CR00659,77009142
Sandwell Metropolitan Borough Council,http://www.sandwell.gov.uk/info/200202/performance_and_spending/1079/payments_over_500,01-Aug-21,Regeneration & Growth,DODD GROUP (MIDLANDS) LIMITED,Regeneration And The Economy,758.33,Building Maintenance & Improvements,2122P05_CR00660,77009142
Sandwell Metropolitan Borough Council,http://www.sandwell.gov.uk/info/200202/performance_and_spending/1079/payments_over_500,01-Aug-21,Regeneration & Growth,WPD MIDLANDS NETWORKS SERVICES LTD,Regeneration And The Economy,806.81,Equipment & Furniture ,2122P05_CR00661,76747
Sandwell Metropolitan Borough Council,http://www.sandwell.gov.uk/info/200202/performance_and_spending/1079/payments_over_500,01-Aug-21,Regeneration & Growth,WPD MIDLANDS NETWORKS SERVICES LTD,Regeneration And The Economy,885.4,Equipment & Furniture ,2122P05_CR00662,76747
Sandwell Metropolitan Borough Council,http://www.sandwell.gov.uk/info/200202/performance_and_spending/1079/payments_over_500,03-Aug-21,Regeneration & Growth,SERCO LIMITED,Regeneration And The Economy,893.46,Externally Purchased Professional Services ,2122P05_CR00663,53771
Sandwell Metropolitan Borough Council,http://www.sandwell.gov.uk/info/200202/performance_and_spending/1079/payments_over_500,10-Aug-21,Regeneration & Growth,BURNTWOOD ROADSWEEPERS LIMITED,Regeneration And The Economy,900,Equipment & Furniture ,2122P05_CR00664,102393
Sandwell Metropolitan Borough Council,http://www.sandwell.gov.uk/info/200202/performance_and_spending/1079/payments_over_500,01-Aug-21,Regeneration & Growth,DODD GROUP (MIDLANDS) LIMITED,Regeneration And The Economy,923.06,Building Maintenance & Improvements,2122P05_CR00665,77009142
Sandwell Metropolitan Borough Council,http://www.sandwell.gov.uk/info/200202/performance_and_spending/1079/payments_over_500,01-Aug-21,Regeneration & Growth,DODD GROUP (MIDLANDS) LIMITED,Regeneration And The Economy,925.12,Building Maintenance & Improvements,2122P05_CR00666,77009142
Sandwell Metropolitan Borough Council,http://www.sandwell.gov.uk/info/200202/performance_and_spending/1079/payments_over_500,01-Aug-21,Regeneration & Growth,DODD GROUP (MIDLANDS) LIMITED,Regeneration And The Economy,926.35,Building Maintenance & Improvements,2122P05_CR00667,77009142
Sandwell Metropolitan Borough Council,http://www.sandwell.gov.uk/info/200202/performance_and_spending/1079/payments_over_500,01-Aug-21,Regeneration & Growth,DODD GROUP (MIDLANDS) LIMITED,Regeneration And The Economy,939.04,Building Maintenance & Improvements,2122P05_CR00668,77009142
Sandwell Metropolitan Borough Council,http://www.sandwell.gov.uk/info/200202/performance_and_spending/1079/payments_over_500,01-Aug-21,Regeneration & Growth,DODD GROUP (MIDLANDS) LIMITED,Regeneration And The Economy,944.48,Building Maintenance & Improvements,2122P05_CR00669,77009142
Sandwell Metropolitan Borough Council,http://www.sandwell.gov.uk/info/200202/performance_and_spending/1079/payments_over_500,01-Aug-21,Regeneration & Growth,DODD GROUP (MIDLANDS) LIMITED,Regeneration And The Economy,983.25,Building Maintenance & Improvements,2122P05_CR00670,77009142
Sandwell Metropolitan Borough Council,http://www.sandwell.gov.uk/info/200202/performance_and_spending/1079/payments_over_500,01-Aug-21,Regeneration & Growth,INSULATION CONTRACTING SERVICES LTD,Regeneration And The Economy,1004,Building Maintenance & Improvements,2122P05_CR00671,77002831
Sandwell Metropolitan Borough Council,http://www.sandwell.gov.uk/info/200202/performance_and_spending/1079/payments_over_500,01-Aug-21,Regeneration & Growth,WPD MIDLANDS NETWORKS SERVICES LTD,Regeneration And The Economy,1015.49,Equipment & Furniture ,2122P05_CR00672,76747
Sandwell Metropolitan Borough Council,http://www.sandwell.gov.uk/info/200202/performance_and_spending/1079/payments_over_500,01-Aug-21,Regeneration & Growth,DODD GROUP (MIDLANDS) LIMITED,Regeneration And The Economy,1028.46,Building Maintenance & Improvements,2122P05_CR00673,77009142
Sandwell Metropolitan Borough Council,http://www.sandwell.gov.uk/info/200202/performance_and_spending/1079/payments_over_500,01-Aug-21,Regeneration & Growth,E.ON UK ENERGY SERVICES LIMITED,Regeneration And The Economy,1104,Operational Services ,2122P05_CR00674,77000775
Sandwell Metropolitan Borough Council,http://www.sandwell.gov.uk/info/200202/performance_and_spending/1079/payments_over_500,01-Aug-21,Regeneration & Growth,JOHN A BATES (CONTRACTORS) LTD,Regeneration And The Economy,1108.12,Operational Services ,2122P05_CR00675,77001148
Sandwell Metropolitan Borough Council,http://www.sandwell.gov.uk/info/200202/performance_and_spending/1079/payments_over_500,01-Aug-21,Regeneration & Growth,DODD GROUP (MIDLANDS) LIMITED,Regeneration And The Economy,1119.03,Building Maintenance & Improvements,2122P05_CR00676,77009142
Sandwell Metropolitan Borough Council,http://www.sandwell.gov.uk/info/200202/performance_and_spending/1079/payments_over_500,01-Aug-21,Regeneration & Growth,DODD GROUP (MIDLANDS) LIMITED,Regeneration And The Economy,1123.15,Building Maintenance & Improvements,2122P05_CR00677,77009142
Sandwell Metropolitan Borough Council,http://www.sandwell.gov.uk/info/200202/performance_and_spending/1079/payments_over_500,01-Aug-21,Regeneration & Growth,DODD GROUP (MIDLANDS) LIMITED,Regeneration And The Economy,1192.21,Building Maintenance & Improvements,2122P05_CR00678,77009142
Sandwell Metropolitan Borough Council,http://www.sandwell.gov.uk/info/200202/performance_and_spending/1079/payments_over_500,01-Aug-21,Regeneration & Growth,DODD GROUP (MIDLANDS) LIMITED,Regeneration And The Economy,1221.14,Building Maintenance & Improvements,2122P05_CR00679,77009142
Sandwell Metropolitan Borough Council,http://www.sandwell.gov.uk/info/200202/performance_and_spending/1079/payments_over_500,01-Aug-21,Regeneration & Growth,DODD GROUP (MIDLANDS) LIMITED,Regeneration And The Economy,1271.07,Building Maintenance & Improvements,2122P05_CR00680,77009142
Sandwell Metropolitan Borough Council,http://www.sandwell.gov.uk/info/200202/performance_and_spending/1079/payments_over_500,01-Aug-21,Regeneration & Growth,TELENT TECHNOLOGY SERVICES LIMITED,Regeneration And The Economy,1386.15,Operational Services ,2122P05_CR00681,26331
Sandwell Metropolitan Borough Council,http://www.sandwell.gov.uk/info/200202/performance_and_spending/1079/payments_over_500,23-Aug-21,Regeneration & Growth,LIFT & ENGINEERING SERVICES LTD,Regeneration And The Economy,1419.51,Building Maintenance & Improvements,2122P05_CR00682,77003962
Sandwell Metropolitan Borough Council,http://www.sandwell.gov.uk/info/200202/performance_and_spending/1079/payments_over_500,01-Aug-21,Regeneration & Growth,DODD GROUP (MIDLANDS) LIMITED,Regeneration And The Economy,1438.21,Building Maintenance & Improvements,2122P05_CR00683,77009142
Sandwell Metropolitan Borough Council,http://www.sandwell.gov.uk/info/200202/performance_and_spending/1079/payments_over_500,01-Aug-21,Regeneration & Growth,SUNBELT RENTALS LTD,Regeneration And The Economy,1474,Equipment & Furniture ,2122P05_CR00684,1508935
Sandwell Metropolitan Borough Council,http://www.sandwell.gov.uk/info/200202/performance_and_spending/1079/payments_over_500,01-Aug-21,Regeneration & Growth,SUNBELT RENTALS LTD,Regeneration And The Economy,1474,Equipment & Furniture ,2122P05_CR00685,1508935
Sandwell Metropolitan Borough Council,http://www.sandwell.gov.uk/info/200202/performance_and_spending/1079/payments_over_500,01-Aug-21,Regeneration & Growth,SUNBELT RENTALS LTD,Regeneration And The Economy,1474,Equipment & Furniture ,2122P05_CR00686,1508935
Sandwell Metropolitan Borough Council,http://www.sandwell.gov.uk/info/200202/performance_and_spending/1079/payments_over_500,01-Aug-21,Regeneration & Growth,SUNBELT RENTALS LTD,Regeneration And The Economy,1474,Equipment & Furniture ,2122P05_CR00687,1508935
Sandwell Metropolitan Borough Council,http://www.sandwell.gov.uk/info/200202/performance_and_spending/1079/payments_over_500,01-Aug-21,Regeneration & Growth,STAVE CON LTD,Regeneration And The Economy,1505,Externally Purchased Professional Services ,2122P05_CR00688,77002689
Sandwell Metropolitan Borough Council,http://www.sandwell.gov.uk/info/200202/performance_and_spending/1079/payments_over_500,01-Aug-21,Regeneration & Growth,WPD MIDLANDS NETWORKS SERVICES LTD,Regeneration And The Economy,1547.5,Equipment & Furniture ,2122P05_CR00689,76747
Sandwell Metropolitan Borough Council,http://www.sandwell.gov.uk/info/200202/performance_and_spending/1079/payments_over_500,01-Aug-21,Regeneration & Growth,WPD MIDLANDS NETWORKS SERVICES LTD,Regeneration And The Economy,1625.78,Equipment & Furniture ,2122P05_CR00690,76747
Sandwell Metropolitan Borough Council,http://www.sandwell.gov.uk/info/200202/performance_and_spending/1079/payments_over_500,01-Aug-21,Regeneration & Growth,WPD MIDLANDS NETWORKS SERVICES LTD,Regeneration And The Economy,1659.92,Equipment & Furniture ,2122P05_CR00691,76747
Sandwell Metropolitan Borough Council,http://www.sandwell.gov.uk/info/200202/performance_and_spending/1079/payments_over_500,23-Aug-21,Regeneration & Growth,WINDOWMASTER CONTROL SYSTEMS,Regeneration And The Economy,1792.5,Building Maintenance & Improvements,2122P05_CR00692,80562
Sandwell Metropolitan Borough Council,http://www.sandwell.gov.uk/info/200202/performance_and_spending/1079/payments_over_500,01-Aug-21,Regeneration & Growth,JOHN A BATES (CONTRACTORS) LTD,Regeneration And The Economy,1896.93,Operational Services ,2122P05_CR00693,77001148
Sandwell Metropolitan Borough Council,http://www.sandwell.gov.uk/info/200202/performance_and_spending/1079/payments_over_500,01-Aug-21,Regeneration & Growth,DODD GROUP (MIDLANDS) LIMITED,Regeneration And The Economy,1991.12,Building Maintenance & Improvements,2122P05_CR00694,77009142
Sandwell Metropolitan Borough Council,http://www.sandwell.gov.uk/info/200202/performance_and_spending/1079/payments_over_500,01-Aug-21,Regeneration & Growth,JOHN A BATES (CONTRACTORS) LTD,Regeneration And The Economy,2016.18,Operational Services ,2122P05_CR00695,77001148
Sandwell Metropolitan Borough Council,http://www.sandwell.gov.uk/info/200202/performance_and_spending/1079/payments_over_500,01-Aug-21,Regeneration & Growth,JOHN A BATES (CONTRACTORS) LTD,Regeneration And The Economy,2085.19,Operational Services ,2122P05_CR00696,77001148
Sandwell Metropolitan Borough Council,http://www.sandwell.gov.uk/info/200202/performance_and_spending/1079/payments_over_500,23-Aug-21,Regeneration & Growth,WINDOWMASTER CONTROL SYSTEMS,Regeneration And The Economy,2120,Building Maintenance & Improvements,2122P05_CR00697,80562
Sandwell Metropolitan Borough Council,http://www.sandwell.gov.uk/info/200202/performance_and_spending/1079/payments_over_500,01-Aug-21,Regeneration & Growth,INSULATION CONTRACTING SERVICES LTD,Regeneration And The Economy,2210.38,Building Maintenance & Improvements,2122P05_CR00698,77002831
Sandwell Metropolitan Borough Council,http://www.sandwell.gov.uk/info/200202/performance_and_spending/1079/payments_over_500,01-Aug-21,Regeneration & Growth,WPD MIDLANDS NETWORKS SERVICES LTD,Regeneration And The Economy,2340.17,Equipment & Furniture ,2122P05_CR00699,76747
Sandwell Metropolitan Borough Council,http://www.sandwell.gov.uk/info/200202/performance_and_spending/1079/payments_over_500,01-Aug-21,Regeneration & Growth,INSULATION CONTRACTING SERVICES LTD,Regeneration And The Economy,2376,Building Maintenance & Improvements,2122P05_CR00700,77002831
Sandwell Metropolitan Borough Council,http://www.sandwell.gov.uk/info/200202/performance_and_spending/1079/payments_over_500,01-Aug-21,Regeneration & Growth,WPD MIDLANDS NETWORKS SERVICES LTD,Regeneration And The Economy,2409.97,Equipment & Furniture ,2122P05_CR00701,76747
Sandwell Metropolitan Borough Council,http://www.sandwell.gov.uk/info/200202/performance_and_spending/1079/payments_over_500,01-Aug-21,Regeneration & Growth,DODD GROUP (MIDLANDS) LIMITED,Regeneration And The Economy,2574.08,Building Maintenance & Improvements,2122P05_CR00702,77009142
Sandwell Metropolitan Borough Council,http://www.sandwell.gov.uk/info/200202/performance_and_spending/1079/payments_over_500,01-Aug-21,Regeneration & Growth,WPD MIDLANDS NETWORKS SERVICES LTD,Regeneration And The Economy,2601.98,Equipment & Furniture ,2122P05_CR00703,76747
Sandwell Metropolitan Borough Council,http://www.sandwell.gov.uk/info/200202/performance_and_spending/1079/payments_over_500,01-Aug-21,Regeneration & Growth,DODD GROUP (MIDLANDS) LIMITED,Regeneration And The Economy,2659.75,Building Maintenance & Improvements,2122P05_CR00704,77009142
Sandwell Metropolitan Borough Council,http://www.sandwell.gov.uk/info/200202/performance_and_spending/1079/payments_over_500,03-Aug-21,Regeneration & Growth,SERCO LIMITED,Regeneration And The Economy,2817.77,Waste Disposal Charges,2122P05_CR00705,53771
Sandwell Metropolitan Borough Council,http://www.sandwell.gov.uk/info/200202/performance_and_spending/1079/payments_over_500,12-Aug-21,Regeneration & Growth,JOHN A BATES (CONTRACTORS) LTD,Regeneration And The Economy,2832.6,Operational Services ,2122P05_CR00706,77001148
Sandwell Metropolitan Borough Council,http://www.sandwell.gov.uk/info/200202/performance_and_spending/1079/payments_over_500,01-Aug-21,Regeneration & Growth,JOHN A BATES (CONTRACTORS) LTD,Regeneration And The Economy,2867.8,Operational Services ,2122P05_CR00707,77001148
Sandwell Metropolitan Borough Council,http://www.sandwell.gov.uk/info/200202/performance_and_spending/1079/payments_over_500,01-Aug-21,Regeneration & Growth,WPD MIDLANDS NETWORKS SERVICES LTD,Regeneration And The Economy,3514.49,Equipment & Furniture ,2122P05_CR00708,76747
Sandwell Metropolitan Borough Council,http://www.sandwell.gov.uk/info/200202/performance_and_spending/1079/payments_over_500,01-Aug-21,Regeneration & Growth,JOHN A BATES (CONTRACTORS) LTD,Regeneration And The Economy,4473.94,Operational Services ,2122P05_CR00709,77001148
Sandwell Metropolitan Borough Council,http://www.sandwell.gov.uk/info/200202/performance_and_spending/1079/payments_over_500,01-Aug-21,Regeneration & Growth,INSULATION CONTRACTING SERVICES LTD,Regeneration And The Economy,4877,Building Maintenance & Improvements,2122P05_CR00710,77002831
Sandwell Metropolitan Borough Council,http://www.sandwell.gov.uk/info/200202/performance_and_spending/1079/payments_over_500,01-Aug-21,Regeneration & Growth,"ACIVICO (DESIGN,CONSTRUCTION AND FACILITIES MANAGEMENT) LTD",Regeneration And The Economy,6435.8,Consultancy,2122P05_CR00711,148500
Sandwell Metropolitan Borough Council,http://www.sandwell.gov.uk/info/200202/performance_and_spending/1079/payments_over_500,01-Aug-21,Regeneration & Growth,"ACIVICO (DESIGN,CONSTRUCTION AND FACILITIES MANAGEMENT) LTD",Regeneration And The Economy,8589.27,Consultancy,2122P05_CR00712,148500
Sandwell Metropolitan Borough Council,http://www.sandwell.gov.uk/info/200202/performance_and_spending/1079/payments_over_500,01-Aug-21,Regeneration & Growth,JOHN A BATES (CONTRACTORS) LTD,Regeneration And The Economy,9213.15,Operational Services ,2122P05_CR00713,77001148
Sandwell Metropolitan Borough Council,http://www.sandwell.gov.uk/info/200202/performance_and_spending/1079/payments_over_500,01-Aug-21,Regeneration & Growth,JOHN A BATES (CONTRACTORS) LTD,Regeneration And The Economy,9563.61,Operational Services ,2122P05_CR00714,77001148
Sandwell Metropolitan Borough Council,http://www.sandwell.gov.uk/info/200202/performance_and_spending/1079/payments_over_500,01-Aug-21,Regeneration & Growth,JOHN A BATES (CONTRACTORS) LTD,Regeneration And The Economy,9821.06,Operational Services ,2122P05_CR00715,77001148
Sandwell Metropolitan Borough Council,http://www.sandwell.gov.uk/info/200202/performance_and_spending/1079/payments_over_500,17-Aug-21,Regeneration & Growth,JOHN A BATES (CONTRACTORS) LTD,Regeneration And The Economy,9874.08,Operational Services ,2122P05_CR00716,77001148
Sandwell Metropolitan Borough Council,http://www.sandwell.gov.uk/info/200202/performance_and_spending/1079/payments_over_500,01-Aug-21,Regeneration & Growth,"ACIVICO (DESIGN,CONSTRUCTION AND FACILITIES MANAGEMENT) LTD",Regeneration And The Economy,10779,Consultancy,2122P05_CR00717,148500
Sandwell Metropolitan Borough Council,http://www.sandwell.gov.uk/info/200202/performance_and_spending/1079/payments_over_500,01-Aug-21,Regeneration & Growth,JOHN A BATES (CONTRACTORS) LTD,Regeneration And The Economy,11684.38,Operational Services ,2122P05_CR00718,77001148
Sandwell Metropolitan Borough Council,http://www.sandwell.gov.uk/info/200202/performance_and_spending/1079/payments_over_500,09-Aug-21,Regeneration & Growth,SERTEC SYSTEMS LTD,Regeneration And The Economy,11705.11,Building Maintenance & Improvements,2122P05_CR00719,77001513
Sandwell Metropolitan Borough Council,http://www.sandwell.gov.uk/info/200202/performance_and_spending/1079/payments_over_500,12-Aug-21,Regeneration & Growth,JOHN A BATES (CONTRACTORS) LTD,Regeneration And The Economy,12269.42,Operational Services ,2122P05_CR00720,77001148
Sandwell Metropolitan Borough Council,http://www.sandwell.gov.uk/info/200202/performance_and_spending/1079/payments_over_500,09-Aug-21,Regeneration & Growth,SERTEC SYSTEMS LTD,Regeneration And The Economy,12791.13,Building Maintenance & Improvements,2122P05_CR00721,77001513
Sandwell Metropolitan Borough Council,http://www.sandwell.gov.uk/info/200202/performance_and_spending/1079/payments_over_500,01-Aug-21,Regeneration & Growth,REDACTED PERSONAL DATA,Regeneration And The Economy,14175,Building Maintenance & Improvements,2122P05_CR00722,REDACTED PERSONAL DATA
Sandwell Metropolitan Borough Council,http://www.sandwell.gov.uk/info/200202/performance_and_spending/1079/payments_over_500,01-Aug-21,Regeneration & Growth,JOHN A BATES (CONTRACTORS) LTD,Regeneration And The Economy,15262.68,Operational Services ,2122P05_CR00723,77001148
Sandwell Metropolitan Borough Council,http://www.sandwell.gov.uk/info/200202/performance_and_spending/1079/payments_over_500,12-Aug-21,Regeneration & Growth,JOHN A BATES (CONTRACTORS) LTD,Regeneration And The Economy,16530.22,Operational Services ,2122P05_CR00724,77001148
Sandwell Metropolitan Borough Council,http://www.sandwell.gov.uk/info/200202/performance_and_spending/1079/payments_over_500,03-Aug-21,Regeneration & Growth,STAVE CON LTD,Regeneration And The Economy,17286.51,Operational Services ,2122P05_CR00725,77002689
Sandwell Metropolitan Borough Council,http://www.sandwell.gov.uk/info/200202/performance_and_spending/1079/payments_over_500,01-Aug-21,Regeneration & Growth,JOHN A BATES (CONTRACTORS) LTD,Regeneration And The Economy,17735.44,Operational Services ,2122P05_CR00726,77001148
Sandwell Metropolitan Borough Council,http://www.sandwell.gov.uk/info/200202/performance_and_spending/1079/payments_over_500,01-Aug-21,Regeneration & Growth,TELENT TECHNOLOGY SERVICES LIMITED,Regeneration And The Economy,19643.79,Operational Services ,2122P05_CR00727,26331
Sandwell Metropolitan Borough Council,http://www.sandwell.gov.uk/info/200202/performance_and_spending/1079/payments_over_500,01-Aug-21,Regeneration & Growth,JOHN A BATES (CONTRACTORS) LTD,Regeneration And The Economy,25546.9,Operational Services ,2122P05_CR00728,77001148
Sandwell Metropolitan Borough Council,http://www.sandwell.gov.uk/info/200202/performance_and_spending/1079/payments_over_500,04-Aug-21,Regeneration & Growth,HAYSTOUN CONSTRUCTION LTD,Regeneration And The Economy,25807.35,Operational Services ,2122P05_CR00729,11849
Sandwell Metropolitan Borough Council,http://www.sandwell.gov.uk/info/200202/performance_and_spending/1079/payments_over_500,10-Aug-21,Regeneration & Growth,CNC GROUP HOLDINGS LTD,Regeneration And The Economy,33791.07,Building Maintenance & Improvements,2122P05_CR00730,147994
Sandwell Metropolitan Borough Council,http://www.sandwell.gov.uk/info/200202/performance_and_spending/1079/payments_over_500,01-Aug-21,Regeneration & Growth,STAVE CON LTD,Regeneration And The Economy,66744.07,Operational Services ,2122P05_CR00731,77002689
Sandwell Metropolitan Borough Council,http://www.sandwell.gov.uk/info/200202/performance_and_spending/1079/payments_over_500,01-Aug-21,Regeneration & Growth,EDDISONS COMMERCIAL (PROPERTY MANAGEMENT),Regeneration And The Economy,16714.06,Rents,2122P05_CR00732,135860
Sandwell Metropolitan Borough Council,http://www.sandwell.gov.uk/info/200202/performance_and_spending/1079/payments_over_500,01-Aug-21,Regeneration & Growth,ISS DAMAGE CONTROL UK LTD,Regeneration And The Economy,852.48,Building Maintenance & Improvements,2122P05_CR00733,13903
Sandwell Metropolitan Borough Council,http://www.sandwell.gov.uk/info/200202/performance_and_spending/1079/payments_over_500,01-Aug-21,Regeneration & Growth,WEST MIDLANDS COMBINED AUTHORITY,Regeneration And The Economy,1350,Operational Services ,2122P05_CR00734,126646
Sandwell Metropolitan Borough Council,http://www.sandwell.gov.uk/info/200202/performance_and_spending/1079/payments_over_500,09-Aug-21,Regeneration & Growth,THE RADAR KEY COMPANY,Regeneration And The Economy,500,Building Maintenance & Improvements,2122P05_CR00735,112539
Sandwell Metropolitan Borough Council,http://www.sandwell.gov.uk/info/200202/performance_and_spending/1079/payments_over_500,01-Aug-21,Regeneration & Growth,MIDLAND QUARRY PRODUCTS,Regeneration And The Economy,502.24,Operational Services ,2122P05_CR00736,1532513
